Workbook

Sheet pali
C1: name | G1: id | I1: folder | K1: title | M1: c1 | O1: c2 | Q1: c3 | S1: c4 | T1: end
A2: 11.11 | B2: { "name":" | C2: dn1 | D2: " , "row":" | E2: 93 | F2: " , "id":"p | G2: 93 | H2: " , "folder":" | I2: s0101m.mul | J2: " , "title":" | K2: Sīlakkhandhavaggapāḷi | L2: " , "c1":" | M2: mūla | N2: " , "c2":" | O2: sutta | P2: " , "c3":" | Q2: dīgha | R2: " , "c4":" | T2: " },
A3: 11.12 | B3: { "name":" | C3: dn2 | D3: " , "row":" | E3: 94 | F3: " , "id":"p | G3: 94 | H3: " , "folder":" | I3: s0102m.mul | J3: " , "title":" | K3: Mahāvaggapāḷi | L3: " , "c1":" | M3: mūla | N3: " , "c2":" | O3: sutta | P3: " , "c3":" | Q3: dīgha | R3: " , "c4":" | T3: " },
A4: 11.13 | B4: { "name":" | C4: dn3 | D4: " , "row":" | E4: 95 | F4: " , "id":"p | G4: 95 | H4: " , "folder":" | I4: s0103m.mul | J4: " , "title":" | K4: Pāthikavaggapāḷi | L4: " , "c1":" | M4: mūla | N4: " , "c2":" | O4: sutta | P4: " , "c3":" | Q4: dīgha | R4: " , "c4":" | T4: " },
A5: 11.21 | B5: { "name":" | C5: mn1 | D5: " , "row":" | E5: 164 | F5: " , "id":"p | G5: 164 | H5: " , "folder":" | I5: s0201m.mul | J5: " , "title":" | K5: Mūlapaṇṇāsapāḷi | L5: " , "c1":" | M5: mūla | N5: " , "c2":" | O5: sutta | P5: " , "c3":" | Q5: majjhima | R5: " , "c4":" | T5: " },
A6: 11.22 | B6: { "name":" | C6: mn2 | D6: " , "row":" | E6: 165 | F6: " , "id":"p | G6: 165 | H6: " , "folder":" | I6: s0202m.mul | J6: " , "title":" | K6: Majjhimapaṇṇāsapāḷi | L6: " , "c1":" | M6: mūla | N6: " , "c2":" | O6: sutta | P6: " , "c3":" | Q6: majjhima | R6: " , "c4":" | T6: " },
A7: 11.23 | B7: { "name":" | C7: mn3 | D7: " , "row":" | E7: 166 | F7: " , "id":"p | G7: 166 | H7: " , "folder":" | I7: s0203m.mul | J7: " , "title":" | K7: Uparipaṇṇāsapāḷi | L7: " , "c1":" | M7: mūla | N7: " , "c2":" | O7: sutta | P7: " , "c3":" | Q7: majjhima | R7: " , "c4":" | T7: " },
A8: 11.31 | B8: { "name":" | C8: sn1 | D8: " , "row":" | E8: 167 | F8: " , "id":"p | G8: 167 | H8: " , "folder":" | I8: s0301m.mul | J8: " , "title":" | K8: Sagāthāvaggo | L8: " , "c1":" | M8: mūla | N8: " , "c2":" | O8: sutta | P8: " , "c3":" | Q8: saṃyutta | R8: " , "c4":" | T8: " },
A9: 11.32 | B9: { "name":" | C9: sn2 | D9: " , "row":" | E9: 168 | F9: " , "id":"p | G9: 168 | H9: " , "folder":" | I9: s0302m.mul | J9: " , "title":" | K9: Nidānavaggo | L9: " , "c1":" | M9: mūla | N9: " , "c2":" | O9: sutta | P9: " , "c3":" | Q9: saṃyutta | R9: " , "c4":" | T9: " },
A10: 11.33 | B10: { "name":" | C10: sn3 | D10: " , "row":" | E10: 169 | F10: " , "id":"p | G10: 169 | H10: " , "folder":" | I10: s0303m.mul | J10: " , "title":" | K10: Khandhavaggo | L10: " , "c1":" | M10: mūla | N10: " , "c2":" | O10: sutta | P10: " , "c3":" | Q10: saṃyutta | R10: " , "c4":" | T10: " },
A11: 11.34 | B11: { "name":" | C11: sn4 | D11: " , "row":" | E11: 170 | F11: " , "id":"p | G11: 170 | H11: " , "folder":" | I11: s0304m.mul | J11: " , "title":" | K11: Saḷāyatanavaggo | L11: " , "c1":" | M11: mūla | N11: " , "c2":" | O11: sutta | P11: " , "c3":" | Q11: saṃyutta | R11: " , "c4":" | T11: " },
A12: 11.35 | B12: { "name":" | C12: sn5 | D12: " , "row":" | E12: 171 | F12: " , "id":"p | G12: 171 | H12: " , "folder":" | I12: s0305m.mul | J12: " , "title":" | K12: Mahāvaggo | L12: " , "c1":" | M12: mūla | N12: " , "c2":" | O12: sutta | P12: " , "c3":" | Q12: saṃyutta | R12: " , "c4":" | T12: " },
A13: 11.41 | B13: { "name":" | C13: an1 | D13: " , "row":" | E13: 84 | F13: " , "id":"p | G13: 84 | H13: " , "folder":" | I13: s0401m.mul | J13: " , "title":" | K13: Ekakanipātapāḷi | L13: " , "c1":" | M13: mūla | N13: " , "c2":" | O13: sutta | P13: " , "c3":" | Q13: aṅguttara | R13: " , "c4":" | T13: " },
A14: 11.42 | B14: { "name":" | C14: an2 | D14: " , "row":" | E14: 85 | F14: " , "id":"p | G14: 85 | H14: " , "folder":" | I14: s0402m1.mul | J14: " , "title":" | K14: Dukanipātapāḷi | L14: " , "c1":" | M14: mūla | N14: " , "c2":" | O14: sutta | P14: " , "c3":" | Q14: aṅguttara | R14: " , "c4":" | T14: " },
A15: 11.43 | B15: { "name":" | C15: an3 | D15: " , "row":" | E15: 86 | F15: " , "id":"p | G15: 86 | H15: " , "folder":" | I15: s0402m2.mul | J15: " , "title":" | K15: Tikanipātapāḷi | L15: " , "c1":" | M15: mūla | N15: " , "c2":" | O15: sutta | P15: " , "c3":" | Q15: aṅguttara | R15: " , "c4":" | T15: " },
A16: 11.44 | B16: { "name":" | C16: an4 | D16: " , "row":" | E16: 87 | F16: " , "id":"p | G16: 87 | H16: " , "folder":" | I16: s0402m3.mul | J16: " , "title":" | K16: Catukkanipātapāḷi | L16: " , "c1":" | M16: mūla | N16: " , "c2":" | O16: sutta | P16: " , "c3":" | Q16: aṅguttara | R16: " , "c4":" | T16: " },
A17: 11.45 | B17: { "name":" | C17: an5 | D17: " , "row":" | E17: 88 | F17: " , "id":"p | G17: 88 | H17: " , "folder":" | I17: s0403m1.mul | J17: " , "title":" | K17: Pañcakanipātapāḷi | L17: " , "c1":" | M17: mūla | N17: " , "c2":" | O17: sutta | P17: " , "c3":" | Q17: aṅguttara | R17: " , "c4":" | T17: " },
A18: 11.46 | B18: { "name":" | C18: an6 | D18: " , "row":" | E18: 89 | F18: " , "id":"p | G18: 89 | H18: " , "folder":" | I18: s0403m2.mul | J18: " , "title":" | K18: Chakkanipātapāḷi | L18: " , "c1":" | M18: mūla | N18: " , "c2":" | O18: sutta | P18: " , "c3":" | Q18: aṅguttara | R18: " , "c4":" | T18: " },
A19: 11.47 | B19: { "name":" | C19: an7 | D19: " , "row":" | E19: 90 | F19: " , "id":"p | G19: 90 | H19: " , "folder":" | I19: s0403m3.mul | J19: " , "title":" | K19: Sattakanipātapāḷi | L19: " , "c1":" | M19: mūla | N19: " , "c2":" | O19: sutta | P19: " , "c3":" | Q19: aṅguttara | R19: " , "c4":" | T19: " },
A20: 11.48 | B20: { "name":" | C20: an8 | D20: " , "row":" | E20: 91 | F20: " , "id":"p | G20: 91 | H20: " , "folder":" | I20: s0404m1.mul | J20: " , "title":" | K20: Aṭṭhakanipātapāḷi | L20: " , "c1":" | M20: mūla | N20: " , "c2":" | O20: sutta | P20: " , "c3":" | Q20: aṅguttara | R20: " , "c4":" | T20: " },
A21: 11.49 | B21: { "name":" | C21: an9 | D21: " , "row":" | E21: 92 | F21: " , "id":"p | G21: 92 | H21: " , "folder":" | I21: s0404m2.mul | J21: " , "title":" | K21: Navakanipātapāḷi | L21: " , "c1":" | M21: mūla | N21: " , "c2":" | O21: sutta | P21: " , "c3":" | Q21: aṅguttara | R21: " , "c4":" | T21: " },
A22: 11.491 | B22: { "name":" | C22: an10 | D22: " , "row":" | E22: 82 | F22: " , "id":"p | G22: 82 | H22: " , "folder":" | I22: s0404m3.mul | J22: " , "title":" | K22: Dasakanipātapāḷi | L22: " , "c1":" | M22: mūla | N22: " , "c2":" | O22: sutta | P22: " , "c3":" | Q22: aṅguttara | R22: " , "c4":" | T22: " },
A23: 11.492 | B23: { "name":" | C23: an11 | D23: " , "row":" | E23: 83 | F23: " , "id":"p | G23: 83 | H23: " , "folder":" | I23: s0404m4.mul | J23: " , "title":" | K23: Ekādasakanipātapāḷi | L23: " , "c1":" | M23: mūla | N23: " , "c2":" | O23: sutta | P23: " , "c3":" | Q23: aṅguttara | R23: " , "c4":" | T23: " },
A24: 11.51 | B24: { "name":" | C24: kn1 | D24: " , "row":" | E24: 154 | F24: " , "id":"p | G24: 154 | H24: " , "folder":" | I24: s0501m.mul | J24: " , "title":" | K24: Khuddakapāṭhapāḷi | L24: " , "c1":" | M24: mūla | N24: " , "c2":" | O24: sutta | P24: " , "c3":" | Q24: khuddaka | R24: " , "c4":" | T24: " },
A25: 11.52 | B25: { "name":" | C25: kn2 | D25: " , "row":" | E25: 156 | F25: " , "id":"p | G25: 156 | H25: " , "folder":" | I25: s0502m.mul | J25: " , "title":" | K25: Dhammapadapāḷi | L25: " , "c1":" | M25: mūla | N25: " , "c2":" | O25: sutta | P25: " , "c3":" | Q25: khuddaka | R25: " , "c4":" | T25: " },
A26: 11.53 | B26: { "name":" | C26: kn3 | D26: " , "row":" | E26: 157 | F26: " , "id":"p | G26: 157 | H26: " , "folder":" | I26: s0503m.mul | J26: " , "title":" | K26: Udānapāḷi | L26: " , "c1":" | M26: mūla | N26: " , "c2":" | O26: sutta | P26: " , "c3":" | Q26: khuddaka | R26: " , "c4":" | T26: " },
A27: 11.54 | B27: { "name":" | C27: kn4 | D27: " , "row":" | E27: 158 | F27: " , "id":"p | G27: 158 | H27: " , "folder":" | I27: s0504m.mul | J27: " , "title":" | K27: Itivuttakapāḷi | L27: " , "c1":" | M27: mūla | N27: " , "c2":" | O27: sutta | P27: " , "c3":" | Q27: khuddaka | R27: " , "c4":" | T27: " },
A28: 11.55 | B28: { "name":" | C28: kn5 | D28: " , "row":" | E28: 159 | F28: " , "id":"p | G28: 159 | H28: " , "folder":" | I28: s0505m.mul | J28: " , "title":" | K28: Suttanipātapāḷi | L28: " , "c1":" | M28: mūla | N28: " , "c2":" | O28: sutta | P28: " , "c3":" | Q28: khuddaka | R28: " , "c4":" | T28: " },
A29: 11.56 | B29: { "name":" | C29: kn6 | D29: " , "row":" | E29: 160 | F29: " , "id":"p | G29: 160 | H29: " , "folder":" | I29: s0506m.mul | J29: " , "title":" | K29: Vimānavatthupāḷi | L29: " , "c1":" | M29: mūla | N29: " , "c2":" | O29: sutta | P29: " , "c3":" | Q29: khuddaka | R29: " , "c4":" | T29: " },
A30: 11.57 | B30: { "name":" | C30: kn7 | D30: " , "row":" | E30: 161 | F30: " , "id":"p | G30: 161 | H30: " , "folder":" | I30: s0507m.mul | J30: " , "title":" | K30: Petavatthupāḷi | L30: " , "c1":" | M30: mūla | N30: " , "c2":" | O30: sutta | P30: " , "c3":" | Q30: khuddaka | R30: " , "c4":" | T30: " },
A31: 11.575 | B31: { "name":" | C31: kn8 | D31: " , "row":" | E31: 162 | F31: " , "id":"p | G31: 162 | H31: " , "folder":" | I31: s0508m.mul | J31: " , "title":" | K31: Theragāthāpāḷi | L31: " , "c1":" | M31: mūla | N31: " , "c2":" | O31: sutta | P31: " , "c3":" | Q31: khuddaka | R31: " , "c4":" | T31: " },
A32: 11.58 | B32: { "name":" | C32: kn9 | D32: " , "row":" | E32: 163 | F32: " , "id":"p | G32: 163 | H32: " , "folder":" | I32: s0509m.mul | J32: " , "title":" | K32: Therīgāthāpāḷi | L32: " , "c1":" | M32: mūla | N32: " , "c2":" | O32: sutta | P32: " , "c3":" | Q32: khuddaka | R32: " , "c4":" | T32: " },
A33: 11.581 | B33: { "name":" | C33: kn10 | D33: " , "row":" | E33: 143 | F33: " , "id":"p | G33: 143 | H33: " , "folder":" | I33: s0510m1.mul | J33: " , "title":" | K33: Therāpadānapāḷi(Paṭhamo bhāgo) | L33: " , "c1":" | M33: mūla | N33: " , "c2":" | O33: sutta | P33: " , "c3":" | Q33: khuddaka | R33: " , "c4":" | T33: " },
A34: 11.582 | B34: { "name":" | C34: kn11 | D34: " , "row":" | E34: 144 | F34: " , "id":"p | G34: 144 | H34: " , "folder":" | I34: s0510m2.mul | J34: " , "title":" | K34: Therāpadānapāḷi(Dutiyo bhāgo) | L34: " , "c1":" | M34: mūla | N34: " , "c2":" | O34: sutta | P34: " , "c3":" | Q34: khuddaka | R34: " , "c4":" | T34: " },
A35: 11.583 | B35: { "name":" | C35: kn12 | D35: " , "row":" | E35: 145 | F35: " , "id":"p | G35: 145 | H35: " , "folder":" | I35: s0511m.mul | J35: " , "title":" | K35: Buddhavaṃsapāḷi | L35: " , "c1":" | M35: mūla | N35: " , "c2":" | O35: sutta | P35: " , "c3":" | Q35: khuddaka | R35: " , "c4":" | T35: " },
A36: 11.584 | B36: { "name":" | C36: kn13 | D36: " , "row":" | E36: 146 | F36: " , "id":"p | G36: 146 | H36: " , "folder":" | I36: s0512m.mul | J36: " , "title":" | K36: Cariyāpiṭakapāḷi | L36: " , "c1":" | M36: mūla | N36: " , "c2":" | O36: sutta | P36: " , "c3":" | Q36: khuddaka | R36: " , "c4":" | T36: " },
A37: 11.585 | B37: { "name":" | C37: kn14b | D37: " , "row":" | E37: 147 | F37: " , "id":"p | G37: 147 | H37: " , "folder":" | I37: s0514m.mul | J37: " , "title":" | K37: Jātakapāḷi(Dutiyo bhāgo) | L37: " , "c1":" | M37: mūla | N37: " , "c2":" | O37: sutta | P37: " , "c3":" | Q37: khuddaka | R37: " , "c4":" | T37: " },
A38: 11.586 | B38: { "name":" | C38: kn14 | D38: " , "row":" | E38: 148 | F38: " , "id":"p | G38: 148 | H38: " , "folder":" | I38: s0513m.mul | J38: " , "title":" | K38: Jātakapāḷi(Paṭhamo bhāgo) | L38: " , "c1":" | M38: mūla | N38: " , "c2":" | O38: sutta | P38: " , "c3":" | Q38: khuddaka | R38: " , "c4":" | T38: " },
A39: 11.587 | B39: { "name":" | C39: kn15 | D39: " , "row":" | E39: 149 | F39: " , "id":"p | G39: 149 | H39: " , "folder":" | I39: s0515m.mul | J39: " , "title":" | K39: Mahāniddesapāḷi | L39: " , "c1":" | M39: mūla | N39: " , "c2":" | O39: sutta | P39: " , "c3":" | Q39: khuddaka | R39: " , "c4":" | T39: " },
A40: 11.588 | B40: { "name":" | C40: kn16 | D40: " , "row":" | E40: 150 | F40: " , "id":"p | G40: 150 | H40: " , "folder":" | I40: s0516m.mul | J40: " , "title":" | K40: Cūḷaniddesapāḷi | L40: " , "c1":" | M40: mūla | N40: " , "c2":" | O40: sutta | P40: " , "c3":" | Q40: khuddaka | R40: " , "c4":" | T40: " },
A41: 11.589 | B41: { "name":" | C41: kn17 | D41: " , "row":" | E41: 151 | F41: " , "id":"p | G41: 151 | H41: " , "folder":" | I41: s0517m.mul | J41: " , "title":" | K41: Paṭisambhidāmaggapāḷi | L41: " , "c1":" | M41: mūla | N41: " , "c2":" | O41: sutta | P41: " , "c3":" | Q41: khuddaka | R41: " , "c4":" | T41: " },
A42: 11.59 | B42: { "name":" | C42: kn18 | D42: " , "row":" | E42: 152 | F42: " , "id":"p | G42: 152 | H42: " , "folder":" | I42: s0518m.nrf | J42: " , "title":" | K42: Milindapañhapāḷi | L42: " , "c1":" | M42: mūla | N42: " , "c2":" | O42: sutta | P42: " , "c3":" | Q42: khuddaka | R42: " , "c4":" | T42: " },
A43: 11.591 | B43: { "name":" | C43: kn19 | D43: " , "row":" | E43: 153 | F43: " , "id":"p | G43: 153 | H43: " , "folder":" | I43: s0519m.mul | J43: " , "title":" | K43: Nettippakaraṇapāḷi | L43: " , "c1":" | M43: mūla | N43: " , "c2":" | O43: sutta | P43: " , "c3":" | Q43: khuddaka | R43: " , "c4":" | T43: " },
A44: 11.592 | B44: { "name":" | C44: kn20 | D44: " , "row":" | E44: 155 | F44: " , "id":"p | G44: 155 | H44: " , "folder":" | I44: s0520m.nrf | J44: " , "title":" | K44: Peṭakopadesapāḷi | L44: " , "c1":" | M44: mūla | N44: " , "c2":" | O44: sutta | P44: " , "c3":" | Q44: khuddaka | R44: " , "c4":" | T44: " },
A45: 12.11 | B45: { "name":" | C45: vin1 | D45: " , "row":" | E45: 213 | F45: " , "id":"p | G45: 213 | H45: " , "folder":" | I45: vin01m.mul | J45: " , "title":" | K45: Pārājikapāḷi | L45: " , "c1":" | M45: mūla | N45: " , "c2":" | O45: vinaya | P45: " , "c3":" | R45: " , "c4":" | T45: " },
A46: 12.12 | B46: { "name":" | C46: vin2 | D46: " , "row":" | E46: 214 | F46: " , "id":"p | G46: 214 | H46: " , "folder":" | I46: vin02m1.mul | J46: " , "title":" | K46: Pācittiyapāḷi | L46: " , "c1":" | M46: mūla | N46: " , "c2":" | O46: vinaya | P46: " , "c3":" | R46: " , "c4":" | T46: " },
A47: 12.21 | B47: { "name":" | C47: vin3 | D47: " , "row":" | E47: 215 | F47: " , "id":"p | G47: 215 | H47: " , "folder":" | I47: vin02m2.mul | J47: " , "title":" | K47: Mahāvaggapāḷi | L47: " , "c1":" | M47: mūla | N47: " , "c2":" | O47: vinaya | P47: " , "c3":" | R47: " , "c4":" | T47: " },
A48: 12.22 | B48: { "name":" | C48: vin4 | D48: " , "row":" | E48: 216 | F48: " , "id":"p | G48: 216 | H48: " , "folder":" | I48: vin02m3.mul | J48: " , "title":" | K48: Cūḷavaggapāḷi | L48: " , "c1":" | M48: mūla | N48: " , "c2":" | O48: vinaya | P48: " , "c3":" | R48: " , "c4":" | T48: " },
A49: 12.31 | B49: { "name":" | C49: vin5 | D49: " , "row":" | E49: 217 | F49: " , "id":"p | G49: 217 | H49: " , "folder":" | I49: vin02m4.mul | J49: " , "title":" | K49: Parivārapāḷi | L49: " , "c1":" | M49: mūla | N49: " , "c2":" | O49: vinaya | P49: " , "c3":" | R49: " , "c4":" | T49: " }
A50: 13.1 | B50: { "name":" | C50: abhp1 | D50: " , "row":" | E50: 73 | F50: " , "id":"p | G50: 73 | H50: " , "folder":" | I50: abh01m.mul | J50: " , "title":" | K50: Dhammasaṅgaṇīpāḷi | L50: " , "c1":" | M50: mūla | N50: " , "c2":" | O50: abhidhamma | P50: " , "c3":" | R50: " , "c4":" | T50: " },
A51: 13.2 | B51: { "name":" | C51: abhp2 | D51: " , "row":" | E51: 74 | F51: " , "id":"p | G51: 74 | H51: " , "folder":" | I51: abh02m.mul | J51: " , "title":" | K51: Vibhaṅgapāḷi | L51: " , "c1":" | M51: mūla | N51: " , "c2":" | O51: abhidhamma | P51: " , "c3":" | R51: " , "c4":" | T51: " },
A52: 13.3 | B52: { "name":" | C52: abhp3 | D52: " , "row":" | E52: 75 | F52: " , "id":"p | G52: 75 | H52: " , "folder":" | I52: abh03m1.mul | J52: " , "title":" | K52: Dhātukathāpāḷi | L52: " , "c1":" | M52: mūla | N52: " , "c2":" | O52: abhidhamma | P52: " , "c3":" | R52: " , "c4":" | T52: " },
A53: 13.4 | B53: { "name":" | C53: abhp4 | D53: " , "row":" | E53: 76 | F53: " , "id":"p | G53: 76 | H53: " , "folder":" | I53: abh03m2.mul | J53: " , "title":" | K53: Puggalapaññattipāḷi | L53: " , "c1":" | M53: mūla | N53: " , "c2":" | O53: abhidhamma | P53: " , "c3":" | R53: " , "c4":" | T53: " },
A54: 13.5 | B54: { "name":" | C54: abhp5 | D54: " , "row":" | E54: 77 | F54: " , "id":"p | G54: 77 | H54: " , "folder":" | I54: abh03m3.mul | J54: " , "title":" | K54: Kathāvatthupāḷi | L54: " , "c1":" | M54: mūla | N54: " , "c2":" | O54: abhidhamma | P54: " , "c3":" | R54: " , "c4":" | T54: " },
A55: 13.61 | B55: { "name":" | C55: abhp6 | D55: " , "row":" | E55: 78 | F55: " , "id":"p | G55: 78 | H55: " , "folder":" | I55: abh03m4.mul | J55: " , "title":" | K55: Yamakapāḷi (paṭhamo bhāgo) | L55: " , "c1":" | M55: mūla | N55: " , "c2":" | O55: abhidhamma | P55: " , "c3":" | R55: " , "c4":" | T55: " },
A56: 13.62 | B56: { "name":" | C56: abhp7 | D56: " , "row":" | E56: 79 | F56: " , "id":"p | G56: 79 | H56: " , "folder":" | I56: abh03m5.mul | J56: " , "title":" | K56: Yamakapāḷi (dutiyo bhāgo) | L56: " , "c1":" | M56: mūla | N56: " , "c2":" | O56: abhidhamma | P56: " , "c3":" | R56: " , "c4":" | T56: " },
A57: 13.63 | B57: { "name":" | C57: abhp8 | D57: " , "row":" | E57: 80 | F57: " , "id":"p | G57: 80 | H57: " , "folder":" | I57: abh03m6.mul | J57: " , "title":" | K57: Yamakapāḷi (tatiyo bhāgo) | L57: " , "c1":" | M57: mūla | N57: " , "c2":" | O57: abhidhamma | P57: " , "c3":" | R57: " , "c4":" | T57: " },
A58: 13.71 | B58: { "name":" | C58: abhp9 | D58: " , "row":" | E58: 81 | F58: " , "id":"p | G58: 81 | H58: " , "folder":" | I58: abh03m7.mul | J58: " , "title":" | K58: Paṭṭhānapāḷi(Paṭhamo bhāgo) | L58: " , "c1":" | M58: mūla | N58: " , "c2":" | O58: abhidhamma | P58: " , "c3":" | R58: " , "c4":" | T58: " },
A59: 13.72 | B59: { "name":" | C59: abhp10 | D59: " , "row":" | E59: 69 | F59: " , "id":"p | G59: 69 | H59: " , "folder":" | I59: abh03m8.mul | J59: " , "title":" | K59: Paṭṭhānapāḷi(Dutiyo bhāgo) | L59: " , "c1":" | M59: mūla | N59: " , "c2":" | O59: abhidhamma | P59: " , "c3":" | R59: " , "c4":" | T59: " },
A60: 13.73 | B60: { "name":" | C60: abhp11 | D60: " , "row":" | E60: 70 | F60: " , "id":"p | G60: 70 | H60: " , "folder":" | I60: abh03m9.mul | J60: " , "title":" | K60: Paṭṭhānapāḷi(Tatiyo bhāgo) | L60: " , "c1":" | M60: mūla | N60: " , "c2":" | O60: abhidhamma | P60: " , "c3":" | R60: " , "c4":" | T60: " },
A61: 13.74 | B61: { "name":" | C61: abhp12 | D61: " , "row":" | E61: 71 | F61: " , "id":"p | G61: 71 | H61: " , "folder":" | I61: abh03m10.mul | J61: " , "title":" | K61: Paṭṭhānapāḷi(Catuttho bhāgo) | L61: " , "c1":" | M61: mūla | N61: " , "c2":" | O61: abhidhamma | P61: " , "c3":" | R61: " , "c4":" | T61: " },
A62: 13.75 | B62: { "name":" | C62: abhp13 | D62: " , "row":" | E62: 72 | F62: " , "id":"p | G62: 72 | H62: " , "folder":" | I62: abh03m11.mul | J62: " , "title":" | K62: Paṭṭhānapāḷi(Pañcamo bhāgo) | L62: " , "c1":" | M62: mūla | N62: " , "c2":" | O62: abhidhamma | P62: " , "c3":" | R62: " , "c4":" | T62: " },
A63: 21.11 | B63: { "name":" | C63: k-dn1 | D63: " , "row":" | E63: 103 | F63: " , "id":"p | G63: 103 | H63: " , "folder":" | I63: s0101a.att | J63: " , "title":" | K63: Sīlakkhandhavaggaṭṭhakathā | L63: " , "c1":" | M63: aṭṭhakathā | N63: " , "c2":" | O63: sutta | P63: " , "c3":" | Q63: dīgha | R63: " , "c4":" | T63: " },
A64: 21.12 | B64: { "name":" | C64: k-dn2 | D64: " , "row":" | E64: 104 | F64: " , "id":"p | G64: 104 | H64: " , "folder":" | I64: s0102a.att | J64: " , "title":" | K64: Mahāvaggaṭṭhakathā | L64: " , "c1":" | M64: aṭṭhakathā | N64: " , "c2":" | O64: sutta | P64: " , "c3":" | Q64: dīgha | R64: " , "c4":" | T64: " },
A65: 21.13 | B65: { "name":" | C65: k-dn3 | D65: " , "row":" | E65: 105 | F65: " , "id":"p | G65: 105 | H65: " , "folder":" | I65: s0103a.att | J65: " , "title":" | K65: Pāthikavaggaṭṭhakathā | L65: " , "c1":" | M65: aṭṭhakathā | N65: " , "c2":" | O65: sutta | P65: " , "c3":" | Q65: dīgha | R65: " , "c4":" | T65: " },
A66: 21.21 | B66: { "name":" | C66: k-mn1 | D66: " , "row":" | E66: 130 | F66: " , "id":"p | G66: 130 | H66: " , "folder":" | I66: s0201a.att | J66: " , "title":" | K66: Mūlapaṇṇāsa-aṭṭhakathā | L66: " , "c1":" | M66: aṭṭhakathā | N66: " , "c2":" | O66: sutta | P66: " , "c3":" | Q66: majjhima | R66: " , "c4":" | T66: " },
A67: 21.22 | B67: { "name":" | C67: k-mn2 | D67: " , "row":" | E67: 131 | F67: " , "id":"p | G67: 131 | H67: " , "folder":" | I67: s0202a.att | J67: " , "title":" | K67: Majjhimapaṇṇāsa-aṭṭhakathā | L67: " , "c1":" | M67: aṭṭhakathā | N67: " , "c2":" | O67: sutta | P67: " , "c3":" | Q67: majjhima | R67: " , "c4":" | T67: " },
A68: 21.23 | B68: { "name":" | C68: k-mn3 | D68: " , "row":" | E68: 132 | F68: " , "id":"p | G68: 132 | H68: " , "folder":" | I68: s0203a.att | J68: " , "title":" | K68: Uparipaṇṇāsa-aṭṭhakathā | L68: " , "c1":" | M68: aṭṭhakathā | N68: " , "c2":" | O68: sutta | P68: " , "c3":" | Q68: majjhima | R68: " , "c4":" | T68: " },
A69: 21.31 | B69: { "name":" | C69: k-sn1 | D69: " , "row":" | E69: 133 | F69: " , "id":"p | G69: 133 | H69: " , "folder":" | I69: s0301a.att | J69: " , "title":" | K69: Sagāthāvagga-aṭṭhakathā | L69: " , "c1":" | M69: aṭṭhakathā | N69: " , "c2":" | O69: sutta | P69: " , "c3":" | Q69: saṃyutta | R69: " , "c4":" | T69: " },
A70: 21.32 | B70: { "name":" | C70: k-sn2 | D70: " , "row":" | E70: 134 | F70: " , "id":"p | G70: 134 | H70: " , "folder":" | I70: s0302a.att | J70: " , "title":" | K70: Nidānavagga-aṭṭhakathā | L70: " , "c1":" | M70: aṭṭhakathā | N70: " , "c2":" | O70: sutta | P70: " , "c3":" | Q70: saṃyutta | R70: " , "c4":" | T70: " },
A71: 21.33 | B71: { "name":" | C71: k-sn3 | D71: " , "row":" | E71: 135 | F71: " , "id":"p | G71: 135 | H71: " , "folder":" | I71: s0303a.att | J71: " , "title":" | K71: Khandhavagga-aṭṭhakathā | L71: " , "c1":" | M71: aṭṭhakathā | N71: " , "c2":" | O71: sutta | P71: " , "c3":" | Q71: saṃyutta | R71: " , "c4":" | T71: " },
A72: 21.34 | B72: { "name":" | C72: k-sn4 | D72: " , "row":" | E72: 136 | F72: " , "id":"p | G72: 136 | H72: " , "folder":" | I72: s0304a.att | J72: " , "title":" | K72: Saḷāyatanavagga-aṭṭhakathā | L72: " , "c1":" | M72: aṭṭhakathā | N72: " , "c2":" | O72: sutta | P72: " , "c3":" | Q72: saṃyutta | R72: " , "c4":" | T72: " },
A73: 21.35 | B73: { "name":" | C73: k-sn5 | D73: " , "row":" | E73: 137 | F73: " , "id":"p | G73: 137 | H73: " , "folder":" | I73: s0305a.att | J73: " , "title":" | K73: Mahāvagga-aṭṭhakathā | L73: " , "c1":" | M73: aṭṭhakathā | N73: " , "c2":" | O73: sutta | P73: " , "c3":" | Q73: saṃyutta | R73: " , "c4":" | T73: " },
A74: 21.41 | B74: { "name":" | C74: k-an1 | D74: " , "row":" | E74: 99 | F74: " , "id":"p | G74: 99 | H74: " , "folder":" | I74: s0401a.att | J74: " , "title":" | K74: Ekakanipāta-aṭṭhakathā | L74: " , "c1":" | M74: aṭṭhakathā | N74: " , "c2":" | O74: sutta | P74: " , "c3":" | Q74: aṅguttara | R74: " , "c4":" | T74: " },
A75: 21.42 | B75: { "name":" | C75: k-an2 | D75: " , "row":" | E75: 100 | F75: " , "id":"p | G75: 100 | H75: " , "folder":" | I75: s0402a.att | J75: " , "title":" | K75: Dukanipāta-aṭṭhakathā | L75: " , "c1":" | M75: aṭṭhakathā | N75: " , "c2":" | O75: sutta | P75: " , "c3":" | Q75: aṅguttara | R75: " , "c4":" | T75: " },
A76: 21.43 | B76: { "name":" | C76: k-an5 | D76: " , "row":" | E76: 101 | F76: " , "id":"p | G76: 101 | H76: " , "folder":" | I76: s0403a.att | J76: " , "title":" | K76: Pañcakanipāta-aṭṭhakathā | L76: " , "c1":" | M76: aṭṭhakathā | N76: " , "c2":" | O76: sutta | P76: " , "c3":" | Q76: aṅguttara | R76: " , "c4":" | T76: " },
A77: 21.44 | B77: { "name":" | C77: k-an8 | D77: " , "row":" | E77: 102 | F77: " , "id":"p | G77: 102 | H77: " , "folder":" | I77: s0404a.att | J77: " , "title":" | K77: Aṭṭhakanipāta-aṭṭhakathā | L77: " , "c1":" | M77: aṭṭhakathā | N77: " , "c2":" | O77: sutta | P77: " , "c3":" | Q77: aṅguttara | R77: " , "c4":" | T77: " },
A78: 21.51 | B78: { "name":" | C78: k-kn1 | D78: " , "row":" | E78: 116 | F78: " , "id":"p | G78: 116 | H78: " , "folder":" | I78: s0501a.att | J78: " , "title":" | K78: Khuddakapāṭha-aṭṭhakathā | L78: " , "c1":" | M78: aṭṭhakathā | N78: " , "c2":" | O78: sutta | P78: " , "c3":" | Q78: khuddaka | R78: " , "c4":" | T78: " },
A79: 21.52 | B79: { "name":" | C79: k-kn2 | D79: " , "row":" | E79: 122 | F79: " , "id":"p | G79: 122 | H79: " , "folder":" | I79: s0502a.att | J79: " , "title":" | K79: Dhammapada-aṭṭhakathā | L79: " , "c1":" | M79: aṭṭhakathā | N79: " , "c2":" | O79: sutta | P79: " , "c3":" | Q79: khuddaka | R79: " , "c4":" | T79: " },
A80: 21.53 | B80: { "name":" | C80: k-kn3 | D80: " , "row":" | E80: 123 | F80: " , "id":"p | G80: 123 | H80: " , "folder":" | I80: s0503a.att | J80: " , "title":" | K80: Udāna-aṭṭhakathā | L80: " , "c1":" | M80: aṭṭhakathā | N80: " , "c2":" | O80: sutta | P80: " , "c3":" | Q80: khuddaka | R80: " , "c4":" | T80: " },
A81: 21.54 | B81: { "name":" | C81: k-kn4 | D81: " , "row":" | E81: 124 | F81: " , "id":"p | G81: 124 | H81: " , "folder":" | I81: s0504a.att | J81: " , "title":" | K81: Itivuttaka-aṭṭhakathā | L81: " , "c1":" | M81: aṭṭhakathā | N81: " , "c2":" | O81: sutta | P81: " , "c3":" | Q81: khuddaka | R81: " , "c4":" | T81: " },
A82: 21.55 | B82: { "name":" | C82: k-kn5 | D82: " , "row":" | E82: 125 | F82: " , "id":"p | G82: 125 | H82: " , "folder":" | I82: s0505a.att | J82: " , "title":" | K82: Suttanipāta-aṭṭhakathā | L82: " , "c1":" | M82: aṭṭhakathā | N82: " , "c2":" | O82: sutta | P82: " , "c3":" | Q82: khuddaka | R82: " , "c4":" | T82: " },
A83: 21.56 | B83: { "name":" | C83: k-kn6 | D83: " , "row":" | E83: 126 | F83: " , "id":"p | G83: 126 | H83: " , "folder":" | I83: s0506a.att | J83: " , "title":" | K83: Vimānavatthu-aṭṭhakathā | L83: " , "c1":" | M83: aṭṭhakathā | N83: " , "c2":" | O83: sutta | P83: " , "c3":" | Q83: khuddaka | R83: " , "c4":" | T83: " },
A84: 21.57 | B84: { "name":" | C84: k-kn7 | D84: " , "row":" | E84: 127 | F84: " , "id":"p | G84: 127 | H84: " , "folder":" | I84: s0507a.att | J84: " , "title":" | K84: Petavatthu-aṭṭhakathā | L84: " , "c1":" | M84: aṭṭhakathā | N84: " , "c2":" | O84: sutta | P84: " , "c3":" | Q84: khuddaka | R84: " , "c4":" | T84: " },
A85: 21.58 | B85: { "name":" | C85: k-kn8 | D85: " , "row":" | E85: 128 | F85: " , "id":"p | G85: 128 | H85: " , "folder":" | I85: s0508a1.att | J85: " , "title":" | K85: Theragāthā-aṭṭhakathā(Paṭhamo bhāgo) | L85: " , "c1":" | M85: aṭṭhakathā | N85: " , "c2":" | O85: sutta | P85: " , "c3":" | Q85: khuddaka | R85: " , "c4":" | T85: " },
A86: 21.581 | B86: { "name":" | C86: k-kn9 | D86: " , "row":" | E86: 129 | F86: " , "id":"p | G86: 129 | H86: " , "folder":" | I86: s0508a2.att | J86: " , "title":" | K86: Theragāthā-aṭṭhakathā(Dutiyo bhāgo) | L86: " , "c1":" | M86: aṭṭhakathā | N86: " , "c2":" | O86: sutta | P86: " , "c3":" | Q86: khuddaka | R86: " , "c4":" | T86: " },
A87: 21.582 | B87: { "name":" | C87: k-kn10 | D87: " , "row":" | E87: 106 | F87: " , "id":"p | G87: 106 | H87: " , "folder":" | I87: s0509a.att | J87: " , "title":" | K87: Therīgāthā-aṭṭhakathā | L87: " , "c1":" | M87: aṭṭhakathā | N87: " , "c2":" | O87: sutta | P87: " , "c3":" | Q87: khuddaka | R87: " , "c4":" | T87: " },
A88: 21.583 | B88: { "name":" | C88: k-kn11 | D88: " , "row":" | E88: 107 | F88: " , "id":"p | G88: 107 | H88: " , "folder":" | I88: s0510a.att | J88: " , "title":" | K88: Apadāna-aṭṭhakathā(Paṭhamo bhāgo) | L88: " , "c1":" | M88: aṭṭhakathā | N88: " , "c2":" | O88: sutta | P88: " , "c3":" | Q88: khuddaka | R88: " , "c4":" | T88: " },
A89: 21.584 | B89: { "name":" | C89: k-kn12 | D89: " , "row":" | E89: 108 | F89: " , "id":"p | G89: 108 | H89: " , "folder":" | I89: s0511a.att | J89: " , "title":" | K89: Buddhavaṃsa-aṭṭhakathā | L89: " , "c1":" | M89: aṭṭhakathā | N89: " , "c2":" | O89: sutta | P89: " , "c3":" | Q89: khuddaka | R89: " , "c4":" | T89: " },
A90: 21.585 | B90: { "name":" | C90: k-kn13 | D90: " , "row":" | E90: 109 | F90: " , "id":"p | G90: 109 | H90: " , "folder":" | I90: s0512a.att | J90: " , "title":" | K90: Cariyāpiṭaka-aṭṭhakathā | L90: " , "c1":" | M90: aṭṭhakathā | N90: " , "c2":" | O90: sutta | P90: " , "c3":" | Q90: khuddaka | R90: " , "c4":" | T90: " },
A91: 21.586 | B91: { "name":" | C91: k-kn14 | D91: " , "row":" | E91: 110 | F91: " , "id":"p | G91: 110 | H91: " , "folder":" | I91: s0513a1.att | J91: " , "title":" | K91: Jātaka-aṭṭhakathā(Paṭhamo bhāgo) | L91: " , "c1":" | M91: aṭṭhakathā | N91: " , "c2":" | O91: sutta | P91: " , "c3":" | Q91: khuddaka | R91: " , "c4":" | T91: " },
A92: 21.587 | B92: { "name":" | C92: k-kn15 | D92: " , "row":" | E92: 111 | F92: " , "id":"p | G92: 111 | H92: " , "folder":" | I92: s0513a2.att | J92: " , "title":" | K92: Jātaka-aṭṭhakathā(Dutiyo bhāgo) | L92: " , "c1":" | M92: aṭṭhakathā | N92: " , "c2":" | O92: sutta | P92: " , "c3":" | Q92: khuddaka | R92: " , "c4":" | T92: " },
A93: 21.588 | B93: { "name":" | C93: k-kn16 | D93: " , "row":" | E93: 112 | F93: " , "id":"p | G93: 112 | H93: " , "folder":" | I93: s0513a3.att | J93: " , "title":" | K93: Jātaka-aṭṭhakathā(Tatiyo bhāgo) | L93: " , "c1":" | M93: aṭṭhakathā | N93: " , "c2":" | O93: sutta | P93: " , "c3":" | Q93: khuddaka | R93: " , "c4":" | T93: " },
A94: 21.589 | B94: { "name":" | C94: k-kn17 | D94: " , "row":" | E94: 113 | F94: " , "id":"p | G94: 113 | H94: " , "folder":" | I94: s0513a4.att | J94: " , "title":" | K94: Jātaka-aṭṭhakathā(Catuttho bhāgo) | L94: " , "c1":" | M94: aṭṭhakathā | N94: " , "c2":" | O94: sutta | P94: " , "c3":" | Q94: khuddaka | R94: " , "c4":" | T94: " },
A95: 21.59 | B95: { "name":" | C95: k-kn18 | D95: " , "row":" | E95: 114 | F95: " , "id":"p | G95: 114 | H95: " , "folder":" | I95: s0514a1.att | J95: " , "title":" | K95: Jātaka-aṭṭhakathā(Pañcamo bhāgo) | L95: " , "c1":" | M95: aṭṭhakathā | N95: " , "c2":" | O95: sutta | P95: " , "c3":" | Q95: khuddaka | R95: " , "c4":" | T95: " },
A96: 21.591 | B96: { "name":" | C96: k-kn19 | D96: " , "row":" | E96: 115 | F96: " , "id":"p | G96: 115 | H96: " , "folder":" | I96: s0514a2.att | J96: " , "title":" | K96: Jātaka-aṭṭhakathā(Chaṭṭho bhāgo) | L96: " , "c1":" | M96: aṭṭhakathā | N96: " , "c2":" | O96: sutta | P96: " , "c3":" | Q96: khuddaka | R96: " , "c4":" | T96: " },
A97: 21.592 | B97: { "name":" | C97: k-kn20 | D97: " , "row":" | E97: 117 | F97: " , "id":"p | G97: 117 | H97: " , "folder":" | I97: s0514a3.att | J97: " , "title":" | K97: Jātaka-aṭṭhakathā(Sattamo bhāgo) | L97: " , "c1":" | M97: aṭṭhakathā | N97: " , "c2":" | O97: sutta | P97: " , "c3":" | Q97: khuddaka | R97: " , "c4":" | T97: " },
A98: 21.593 | B98: { "name":" | C98: k-kn21 | D98: " , "row":" | E98: 118 | F98: " , "id":"p | G98: 118 | H98: " , "folder":" | I98: s0515a.att | J98: " , "title":" | K98: Mahāniddesa-aṭṭhakathā | L98: " , "c1":" | M98: aṭṭhakathā | N98: " , "c2":" | O98: sutta | P98: " , "c3":" | Q98: khuddaka | R98: " , "c4":" | T98: " },
A99: 21.594 | B99: { "name":" | C99: k-kn22 | D99: " , "row":" | E99: 119 | F99: " , "id":"p | G99: 119 | H99: " , "folder":" | I99: s0516a.att | J99: " , "title":" | K99: Cūḷaniddesa-aṭṭhakathā | L99: " , "c1":" | M99: aṭṭhakathā | N99: " , "c2":" | O99: sutta | P99: " , "c3":" | Q99: khuddaka | R99: " , "c4":" | T99: " },
A100: 21.595 | B100: { "name":" | C100: k-kn23 | D100: " , "row":" | E100: 120 | F100: " , "id":"p | G100: 120 | H100: " , "folder":" | I100: s0517a.att | J100: " , "title":" | K100: Paṭisambhidāmagga-aṭṭhakathā(Paṭhamo bhāgo) | L100: " , "c1":" | M100: aṭṭhakathā | N100: " , "c2":" | O100: sutta | P100: " , "c3":" | Q100: khuddaka | R100: " , "c4":" | T100: " },
A101: 21.596 | B101: { "name":" | C101: k-kn24 | D101: " , "row":" | E101: 121 | F101: " , "id":"p | G101: 121 | H101: " , "folder":" | I101: s0519a.att | J101: " , "title":" | K101: Nettippakaraṇa-aṭṭhakathā | L101: " , "c1":" | M101: aṭṭhakathā | N101: " , "c2":" | O101: sutta | P101: " , "c3":" | Q101: khuddaka | R101: " , "c4":" | T101: " },
A102: 22.11 | B102: { "name":" | C102: k-vin1 | D102: " , "row":" | E102: 138 | F102: " , "id":"p | G102: 138 | H102: " , "folder":" | I102: vin01a.att | J102: " , "title":" | K102: Pārājikakaṇḍa-aṭṭhakathā (paṭhamo bhāgo) | L102: " , "c1":" | M102: aṭṭhakathā | N102: " , "c2":" | O102: vinaya | P102: " , "c3":" | R102: " , "c4":" | T102: " },
A103: 22.12 | B103: { "name":" | C103: k-vin2 | D103: " , "row":" | E103: 139 | F103: " , "id":"p | G103: 139 | H103: " , "folder":" | I103: vin02a1.att | J103: " , "title":" | K103: Pācittiya-aṭṭhakathā | L103: " , "c1":" | M103: aṭṭhakathā | N103: " , "c2":" | O103: vinaya | P103: " , "c3":" | R103: " , "c4":" | T103: " },
A104: 22.21 | B104: { "name":" | C104: k-vin3 | D104: " , "row":" | E104: 140 | F104: " , "id":"p | G104: 140 | H104: " , "folder":" | I104: vin02a2.att | J104: " , "title":" | K104: Mahāvagga-aṭṭhakathā | L104: " , "c1":" | M104: aṭṭhakathā | N104: " , "c2":" | O104: vinaya | P104: " , "c3":" | R104: " , "c4":" | T104: " },
A105: 22.22 | B105: { "name":" | C105: k-vin4 | D105: " , "row":" | E105: 141 | F105: " , "id":"p | G105: 141 | H105: " , "folder":" | I105: vin02a3.att | J105: " , "title":" | K105: Cūḷavagga-aṭṭhakathā | L105: " , "c1":" | M105: aṭṭhakathā | N105: " , "c2":" | O105: vinaya | P105: " , "c3":" | R105: " , "c4":" | T105: " },
A106: 22.31 | B106: { "name":" | C106: k-vin5 | D106: " , "row":" | E106: 142 | F106: " , "id":"p | G106: 142 | H106: " , "folder":" | I106: vin02a4.att | J106: " , "title":" | K106: Parivāra-aṭṭhakathā | L106: " , "c1":" | M106: aṭṭhakathā | N106: " , "c2":" | O106: vinaya | P106: " , "c3":" | R106: " , "c4":" | T106: " },
A107: 23.1 | B107: { "name":" | C107: k-abh1 | D107: " , "row":" | E107: 96 | F107: " , "id":"p | G107: 96 | H107: " , "folder":" | I107: abh01a.att | J107: " , "title":" | K107: Dhammasaṅgaṇī-aṭṭhakathā | L107: " , "c1":" | M107: aṭṭhakathā | N107: " , "c2":" | O107: abhidhamma | P107: " , "c3":" | R107: " , "c4":" | T107: " },
A108: 23.2 | B108: { "name":" | C108: k-abh2 | D108: " , "row":" | E108: 97 | F108: " , "id":"p | G108: 97 | H108: " , "folder":" | I108: abh02a.att | J108: " , "title":" | K108: Vibhaṅga-aṭṭhakathā | L108: " , "c1":" | M108: aṭṭhakathā | N108: " , "c2":" | O108: abhidhamma | P108: " , "c3":" | R108: " , "c4":" | T108: " },
A109: 23.3 | B109: { "name":" | C109: k-abh3 | D109: " , "row":" | E109: 98 | F109: " , "id":"p | G109: 98 | H109: " , "folder":" | I109: abh03a.att | J109: " , "title":" | K109: Pañcapakaraṇa-aṭṭhakathā | L109: " , "c1":" | M109: aṭṭhakathā | N109: " , "c2":" | O109: abhidhamma | P109: " , "c3":" | R109: " , "c4":" | T109: " },
A110: 31.11 | B110: { "name":" | C110: t-dn1 | D110: " , "row":" | E110: 185 | F110: " , "id":"p | G110: 185 | H110: " , "folder":" | I110: s0101t.tik | J110: " , "title":" | K110: Sīlakkhandhavaggaṭīkā | L110: " , "c1":" | M110: ṭīkā | N110: " , "c2":" | O110: sutta | P110: " , "c3":" | Q110: dīgha | R110: " , "c4":" | T110: " },
A111: 31.12 | B111: { "name":" | C111: t-dn2 | D111: " , "row":" | E111: 186 | F111: " , "id":"p | G111: 186 | H111: " , "folder":" | I111: s0102t.tik | J111: " , "title":" | K111: Mahāvaggaṭīkā | L111: " , "c1":" | M111: ṭīkā | N111: " , "c2":" | O111: sutta | P111: " , "c3":" | Q111: dīgha | R111: " , "c4":" | T111: " },
A112: 31.13 | B112: { "name":" | C112: t-dn3 | D112: " , "row":" | E112: 187 | F112: " , "id":"p | G112: 187 | H112: " , "folder":" | I112: s0103t.tik | J112: " , "title":" | K112: Pāthikavaggaṭīkā | L112: " , "c1":" | M112: ṭīkā | N112: " , "c2":" | O112: sutta | P112: " , "c3":" | Q112: dīgha | R112: " , "c4":" | T112: " },
A113: 31.14 | B113: { "name":" | C113: t-dn4 | D113: " , "row":" | E113: 188 | F113: " , "id":"p | G113: 188 | H113: " , "folder":" | I113: s0104t.nrf | J113: " , "title":" | K113: Sīlakkhandhavaggaabhinavaṭīkā | L113: " , "c1":" | M113: ṭīkā | N113: " , "c2":" | O113: sutta | P113: " , "c3":" | Q113: dīgha | R113: " , "c4":" | T113: " },
A114: 31.15 | B114: { "name":" | C114: t-dn5 | D114: " , "row":" | E114: 189 | F114: " , "id":"p | G114: 189 | H114: " , "folder":" | I114: s0105t.nrf | J114: " , "title":" | K114: Sīlakkhandhavaggaabhinavaṭīkā | L114: " , "c1":" | M114: ṭīkā | N114: " , "c2":" | O114: sutta | P114: " , "c3":" | Q114: dīgha | R114: " , "c4":" | T114: " },
A115: 31.21 | B115: { "name":" | C115: t-mn1 | D115: " , "row":" | E115: 192 | F115: " , "id":"p | G115: 192 | H115: " , "folder":" | I115: s0201t.tik | J115: " , "title":" | K115: Mūlapaṇṇāsa-ṭīkā | L115: " , "c1":" | M115: ṭīkā | N115: " , "c2":" | O115: sutta | P115: " , "c3":" | Q115: majjhima | R115: " , "c4":" | T115: " },
A116: 31.22 | B116: { "name":" | C116: t-mn2 | D116: " , "row":" | E116: 193 | F116: " , "id":"p | G116: 193 | H116: " , "folder":" | I116: s0202t.tik | J116: " , "title":" | K116: Majjhimapaṇṇāsaṭīkā | L116: " , "c1":" | M116: ṭīkā | N116: " , "c2":" | O116: sutta | P116: " , "c3":" | Q116: majjhima | R116: " , "c4":" | T116: " },
A117: 31.23 | B117: { "name":" | C117: t-mn3 | D117: " , "row":" | E117: 194 | F117: " , "id":"p | G117: 194 | H117: " , "folder":" | I117: s0203t.tik | J117: " , "title":" | K117: Uparipaṇṇāsa-ṭīkā | L117: " , "c1":" | M117: ṭīkā | N117: " , "c2":" | O117: sutta | P117: " , "c3":" | Q117: majjhima | R117: " , "c4":" | T117: " },
A118: 31.31 | B118: { "name":" | C118: t-sn1 | D118: " , "row":" | E118: 195 | F118: " , "id":"p | G118: 195 | H118: " , "folder":" | I118: s0301t.tik | J118: " , "title":" | K118: Sagāthāvaggaṭīkā | L118: " , "c1":" | M118: ṭīkā | N118: " , "c2":" | O118: sutta | P118: " , "c3":" | Q118: saṃyutta | R118: " , "c4":" | T118: " },
A119: 31.32 | B119: { "name":" | C119: t-sn2 | D119: " , "row":" | E119: 196 | F119: " , "id":"p | G119: 196 | H119: " , "folder":" | I119: s0302t.tik | J119: " , "title":" | K119: Nidānavaggaṭīkā | L119: " , "c1":" | M119: ṭīkā | N119: " , "c2":" | O119: sutta | P119: " , "c3":" | Q119: saṃyutta | R119: " , "c4":" | T119: " },
A120: 31.33 | B120: { "name":" | C120: t-sn3 | D120: " , "row":" | E120: 197 | F120: " , "id":"p | G120: 197 | H120: " , "folder":" | I120: s0303t.tik | J120: " , "title":" | K120: Khandhavaggaṭīkā | L120: " , "c1":" | M120: ṭīkā | N120: " , "c2":" | O120: sutta | P120: " , "c3":" | Q120: saṃyutta | R120: " , "c4":" | T120: " },
A121: 31.34 | B121: { "name":" | C121: t-sn4 | D121: " , "row":" | E121: 198 | F121: " , "id":"p | G121: 198 | H121: " , "folder":" | I121: s0304t.tik | J121: " , "title":" | K121: Saḷāyatanavaggaṭīkā | L121: " , "c1":" | M121: ṭīkā | N121: " , "c2":" | O121: sutta | P121: " , "c3":" | Q121: saṃyutta | R121: " , "c4":" | T121: " },
A122: 31.35 | B122: { "name":" | C122: t-sn5 | D122: " , "row":" | E122: 199 | F122: " , "id":"p | G122: 199 | H122: " , "folder":" | I122: s0305t.tik | J122: " , "title":" | K122: Mahāvaggaṭīkā | L122: " , "c1":" | M122: ṭīkā | N122: " , "c2":" | O122: sutta | P122: " , "c3":" | Q122: saṃyutta | R122: " , "c4":" | T122: " },
A123: 31.41 | B123: { "name":" | C123: t-an1 | D123: " , "row":" | E123: 181 | F123: " , "id":"p | G123: 181 | H123: " , "folder":" | I123: s0401t.tik | J123: " , "title":" | K123: Ekakanipāta-ṭīkā | L123: " , "c1":" | M123: ṭīkā | N123: " , "c2":" | O123: sutta | P123: " , "c3":" | Q123: aṅguttara | R123: " , "c4":" | T123: " },
A124: 31.42 | B124: { "name":" | C124: t-an2 | D124: " , "row":" | E124: 182 | F124: " , "id":"p | G124: 182 | H124: " , "folder":" | I124: s0402t.tik | J124: " , "title":" | K124: Dukanipāta-ṭīkā | L124: " , "c1":" | M124: ṭīkā | N124: " , "c2":" | O124: sutta | P124: " , "c3":" | Q124: aṅguttara | R124: " , "c4":" | T124: " },
A125: 31.43 | B125: { "name":" | C125: t-an3 | D125: " , "row":" | E125: 183 | F125: " , "id":"p | G125: 183 | H125: " , "folder":" | I125: s0403t.tik | J125: " , "title":" | K125: Pañcakanipāta-ṭīkā | L125: " , "c1":" | M125: ṭīkā | N125: " , "c2":" | O125: sutta | P125: " , "c3":" | Q125: aṅguttara | R125: " , "c4":" | T125: " },
A126: 31.44 | B126: { "name":" | C126: t-an4 | D126: " , "row":" | E126: 184 | F126: " , "id":"p | G126: 184 | H126: " , "folder":" | I126: s0404t.tik | J126: " , "title":" | K126: Aṭṭhakanipāta-ṭīkā | L126: " , "c1":" | M126: ṭīkā | N126: " , "c2":" | O126: sutta | P126: " , "c3":" | Q126: aṅguttara | R126: " , "c4":" | T126: " },
A127: 31.51 | B127: { "name":" | C127: t-kn1 | D127: " , "row":" | E127: 190 | F127: " , "id":"p | G127: 190 | H127: " , "folder":" | I127: s0519t.tik | J127: " , "title":" | K127: Nettippakaraṇa-ṭīkā | L127: " , "c1":" | M127: ṭīkā | N127: " , "c2":" | O127: sutta | P127: " , "c3":" | Q127: khuddaka | R127: " , "c4":" | T127: " },
A128: 31.52 | B128: { "name":" | C128: t-kn2 | D128: " , "row":" | E128: 191 | F128: " , "id":"p | G128: 191 | H128: " , "folder":" | I128: s0501t.nrf | J128: " , "title":" | K128: Nettivibhāvinī | L128: " , "c1":" | M128: ṭīkā | N128: " , "c2":" | O128: sutta | P128: " , "c3":" | Q128: khuddaka | R128: " , "c4":" | T128: " },
A129: 32.1 | B129: { "name":" | C129: t-vin1 | D129: " , "row":" | E129: 204 | F129: " , "id":"p | G129: 204 | H129: " , "folder":" | I129: vin01t1.tik | J129: " , "title":" | K129: Sāratthadīpanī-ṭīkā (paṭhamo bhāgo) | L129: " , "c1":" | M129: ṭīkā | N129: " , "c2":" | O129: vinaya | P129: " , "c3":" | R129: " , "c4":" | T129: " },
A130: 32.2 | B130: { "name":" | C130: t-vin2 | D130: " , "row":" | E130: 205 | F130: " , "id":"p | G130: 205 | H130: " , "folder":" | I130: vin01t2.tik | J130: " , "title":" | K130: Sāratthadīpanī-ṭīkā (dutiyo bhāgo) | L130: " , "c1":" | M130: ṭīkā | N130: " , "c2":" | O130: vinaya | P130: " , "c3":" | R130: " , "c4":" | T130: " },
A131: 32.3 | B131: { "name":" | C131: t-vin3 | D131: " , "row":" | E131: 206 | F131: " , "id":"p | G131: 206 | H131: " , "folder":" | I131: vin02t.tik | J131: " , "title":" | K131: Sāratthadīpanī-ṭīkā (tatiyo bhāgo) | L131: " , "c1":" | M131: ṭīkā | N131: " , "c2":" | O131: vinaya | P131: " , "c3":" | R131: " , "c4":" | T131: " },
A132: 32.4 | B132: { "name":" | C132: t-vin4 | D132: " , "row":" | E132: 207 | F132: " , "id":"p | G132: 207 | H132: " , "folder":" | I132: vin04t.nrf | J132: " , "title":" | K132: Bhikkhupātimokkhapāḷi | L132: " , "c1":" | M132: ṭīkā | N132: " , "c2":" | O132: vinaya | P132: " , "c3":" | R132: " , "c4":" | T132: " },
A133: 32.5 | B133: { "name":" | C133: t-vin5 | D133: " , "row":" | E133: 208 | F133: " , "id":"p | G133: 208 | H133: " , "folder":" | I133: vin05t.nrf | J133: " , "title":" | K133: Vinayasaṅgaha-aṭṭhakathā | L133: " , "c1":" | M133: ṭīkā | N133: " , "c2":" | O133: vinaya | P133: " , "c3":" | R133: " , "c4":" | T133: " },
A134: 32.6 | B134: { "name":" | C134: t-vin6 | D134: " , "row":" | E134: 209 | F134: " , "id":"p | G134: 209 | H134: " , "folder":" | I134: vin06t.nrf | J134: " , "title":" | K134: Vajirabuddhi-ṭīkā | L134: " , "c1":" | M134: ṭīkā | N134: " , "c2":" | O134: vinaya | P134: " , "c3":" | R134: " , "c4":" | T134: " },
A135: 32.7 | B135: { "name":" | C135: t-vin7 | D135: " , "row":" | E135: 210 | F135: " , "id":"p | G135: 210 | H135: " , "folder":" | I135: vin07t.nrf | J135: " , "title":" | K135: Vimativinodanī-ṭīkā (paṭhamo bhāgo) | L135: " , "c1":" | M135: ṭīkā | N135: " , "c2":" | O135: vinaya | P135: " , "c3":" | R135: " , "c4":" | T135: " },
A136: 32.8 | B136: { "name":" | C136: t-vin8 | D136: " , "row":" | E136: 211 | F136: " , "id":"p | G136: 211 | H136: " , "folder":" | I136: vin08t.nrf | J136: " , "title":" | K136: Vinayālaṅkāra-ṭīkā (paṭhamo bhāgo) | L136: " , "c1":" | M136: ṭīkā | N136: " , "c2":" | O136: vinaya | P136: " , "c3":" | R136: " , "c4":" | T136: " },
A137: 32.9 | B137: { "name":" | C137: t-vin9 | D137: " , "row":" | E137: 212 | F137: " , "id":"p | G137: 212 | H137: " , "folder":" | I137: vin09t.nrf | J137: " , "title":" | K137: Kaṅkhāvitaraṇīpurāṇa-ṭīkā | L137: " , "c1":" | M137: ṭīkā | N137: " , "c2":" | O137: vinaya | P137: " , "c3":" | R137: " , "c4":" | T137: " },
A138: 32.91 | B138: { "name":" | C138: t-vin10 | D138: " , "row":" | E138: 200 | F138: " , "id":"p | G138: 200 | H138: " , "folder":" | I138: vin10t.nrf | J138: " , "title":" | K138: Vinayavinicchayo | L138: " , "c1":" | M138: ṭīkā | N138: " , "c2":" | O138: vinaya | P138: " , "c3":" | R138: " , "c4":" | T138: " },
A139: 32.92 | B139: { "name":" | C139: t-vin11 | D139: " , "row":" | E139: 201 | F139: " , "id":"p | G139: 201 | H139: " , "folder":" | I139: vin11t.nrf | J139: " , "title":" | K139: Vinayavinicchayaṭīkā(Paṭhamo bhāgo) | L139: " , "c1":" | M139: ṭīkā | N139: " , "c2":" | O139: vinaya | P139: " , "c3":" | R139: " , "c4":" | T139: " },
A140: 32.93 | B140: { "name":" | C140: t-vin12 | D140: " , "row":" | E140: 202 | F140: " , "id":"p | G140: 202 | H140: " , "folder":" | I140: vin12t.nrf | J140: " , "title":" | K140: Pācityādiyojanā | L140: " , "c1":" | M140: ṭīkā | N140: " , "c2":" | O140: vinaya | P140: " , "c3":" | R140: " , "c4":" | T140: " },
A141: 32.94 | B141: { "name":" | C141: t-vin13 | D141: " , "row":" | E141: 203 | F141: " , "id":"p | G141: 203 | H141: " , "folder":" | I141: vin13t.nrf | J141: " , "title":" | K141: Khuddasikkhā-mūlasikkhā | L141: " , "c1":" | M141: ṭīkā | N141: " , "c2":" | O141: vinaya | P141: " , "c3":" | R141: " , "c4":" | T141: " },
A142: 33.1 | B142: { "name":" | C142: t-abh1 | D142: " , "row":" | E142: 172 | F142: " , "id":"p | G142: 172 | H142: " , "folder":" | I142: abh01t.tik | J142: " , "title":" | K142: Dhammasaṅgaṇī-mūlaṭīkā | L142: " , "c1":" | M142: ṭīkā | N142: " , "c2":" | O142: abhidhamma | P142: " , "c3":" | R142: " , "c4":" | T142: " },
A143: 33.2 | B143: { "name":" | C143: t-abh2 | D143: " , "row":" | E143: 173 | F143: " , "id":"p | G143: 173 | H143: " , "folder":" | I143: abh02t.tik | J143: " , "title":" | K143: Vibhaṅga-mūlaṭīkā | L143: " , "c1":" | M143: ṭīkā | N143: " , "c2":" | O143: abhidhamma | P143: " , "c3":" | R143: " , "c4":" | T143: " },
A144: 33.3 | B144: { "name":" | C144: t-abh3 | D144: " , "row":" | E144: 174 | F144: " , "id":"p | G144: 174 | H144: " , "folder":" | I144: abh03t.tik | J144: " , "title":" | K144: Pañcapakaraṇa-mūlaṭīkā | L144: " , "c1":" | M144: ṭīkā | N144: " , "c2":" | O144: abhidhamma | P144: " , "c3":" | R144: " , "c4":" | T144: " },
A145: 33.4 | B145: { "name":" | C145: t-abh4 | D145: " , "row":" | E145: 175 | F145: " , "id":"p | G145: 175 | H145: " , "folder":" | I145: abh04t.nrf | J145: " , "title":" | K145: Dhammasaṅgaṇī-anuṭīkā | L145: " , "c1":" | M145: ṭīkā | N145: " , "c2":" | O145: abhidhamma | P145: " , "c3":" | R145: " , "c4":" | T145: " },
A146: 33.5 | B146: { "name":" | C146: t-abh5 | D146: " , "row":" | E146: 176 | F146: " , "id":"p | G146: 176 | H146: " , "folder":" | I146: abh05t.nrf | J146: " , "title":" | K146: Pañcapakaraṇa-anuṭīkā | L146: " , "c1":" | M146: ṭīkā | N146: " , "c2":" | O146: abhidhamma | P146: " , "c3":" | R146: " , "c4":" | T146: " },
A147: 33.6 | B147: { "name":" | C147: t-abh6 | D147: " , "row":" | E147: 177 | F147: " , "id":"p | G147: 177 | H147: " , "folder":" | I147: abh06t.nrf | J147: " , "title":" | K147: Ganthārambhakathā | L147: " , "c1":" | M147: ṭīkā | N147: " , "c2":" | O147: abhidhamma | P147: " , "c3":" | R147: " , "c4":" | T147: " },
A148: 33.7 | B148: { "name":" | C148: t-abh7 | D148: " , "row":" | E148: 178 | F148: " , "id":"p | G148: 178 | H148: " , "folder":" | I148: abh07t.nrf | J148: " , "title":" | K148: Abhidhammatthasaṅgaho | L148: " , "c1":" | M148: ṭīkā | N148: " , "c2":" | O148: abhidhamma | P148: " , "c3":" | R148: " , "c4":" | T148: " },
A149: 33.8 | B149: { "name":" | C149: t-abh8 | D149: " , "row":" | E149: 179 | F149: " , "id":"p | G149: 179 | H149: " , "folder":" | I149: abh08t.nrf | J149: " , "title":" | K149: Paṭhamo paricchedo | L149: " , "c1":" | M149: ṭīkā | N149: " , "c2":" | O149: abhidhamma | P149: " , "c3":" | R149: " , "c4":" | T149: " },
A150: 33.9 | B150: { "name":" | C150: t-abh9 | D150: " , "row":" | E150: 180 | F150: " , "id":"p | G150: 180 | H150: " , "folder":" | I150: abh09t.nrf | J150: " , "title":" | K150: Abhidhammamātikāpāḷi | L150: " , "c1":" | M150: ṭīkā | N150: " , "c2":" | O150: abhidhamma | P150: " , "c3":" | R150: " , "c4":" | T150: " },
A151: 41.1 | B151: { "name":" | C151: a-vis1 | D151: " , "row":" | E151: 64 | F151: " , "id":"p | G151: 64 | H151: " , "folder":" | I151: e0101n.mul | J151: " , "title":" | K151: Visuddhimaggo(Paṭhamo bhāgo) | L151: " , "c1":" | M151: añña | N151: " , "c2":" | O151: visddhimaga | P151: " , "c3":" | R151: " , "c4":" | T151: " },
A152: 41.2 | B152: { "name":" | C152: a-vis2 | D152: " , "row":" | E152: 65 | F152: " , "id":"p | G152: 65 | H152: " , "folder":" | I152: e0102n.mul | J152: " , "title":" | K152: Visuddhimaggo(Dutiyo bhāgo) | L152: " , "c1":" | M152: añña | N152: " , "c2":" | O152: visddhimaga | P152: " , "c3":" | R152: " , "c4":" | T152: " },
A153: 41.3 | B153: { "name":" | C153: a-vis3 | D153: " , "row":" | E153: 66 | F153: " , "id":"p | G153: 66 | H153: " , "folder":" | I153: e0103n.att | J153: " , "title":" | K153: Visuddhimagga-mahāṭīkā(Paṭhamo bhāgo) | L153: " , "c1":" | M153: añña | N153: " , "c2":" | O153: visddhimaga | P153: " , "c3":" | R153: " , "c4":" | T153: " },
A154: 41.4 | B154: { "name":" | C154: a-vis4 | D154: " , "row":" | E154: 67 | F154: " , "id":"p | G154: 67 | H154: " , "folder":" | I154: e0104n.att | J154: " , "title":" | K154: Visuddhimagga-mahāṭīkā(Dutiyo bhāgo) | L154: " , "c1":" | M154: añña | N154: " , "c2":" | O154: visddhimaga | P154: " , "c3":" | R154: " , "c4":" | T154: " },
A155: 41.5 | B155: { "name":" | C155: a-vis5 | D155: " , "row":" | E155: 68 | F155: " , "id":"p | G155: 68 | H155: " , "folder":" | I155: e0105n.nrf | J155: " , "title":" | K155: Visuddhimagga nidānakathā | L155: " , "c1":" | M155: añña | N155: " , "c2":" | O155: visddhimaga | P155: " , "c3":" | R155: " , "c4":" | T155: " },
A156: 42.1 | B156: { "name":" | C156: a-sam1 | D156: " , "row":" | E156: 39 | F156: " , "id":"p | G156: 39 | H156: " , "folder":" | I156: e0901n.nrf | J156: " , "title":" | K156: Dīghanikāye | L156: " , "c1":" | M156: añña | N156: " , "c2":" | O156: saṅgayana-puccha vissajjanā | P156: " , "c3":" | R156: " , "c4":" | T156: " },
A157: 42.2 | B157: { "name":" | C157: a-sam2 | D157: " , "row":" | E157: 40 | F157: " , "id":"p | G157: 40 | H157: " , "folder":" | I157: e0902n.nrf | J157: " , "title":" | K157: Majjhimanikāya | L157: " , "c1":" | M157: añña | N157: " , "c2":" | O157: saṅgayana-puccha vissajjanā | P157: " , "c3":" | R157: " , "c4":" | T157: " },
A158: 42.3 | B158: { "name":" | C158: a-sam3 | D158: " , "row":" | E158: 41 | F158: " , "id":"p | G158: 41 | H158: " , "folder":" | I158: e0903n.nrf | J158: " , "title":" | K158: Saṃyuttanikāye | L158: " , "c1":" | M158: añña | N158: " , "c2":" | O158: saṅgayana-puccha vissajjanā | P158: " , "c3":" | R158: " , "c4":" | T158: " },
A159: 42.4 | B159: { "name":" | C159: a-sam4 | D159: " , "row":" | E159: 42 | F159: " , "id":"p | G159: 42 | H159: " , "folder":" | I159: e0904n.nrf | J159: " , "title":" | K159: Aṅguttaranikāye | L159: " , "c1":" | M159: añña | N159: " , "c2":" | O159: saṅgayana-puccha vissajjanā | P159: " , "c3":" | R159: " , "c4":" | T159: " },
A160: 42.5 | B160: { "name":" | C160: a-sam5 | D160: " , "row":" | E160: 43 | F160: " , "id":"p | G160: 43 | H160: " , "folder":" | I160: e0905n.nrf | J160: " , "title":" | K160: Vinayapiṭaka | L160: " , "c1":" | M160: añña | N160: " , "c2":" | O160: saṅgayana-puccha vissajjanā | P160: " , "c3":" | R160: " , "c4":" | T160: " },
A161: 42.6 | B161: { "name":" | C161: a-sam6 | D161: " , "row":" | E161: 44 | F161: " , "id":"p | G161: 44 | H161: " , "folder":" | I161: e0906n.nrf | J161: " , "title":" | K161: Abhidhammapiṭaka | L161: " , "c1":" | M161: añña | N161: " , "c2":" | O161: saṅgayana-puccha vissajjanā | P161: " , "c3":" | R161: " , "c4":" | T161: " },
A162: 42.7 | B162: { "name":" | C162: a-sam7 | D162: " , "row":" | E162: 45 | F162: " , "id":"p | G162: 45 | H162: " , "folder":" | I162: e0907n.nrf | J162: " , "title":" | K162: Aṭṭhakathā | L162: " , "c1":" | M162: añña | N162: " , "c2":" | O162: saṅgayana-puccha vissajjanā | P162: " , "c3":" | R162: " , "c4":" | T162: " },
A163: 43.1 | B163: { "name":" | C163: a-led1 | D163: " , "row":" | E163: 22 | F163: " , "id":"p | G163: 22 | H163: " , "folder":" | I163: e0201n.nrf | J163: " , "title":" | K163: Niruttidīpanīpāṭha | L163: " , "c1":" | M163: añña | N163: " , "c2":" | O163: leḍī sayādo gantha-saṅgaho | P163: " , "c3":" | R163: " , "c4":" | T163: " },
A164: 43.2 | B164: { "name":" | C164: a-led2 | D164: " , "row":" | E164: 23 | F164: " , "id":"p | G164: 23 | H164: " , "folder":" | I164: e0301n.nrf | J164: " , "title":" | K164: Paramatthadīpanī | L164: " , "c1":" | M164: añña | N164: " , "c2":" | O164: leḍī sayādo gantha-saṅgaho | P164: " , "c3":" | R164: " , "c4":" | T164: " },
A165: 43.3 | B165: { "name":" | C165: a-led3 | D165: " , "row":" | E165: 24 | F165: " , "id":"p | G165: 24 | H165: " , "folder":" | I165: e0401n.nrf | J165: " , "title":" | K165: Anudīpanīpāṭha | L165: " , "c1":" | M165: añña | N165: " , "c2":" | O165: leḍī sayādo gantha-saṅgaho | P165: " , "c3":" | R165: " , "c4":" | T165: " },
A166: 43.4 | B166: { "name":" | C166: a-led4 | D166: " , "row":" | E166: 25 | F166: " , "id":"p | G166: 25 | H166: " , "folder":" | I166: e0501n.nrf | J166: " , "title":" | K166: Paṭṭhānuddesa dīpanīpāṭha | L166: " , "c1":" | M166: añña | N166: " , "c2":" | O166: leḍī sayādo gantha-saṅgaho | P166: " , "c3":" | R166: " , "c4":" | T166: " },
A167: 44.1 | B167: { "name":" | C167: a-bud1 | D167: " , "row":" | E167: 1 | F167: " , "id":"p | G167: 1 | H167: " , "folder":" | I167: e0601n.nrf | J167: " , "title":" | K167: Namakkārapāḷi | L167: " , "c1":" | M167: añña | N167: " , "c2":" | O167: buddha-vandanā gantha-saṅgaho | P167: " , "c3":" | R167: " , "c4":" | T167: " },
A168: 44.2 | B168: { "name":" | C168: a-bud2 | D168: " , "row":" | E168: 2 | F168: " , "id":"p | G168: 2 | H168: " , "folder":" | I168: e0602n.nrf | J168: " , "title":" | K168: Mahāpaṇāmapāṭha(Buddhavandanā) | L168: " , "c1":" | M168: añña | N168: " , "c2":" | O168: buddha-vandanā gantha-saṅgaho | P168: " , "c3":" | R168: " , "c4":" | T168: " },
A169: 44.3 | B169: { "name":" | C169: a-bud3 | D169: " , "row":" | E169: 3 | F169: " , "id":"p | G169: 3 | H169: " , "folder":" | I169: e0603n.nrf | J169: " , "title":" | K169: Lakkhaṇāto | L169: " , "c1":" | M169: añña | N169: " , "c2":" | O169: buddha-vandanā gantha-saṅgaho | P169: " , "c3":" | R169: " , "c4":" | T169: " },
A170: 44.4 | B170: { "name":" | C170: a-bud4 | D170: " , "row":" | E170: 4 | F170: " , "id":"p | G170: 4 | H170: " , "folder":" | I170: e0604n.nrf | J170: " , "title":" | K170: Suttavandanā | L170: " , "c1":" | M170: añña | N170: " , "c2":" | O170: buddha-vandanā gantha-saṅgaho | P170: " , "c3":" | R170: " , "c4":" | T170: " },
A171: 44.5 | B171: { "name":" | C171: a-bud5 | D171: " , "row":" | E171: 5 | F171: " , "id":"p | G171: 5 | H171: " , "folder":" | I171: e0605n.nrf | J171: " , "title":" | K171: Jinālaṅkāra | L171: " , "c1":" | M171: añña | N171: " , "c2":" | O171: buddha-vandanā gantha-saṅgaho | P171: " , "c3":" | R171: " , "c4":" | T171: " },
A172: 44.6 | B172: { "name":" | C172: a-bud6 | D172: " , "row":" | E172: 6 | F172: " , "id":"p | G172: 6 | H172: " , "folder":" | I172: e0606n.nrf | J172: " , "title":" | K172: Kamalāñjali | L172: " , "c1":" | M172: añña | N172: " , "c2":" | O172: buddha-vandanā gantha-saṅgaho | P172: " , "c3":" | R172: " , "c4":" | T172: " },
A173: 44.7 | B173: { "name":" | C173: a-bud7 | D173: " , "row":" | E173: 7 | F173: " , "id":"p | G173: 7 | H173: " , "folder":" | I173: e0607n.nrf | J173: " , "title":" | K173: Pajjamadhu | L173: " , "c1":" | M173: añña | N173: " , "c2":" | O173: buddha-vandanā gantha-saṅgaho | P173: " , "c3":" | R173: " , "c4":" | T173: " },
A174: 44.8 | B174: { "name":" | C174: a-bud8 | D174: " , "row":" | E174: 8 | F174: " , "id":"p | G174: 8 | H174: " , "folder":" | I174: e0608n.nrf | J174: " , "title":" | K174: Buddhaguṇagāthāvalī | L174: " , "c1":" | M174: añña | N174: " , "c2":" | O174: buddha-vandanā gantha-saṅgaho | P174: " , "c3":" | R174: " , "c4":" | T174: " },
A175: 45.1 | B175: { "name":" | C175: a-vam1 | D175: " , "row":" | E175: 61 | F175: " , "id":"p | G175: 61 | H175: " , "folder":" | I175: e0701n.nrf | J175: " , "title":" | K175: Cūḷaganthavaṃsapāḷi | L175: " , "c1":" | M175: añña | N175: " , "c2":" | O175: vaṃsa-gantha-saṅgaho | P175: " , "c3":" | R175: " , "c4":" | T175: " },
A176: 45.2 | B176: { "name":" | C176: a-vam2 | D176: " , "row":" | E176: 62 | F176: " , "id":"p | G176: 62 | H176: " , "folder":" | I176: e0702n.nrf | J176: " , "title":" | K176: Sāsanavaṃsappadīpikā | L176: " , "c1":" | M176: añña | N176: " , "c2":" | O176: vaṃsa-gantha-saṅgaho | P176: " , "c3":" | R176: " , "c4":" | T176: " },
A177: 45.3 | B177: { "name":" | C177: a-vam3 | D177: " , "row":" | E177: 63 | F177: " , "id":"p | G177: 63 | H177: " , "folder":" | I177: e0703n.nrf | J177: " , "title":" | K177: Mahāvaṃsapāḷi | L177: " , "c1":" | M177: añña | N177: " , "c2":" | O177: vaṃsa-gantha-saṅgaho | P177: " , "c3":" | R177: " , "c4":" | T177: " },
A178: 46.1 | B178: { "name":" | C178: a-bya1 | D178: " , "row":" | E178: 13 | F178: " , "id":"p | G178: 13 | H178: " , "folder":" | I178: e0801n.nrf | J178: " , "title":" | K178: Moggallānasuttapāṭho | L178: " , "c1":" | M178: añña | N178: " , "c2":" | O178: byākaraṇa gantha-saṅgaho | P178: " , "c3":" | R178: " , "c4":" | T178: " },
A179: 46.2 | B179: { "name":" | C179: a-bya2 | D179: " , "row":" | E179: 14 | F179: " , "id":"p | G179: 14 | H179: " , "folder":" | I179: e0802n.nrf | J179: " , "title":" | K179: Kaccāyanabyākaraṇaṃ | L179: " , "c1":" | M179: añña | N179: " , "c2":" | O179: byākaraṇa gantha-saṅgaho | P179: " , "c3":" | R179: " , "c4":" | T179: " },
A180: 46.3 | B180: { "name":" | C180: a-bya3 | D180: " , "row":" | E180: 15 | F180: " , "id":"p | G180: 15 | H180: " , "folder":" | I180: e0803n.nrf | J180: " , "title":" | K180: Saddanītippakaraṇaṃ (padamālā) | L180: " , "c1":" | M180: añña | N180: " , "c2":" | O180: byākaraṇa gantha-saṅgaho | P180: " , "c3":" | R180: " , "c4":" | T180: " },
A181: 46.4 | B181: { "name":" | C181: a-bya4 | D181: " , "row":" | E181: 16 | F181: " , "id":"p | G181: 16 | H181: " , "folder":" | I181: e0804n.nrf | J181: " , "title":" | K181: Saddanītippakaraṇaṃ | L181: " , "c1":" | M181: añña | N181: " , "c2":" | O181: byākaraṇa gantha-saṅgaho | P181: " , "c3":" | R181: " , "c4":" | T181: " },
A182: 46.5 | B182: { "name":" | C182: a-bya5 | D182: " , "row":" | E182: 17 | F182: " , "id":"p | G182: 17 | H182: " , "folder":" | I182: e0805n.nrf | J182: " , "title":" | K182: Padarūpasiddhi | L182: " , "c1":" | M182: añña | N182: " , "c2":" | O182: byākaraṇa gantha-saṅgaho | P182: " , "c3":" | R182: " , "c4":" | T182: " },
A183: 46.6 | B183: { "name":" | C183: a-bya6 | D183: " , "row":" | E183: 18 | F183: " , "id":"p | G183: 18 | H183: " , "folder":" | I183: e0806n.nrf | J183: " , "title":" | K183: Moggallāna pañcikā ṭīkā | L183: " , "c1":" | M183: añña | N183: " , "c2":" | O183: byākaraṇa gantha-saṅgaho | P183: " , "c3":" | R183: " , "c4":" | T183: " },
A184: 46.7 | B184: { "name":" | C184: a-bya7 | D184: " , "row":" | E184: 19 | F184: " , "id":"p | G184: 19 | H184: " , "folder":" | I184: e0807n.nrf | J184: " , "title":" | K184: Payogasiddhipāḷi | L184: " , "c1":" | M184: añña | N184: " , "c2":" | O184: byākaraṇa gantha-saṅgaho | P184: " , "c3":" | R184: " , "c4":" | T184: " },
A185: 46.8 | B185: { "name":" | C185: a-bya8 | D185: " , "row":" | E185: 20 | F185: " , "id":"p | G185: 20 | H185: " , "folder":" | I185: e0808n.nrf | J185: " , "title":" | K185: Vuttodayaṃ | L185: " , "c1":" | M185: añña | N185: " , "c2":" | O185: byākaraṇa gantha-saṅgaho | P185: " , "c3":" | R185: " , "c4":" | T185: " },
A186: 46.9 | B186: { "name":" | C186: a-bya9 | D186: " , "row":" | E186: 21 | F186: " , "id":"p | G186: 21 | H186: " , "folder":" | I186: e0809n.nrf | J186: " , "title":" | K186: Abhidhānappadīpikā | L186: " , "c1":" | M186: añña | N186: " , "c2":" | O186: byākaraṇa gantha-saṅgaho | P186: " , "c3":" | R186: " , "c4":" | T186: " },
A187: 46.91 | B187: { "name":" | C187: a-bya10 | D187: " , "row":" | E187: 9 | F187: " , "id":"p | G187: 9 | H187: " , "folder":" | I187: e0810n.nrf | J187: " , "title":" | K187: Abhidhānappadīpikāṭīkā | L187: " , "c1":" | M187: añña | N187: " , "c2":" | O187: byākaraṇa gantha-saṅgaho | P187: " , "c3":" | R187: " , "c4":" | T187: " },
A188: 46.92 | B188: { "name":" | C188: a-bya11 | D188: " , "row":" | E188: 10 | F188: " , "id":"p | G188: 10 | H188: " , "folder":" | I188: e0811n.nrf | J188: " , "title":" | K188: Subodhālaṅkāro | L188: " , "c1":" | M188: añña | N188: " , "c2":" | O188: byākaraṇa gantha-saṅgaho | P188: " , "c3":" | R188: " , "c4":" | T188: " },
A189: 46.93 | B189: { "name":" | C189: a-bya12 | D189: " , "row":" | E189: 11 | F189: " , "id":"p | G189: 11 | H189: " , "folder":" | I189: e0812n.nrf | J189: " , "title":" | K189: Subodhālaṅkāraṭīkā | L189: " , "c1":" | M189: añña | N189: " , "c2":" | O189: byākaraṇa gantha-saṅgaho | P189: " , "c3":" | R189: " , "c4":" | T189: " },
A190: 46.94 | B190: { "name":" | C190: a-bya13 | D190: " , "row":" | E190: 12 | F190: " , "id":"p | G190: 12 | H190: " , "folder":" | I190: e0813n.nrf | J190: " , "title":" | K190: Bālāvatāra | L190: " , "c1":" | M190: añña | N190: " , "c2":" | O190: byākaraṇa gantha-saṅgaho | P190: " , "c3":" | R190: " , "c4":" | T190: " },
A191: 47.1 | B191: { "name":" | C191: a-nit1 | D191: " , "row":" | E191: 27 | F191: " , "id":"p | G191: 27 | H191: " , "folder":" | I191: e1001n.nrf | J191: " , "title":" | K191: Kavidappaṇanīti | L191: " , "c1":" | M191: añña | N191: " , "c2":" | O191: nīti-gantha-saṅgaho | P191: " , "c3":" | R191: " , "c4":" | T191: " },
A192: 47.2 | B192: { "name":" | C192: a-nit2 | D192: " , "row":" | E192: 28 | F192: " , "id":"p | G192: 28 | H192: " , "folder":" | I192: e1002n.nrf | J192: " , "title":" | K192: Nītimañjarī | L192: " , "c1":" | M192: añña | N192: " , "c2":" | O192: nīti-gantha-saṅgaho | P192: " , "c3":" | R192: " , "c4":" | T192: " },
A193: 47.3 | B193: { "name":" | C193: a-nit3 | D193: " , "row":" | E193: 29 | F193: " , "id":"p | G193: 29 | H193: " , "folder":" | I193: e1003n.nrf | J193: " , "title":" | K193: Dhammanīti | L193: " , "c1":" | M193: añña | N193: " , "c2":" | O193: nīti-gantha-saṅgaho | P193: " , "c3":" | R193: " , "c4":" | T193: " },
A194: 47.4 | B194: { "name":" | C194: a-nit4 | D194: " , "row":" | E194: 30 | F194: " , "id":"p | G194: 30 | H194: " , "folder":" | I194: e1004n.nrf | J194: " , "title":" | K194: Mahārahanīti | L194: " , "c1":" | M194: añña | N194: " , "c2":" | O194: nīti-gantha-saṅgaho | P194: " , "c3":" | R194: " , "c4":" | T194: " },
A195: 47.5 | B195: { "name":" | C195: a-nit5 | D195: " , "row":" | E195: 31 | F195: " , "id":"p | G195: 31 | H195: " , "folder":" | I195: e1005n.nrf | J195: " , "title":" | K195: Lokanīti | L195: " , "c1":" | M195: añña | N195: " , "c2":" | O195: nīti-gantha-saṅgaho | P195: " , "c3":" | R195: " , "c4":" | T195: " },
A196: 47.6 | B196: { "name":" | C196: a-nit6 | D196: " , "row":" | E196: 32 | F196: " , "id":"p | G196: 32 | H196: " , "folder":" | I196: e1006n.nrf | J196: " , "title":" | K196: Suttantanīti | L196: " , "c1":" | M196: añña | N196: " , "c2":" | O196: nīti-gantha-saṅgaho | P196: " , "c3":" | R196: " , "c4":" | T196: " },
A197: 47.7 | B197: { "name":" | C197: a-nit7 | D197: " , "row":" | E197: 33 | F197: " , "id":"p | G197: 33 | H197: " , "folder":" | I197: e1007n.nrf | J197: " , "title":" | K197: Sūrassatīnīti | L197: " , "c1":" | M197: añña | N197: " , "c2":" | O197: nīti-gantha-saṅgaho | P197: " , "c3":" | R197: " , "c4":" | T197: " },
A198: 47.8 | B198: { "name":" | C198: a-nit8 | D198: " , "row":" | E198: 34 | F198: " , "id":"p | G198: 34 | H198: " , "folder":" | I198: e1008n.nrf | J198: " , "title":" | K198: Cāṇakyanītipāḷi | L198: " , "c1":" | M198: añña | N198: " , "c2":" | O198: nīti-gantha-saṅgaho | P198: " , "c3":" | R198: " , "c4":" | T198: " },
A199: 47.9 | B199: { "name":" | C199: a-nit9 | D199: " , "row":" | E199: 35 | F199: " , "id":"p | G199: 35 | H199: " , "folder":" | I199: e1009n.nrf | J199: " , "title":" | K199: Naradakkhadīpanī | L199: " , "c1":" | M199: añña | N199: " , "c2":" | O199: nīti-gantha-saṅgaho | P199: " , "c3":" | R199: " , "c4":" | T199: " },
A200: 47.91 | B200: { "name":" | C200: a-nit10 | D200: " , "row":" | E200: 26 | F200: " , "id":"p | G200: 26 | H200: " , "folder":" | I200: e1010n.nrf | J200: " , "title":" | K200: Caturārakkhadīpanī | L200: " , "c1":" | M200: añña | N200: " , "c2":" | O200: nīti-gantha-saṅgaho | P200: " , "c3":" | R200: " , "c4":" | T200: " },
... 18 more rows

Sheet Zh
A1: 序號 | G1: name | K1: id | M1: folder | O1: title | Q1: c1 | S1: c2 | U1: c3 | W1: c4 | X1: end
A2: =B2*10+C2+D2/10+E2/100 -> 11.11 | B2: 1 | C2: 1 | D2: 1 | E2: 1 | F2: { "name":" | G2: dn1 | H2: " , "row":" | I2: 93 | J2: " , "id":"p | K2: 93 | L2: " , "folder":" | M2: s0101m.mul | N2: " , "title":" | O2: 《戒蕴品》 | P2: " , "c1":" | Q2: 三藏根本 | R2: " , "c2":" | S2: 经藏 | T2: " , "c3":" | U2: 长部 | V2: " , "c4":" | X2: " },
A3: =B3*10+C3+D3/10+E3/100 -> 11.12 | B3: 1 | C3: 1 | D3: 1 | E3: 2 | F3: { "name":" | G3: dn2 | H3: " , "row":" | I3: 94 | J3: " , "id":"p | K3: 94 | L3: " , "folder":" | M3: s0102m.mul | N3: " , "title":" | O3: 《大品》 | P3: " , "c1":" | Q3: 三藏根本 | R3: " , "c2":" | S3: 经藏 | T3: " , "c3":" | U3: 长部 | V3: " , "c4":" | X3: " },
A4: =B4*10+C4+D4/10+E4/100 -> 11.13 | B4: 1 | C4: 1 | D4: 1 | E4: 3 | F4: { "name":" | G4: dn3 | H4: " , "row":" | I4: 95 | J4: " , "id":"p | K4: 95 | L4: " , "folder":" | M4: s0103m.mul | N4: " , "title":" | O4: 《巴提咖品》 | P4: " , "c1":" | Q4: 三藏根本 | R4: " , "c2":" | S4: 经藏 | T4: " , "c3":" | U4: 长部 | V4: " , "c4":" | X4: " },
A5: =B5*10+C5+D5/10+E5/100 -> 11.21 | B5: 1 | C5: 1 | D5: 2 | E5: 1 | F5: { "name":" | G5: mn1 | H5: " , "row":" | I5: 164 | J5: " , "id":"p | K5: 164 | L5: " , "folder":" | M5: s0201m.mul | N5: " , "title":" | O5: 《根本五十经》 | P5: " , "c1":" | Q5: 三藏根本 | R5: " , "c2":" | S5: 经藏 | T5: " , "c3":" | U5: 中部 | V5: " , "c4":" | X5: " },
A6: =B6*10+C6+D6/10+E6/100 -> 11.22 | B6: 1 | C6: 1 | D6: 2 | E6: 2 | F6: { "name":" | G6: mn2 | H6: " , "row":" | I6: 165 | J6: " , "id":"p | K6: 165 | L6: " , "folder":" | M6: s0202m.mul | N6: " , "title":" | O6: 《中五十经》 | P6: " , "c1":" | Q6: 三藏根本 | R6: " , "c2":" | S6: 经藏 | T6: " , "c3":" | U6: 中部 | V6: " , "c4":" | X6: " },
A7: =B7*10+C7+D7/10+E7/100 -> 11.23 | B7: 1 | C7: 1 | D7: 2 | E7: 3 | F7: { "name":" | G7: mn3 | H7: " , "row":" | I7: 166 | J7: " , "id":"p | K7: 166 | L7: " , "folder":" | M7: s0203m.mul | N7: " , "title":" | O7: 《后五十经》 | P7: " , "c1":" | Q7: 三藏根本 | R7: " , "c2":" | S7: 经藏 | T7: " , "c3":" | U7: 中部 | V7: " , "c4":" | X7: " },
A8: =B8*10+C8+D8/10+E8/100 -> 11.31 | B8: 1 | C8: 1 | D8: 3 | E8: 1 | F8: { "name":" | G8: sn1 | H8: " , "row":" | I8: 167 | J8: " , "id":"p | K8: 167 | L8: " , "folder":" | M8: s0301m.mul | N8: " , "title":" | O8: 《有偈品》 | P8: " , "c1":" | Q8: 三藏根本 | R8: " , "c2":" | S8: 经藏 | T8: " , "c3":" | U8: 相应部 | V8: " , "c4":" | X8: " },
A9: =B9*10+C9+D9/10+E9/100 -> 11.32 | B9: 1 | C9: 1 | D9: 3 | E9: 2 | F9: { "name":" | G9: sn2 | H9: " , "row":" | I9: 168 | J9: " , "id":"p | K9: 168 | L9: " , "folder":" | M9: s0302m.mul | N9: " , "title":" | O9: 《因缘品》 | P9: " , "c1":" | Q9: 三藏根本 | R9: " , "c2":" | S9: 经藏 | T9: " , "c3":" | U9: 相应部 | V9: " , "c4":" | X9: " },
A10: =B10*10+C10+D10/10+E10/100 -> 11.33 | B10: 1 | C10: 1 | D10: 3 | E10: 3 | F10: { "name":" | G10: sn3 | H10: " , "row":" | I10: 169 | J10: " , "id":"p | K10: 169 | L10: " , "folder":" | M10: s0303m.mul | N10: " , "title":" | O10: 《蕴品》 | P10: " , "c1":" | Q10: 三藏根本 | R10: " , "c2":" | S10: 经藏 | T10: " , "c3":" | U10: 相应部 | V10: " , "c4":" | X10: " },
A11: =B11*10+C11+D11/10+E11/100 -> 11.34 | B11: 1 | C11: 1 | D11: 3 | E11: 4 | F11: { "name":" | G11: sn4 | H11: " , "row":" | I11: 170 | J11: " , "id":"p | K11: 170 | L11: " , "folder":" | M11: s0304m.mul | N11: " , "title":" | O11: 《六处品》 | P11: " , "c1":" | Q11: 三藏根本 | R11: " , "c2":" | S11: 经藏 | T11: " , "c3":" | U11: 相应部 | V11: " , "c4":" | X11: " },
A12: =B12*10+C12+D12/10+E12/100 -> 11.35 | B12: 1 | C12: 1 | D12: 3 | E12: 5 | F12: { "name":" | G12: sn5 | H12: " , "row":" | I12: 171 | J12: " , "id":"p | K12: 171 | L12: " , "folder":" | M12: s0305m.mul | N12: " , "title":" | O12: 《大品》 | P12: " , "c1":" | Q12: 三藏根本 | R12: " , "c2":" | S12: 经藏 | T12: " , "c3":" | U12: 相应部 | V12: " , "c4":" | X12: " },
A13: =B13*10+C13+D13/10+E13/100 -> 11.41 | B13: 1 | C13: 1 | D13: 4 | E13: 1 | F13: { "name":" | G13: an1 | H13: " , "row":" | I13: 84 | J13: " , "id":"p | K13: 84 | L13: " , "folder":" | M13: s0401m.mul | N13: " , "title":" | O13: 《一集》 | P13: " , "c1":" | Q13: 三藏根本 | R13: " , "c2":" | S13: 经藏 | T13: " , "c3":" | U13: 增支部 | V13: " , "c4":" | X13: " },
A14: =B14*10+C14+D14/10+E14/100 -> 11.42 | B14: 1 | C14: 1 | D14: 4 | E14: 2 | F14: { "name":" | G14: an2 | H14: " , "row":" | I14: 85 | J14: " , "id":"p | K14: 85 | L14: " , "folder":" | M14: s0402m1.mul | N14: " , "title":" | O14: 《二集》 | P14: " , "c1":" | Q14: 三藏根本 | R14: " , "c2":" | S14: 经藏 | T14: " , "c3":" | U14: 增支部 | V14: " , "c4":" | X14: " },
A15: =B15*10+C15+D15/10+E15/100 -> 11.43 | B15: 1 | C15: 1 | D15: 4 | E15: 3 | F15: { "name":" | G15: an3 | H15: " , "row":" | I15: 86 | J15: " , "id":"p | K15: 86 | L15: " , "folder":" | M15: s0402m2.mul | N15: " , "title":" | O15: 《三集》 | P15: " , "c1":" | Q15: 三藏根本 | R15: " , "c2":" | S15: 经藏 | T15: " , "c3":" | U15: 增支部 | V15: " , "c4":" | X15: " },
A16: =B16*10+C16+D16/10+E16/100 -> 11.44 | B16: 1 | C16: 1 | D16: 4 | E16: 4 | F16: { "name":" | G16: an4 | H16: " , "row":" | I16: 87 | J16: " , "id":"p | K16: 87 | L16: " , "folder":" | M16: s0402m3.mul | N16: " , "title":" | O16: 《四集》 | P16: " , "c1":" | Q16: 三藏根本 | R16: " , "c2":" | S16: 经藏 | T16: " , "c3":" | U16: 增支部 | V16: " , "c4":" | X16: " },
A17: =B17*10+C17+D17/10+E17/100 -> 11.45 | B17: 1 | C17: 1 | D17: 4 | E17: 5 | F17: { "name":" | G17: an5 | H17: " , "row":" | I17: 88 | J17: " , "id":"p | K17: 88 | L17: " , "folder":" | M17: s0403m1.mul | N17: " , "title":" | O17: 《五集》 | P17: " , "c1":" | Q17: 三藏根本 | R17: " , "c2":" | S17: 经藏 | T17: " , "c3":" | U17: 增支部 | V17: " , "c4":" | X17: " },
A18: =B18*10+C18+D18/10+E18/100 -> 11.46 | B18: 1 | C18: 1 | D18: 4 | E18: 6 | F18: { "name":" | G18: an6 | H18: " , "row":" | I18: 89 | J18: " , "id":"p | K18: 89 | L18: " , "folder":" | M18: s0403m2.mul | N18: " , "title":" | O18: 《六集》 | P18: " , "c1":" | Q18: 三藏根本 | R18: " , "c2":" | S18: 经藏 | T18: " , "c3":" | U18: 增支部 | V18: " , "c4":" | X18: " },
A19: =B19*10+C19+D19/10+E19/100 -> 11.47 | B19: 1 | C19: 1 | D19: 4 | E19: 7 | F19: { "name":" | G19: an7 | H19: " , "row":" | I19: 90 | J19: " , "id":"p | K19: 90 | L19: " , "folder":" | M19: s0403m3.mul | N19: " , "title":" | O19: 《七集》 | P19: " , "c1":" | Q19: 三藏根本 | R19: " , "c2":" | S19: 经藏 | T19: " , "c3":" | U19: 增支部 | V19: " , "c4":" | X19: " },
A20: =B20*10+C20+D20/10+E20/100 -> 11.48 | B20: 1 | C20: 1 | D20: 4 | E20: 8 | F20: { "name":" | G20: an8 | H20: " , "row":" | I20: 91 | J20: " , "id":"p | K20: 91 | L20: " , "folder":" | M20: s0404m1.mul | N20: " , "title":" | O20: 《八集》 | P20: " , "c1":" | Q20: 三藏根本 | R20: " , "c2":" | S20: 经藏 | T20: " , "c3":" | U20: 增支部 | V20: " , "c4":" | X20: " },
A21: =B21*10+C21+D21/10+E21/100 -> 11.49 | B21: 1 | C21: 1 | D21: 4 | E21: 9 | F21: { "name":" | G21: an9 | H21: " , "row":" | I21: 92 | J21: " , "id":"p | K21: 92 | L21: " , "folder":" | M21: s0404m2.mul | N21: " , "title":" | O21: 《九集》 | P21: " , "c1":" | Q21: 三藏根本 | R21: " , "c2":" | S21: 经藏 | T21: " , "c3":" | U21: 增支部 | V21: " , "c4":" | X21: " },
A22: =B22*10+C22+D22/10+E22/100 -> 11.491 | B22: 1 | C22: 1 | D22: 4 | E22: 9.1 | F22: { "name":" | G22: an10 | H22: " , "row":" | I22: 82 | J22: " , "id":"p | K22: 82 | L22: " , "folder":" | M22: s0404m3.mul | N22: " , "title":" | O22: 《十集》 | P22: " , "c1":" | Q22: 三藏根本 | R22: " , "c2":" | S22: 经藏 | T22: " , "c3":" | U22: 增支部 | V22: " , "c4":" | X22: " },
A23: =B23*10+C23+D23/10+E23/100 -> 11.492 | B23: 1 | C23: 1 | D23: 4 | E23: 9.2 | F23: { "name":" | G23: an11 | H23: " , "row":" | I23: 83 | J23: " , "id":"p | K23: 83 | L23: " , "folder":" | M23: s0404m4.mul | N23: " , "title":" | O23: 《十一集》 | P23: " , "c1":" | Q23: 三藏根本 | R23: " , "c2":" | S23: 经藏 | T23: " , "c3":" | U23: 增支部 | V23: " , "c4":" | X23: " },
A24: =B24*10+C24+D24/10+E24/100 -> 11.51 | B24: 1 | C24: 1 | D24: 5 | E24: 1 | F24: { "name":" | G24: kn1 | H24: " , "row":" | I24: 154 | J24: " , "id":"p | K24: 154 | L24: " , "folder":" | M24: s0501m.mul | N24: " , "title":" | O24: 《小诵》 | P24: " , "c1":" | Q24: 三藏根本 | R24: " , "c2":" | S24: 经藏 | T24: " , "c3":" | U24: 小部 | V24: " , "c4":" | X24: " },
A25: =B25*10+C25+D25/10+E25/100 -> 11.52 | B25: 1 | C25: 1 | D25: 5 | E25: 2 | F25: { "name":" | G25: kn2 | H25: " , "row":" | I25: 156 | J25: " , "id":"p | K25: 156 | L25: " , "folder":" | M25: s0502m.mul | N25: " , "title":" | O25: 《法句》 | P25: " , "c1":" | Q25: 三藏根本 | R25: " , "c2":" | S25: 经藏 | T25: " , "c3":" | U25: 小部 | V25: " , "c4":" | X25: " },
A26: =B26*10+C26+D26/10+E26/100 -> 11.53 | B26: 1 | C26: 1 | D26: 5 | E26: 3 | F26: { "name":" | G26: kn3 | H26: " , "row":" | I26: 157 | J26: " , "id":"p | K26: 157 | L26: " , "folder":" | M26: s0503m.mul | N26: " , "title":" | O26: 《自说》 | P26: " , "c1":" | Q26: 三藏根本 | R26: " , "c2":" | S26: 经藏 | T26: " , "c3":" | U26: 小部 | V26: " , "c4":" | X26: " },
A27: =B27*10+C27+D27/10+E27/100 -> 11.54 | B27: 1 | C27: 1 | D27: 5 | E27: 4 | F27: { "name":" | G27: kn4 | H27: " , "row":" | I27: 158 | J27: " , "id":"p | K27: 158 | L27: " , "folder":" | M27: s0504m.mul | N27: " , "title":" | O27: 《如是语》 | P27: " , "c1":" | Q27: 三藏根本 | R27: " , "c2":" | S27: 经藏 | T27: " , "c3":" | U27: 小部 | V27: " , "c4":" | X27: " },
A28: =B28*10+C28+D28/10+E28/100 -> 11.55 | B28: 1 | C28: 1 | D28: 5 | E28: 5 | F28: { "name":" | G28: kn5 | H28: " , "row":" | I28: 159 | J28: " , "id":"p | K28: 159 | L28: " , "folder":" | M28: s0505m.mul | N28: " , "title":" | O28: 《经集》 | P28: " , "c1":" | Q28: 三藏根本 | R28: " , "c2":" | S28: 经藏 | T28: " , "c3":" | U28: 小部 | V28: " , "c4":" | X28: " },
A29: =B29*10+C29+D29/10+E29/100 -> 11.56 | B29: 1 | C29: 1 | D29: 5 | E29: 6 | F29: { "name":" | G29: kn6 | H29: " , "row":" | I29: 160 | J29: " , "id":"p | K29: 160 | L29: " , "folder":" | M29: s0506m.mul | N29: " , "title":" | O29: 《天宫故事》 | P29: " , "c1":" | Q29: 三藏根本 | R29: " , "c2":" | S29: 经藏 | T29: " , "c3":" | U29: 小部 | V29: " , "c4":" | X29: " },
A30: =B30*10+C30+D30/10+E30/100 -> 11.57 | B30: 1 | C30: 1 | D30: 5 | E30: 7 | F30: { "name":" | G30: kn7 | H30: " , "row":" | I30: 161 | J30: " , "id":"p | K30: 161 | L30: " , "folder":" | M30: s0507m.mul | N30: " , "title":" | O30: 《鬼故事》 | P30: " , "c1":" | Q30: 三藏根本 | R30: " , "c2":" | S30: 经藏 | T30: " , "c3":" | U30: 小部 | V30: " , "c4":" | X30: " },
A31: =B31*10+C31+D31/10+E31/100 -> 11.575 | B31: 1 | C31: 1 | D31: 5 | E31: 7.5 | F31: { "name":" | G31: kn8 | H31: " , "row":" | I31: 162 | J31: " , "id":"p | K31: 162 | L31: " , "folder":" | M31: s0508m.mul | N31: " , "title":" | O31: 《长老偈》 | P31: " , "c1":" | Q31: 三藏根本 | R31: " , "c2":" | S31: 经藏 | T31: " , "c3":" | U31: 小部 | V31: " , "c4":" | X31: " },
A32: =B32*10+C32+D32/10+E32/100 -> 11.58 | B32: 1 | C32: 1 | D32: 5 | E32: 8 | F32: { "name":" | G32: kn9 | H32: " , "row":" | I32: 163 | J32: " , "id":"p | K32: 163 | L32: " , "folder":" | M32: s0509m.mul | N32: " , "title":" | O32: 《长老尼偈》 | P32: " , "c1":" | Q32: 三藏根本 | R32: " , "c2":" | S32: 经藏 | T32: " , "c3":" | U32: 小部 | V32: " , "c4":" | X32: " },
A33: =B33*10+C33+D33/10+E33/100 -> 11.581 | B33: 1 | C33: 1 | D33: 5 | E33: 8.1 | F33: { "name":" | G33: kn10 | H33: " , "row":" | I33: 143 | J33: " , "id":"p | K33: 143 | L33: " , "folder":" | M33: s0510m1.mul | N33: " , "title":" | O33: 《长老传记1》 | P33: " , "c1":" | Q33: 三藏根本 | R33: " , "c2":" | S33: 经藏 | T33: " , "c3":" | U33: 小部 | V33: " , "c4":" | X33: " },
A34: =B34*10+C34+D34/10+E34/100 -> 11.582 | B34: 1 | C34: 1 | D34: 5 | E34: 8.2 | F34: { "name":" | G34: kn11 | H34: " , "row":" | I34: 144 | J34: " , "id":"p | K34: 144 | L34: " , "folder":" | M34: s0510m2.mul | N34: " , "title":" | O34: 《长老传记2》 | P34: " , "c1":" | Q34: 三藏根本 | R34: " , "c2":" | S34: 经藏 | T34: " , "c3":" | U34: 小部 | V34: " , "c4":" | X34: " },
A35: =B35*10+C35+D35/10+E35/100 -> 11.583 | B35: 1 | C35: 1 | D35: 5 | E35: 8.3 | F35: { "name":" | G35: kn12 | H35: " , "row":" | I35: 145 | J35: " , "id":"p | K35: 145 | L35: " , "folder":" | M35: s0511m.mul | N35: " , "title":" | O35: 《诸佛史》 | P35: " , "c1":" | Q35: 三藏根本 | R35: " , "c2":" | S35: 经藏 | T35: " , "c3":" | U35: 小部 | V35: " , "c4":" | X35: " },
A36: =B36*10+C36+D36/10+E36/100 -> 11.584 | B36: 1 | C36: 1 | D36: 5 | E36: 8.4 | F36: { "name":" | G36: kn13 | H36: " , "row":" | I36: 146 | J36: " , "id":"p | K36: 146 | L36: " , "folder":" | M36: s0512m.mul | N36: " , "title":" | O36: 《所行藏》 | P36: " , "c1":" | Q36: 三藏根本 | R36: " , "c2":" | S36: 经藏 | T36: " , "c3":" | U36: 小部 | V36: " , "c4":" | X36: " },
A37: =B37*10+C37+D37/10+E37/100 -> 11.585 | B37: 1 | C37: 1 | D37: 5 | E37: 8.5 | F37: { "name":" | G37: kn14b | H37: " , "row":" | I37: 147 | J37: " , "id":"p | K37: 147 | L37: " , "folder":" | M37: s0514m.mul | N37: " , "title":" | O37: 《本生1》 | P37: " , "c1":" | Q37: 三藏根本 | R37: " , "c2":" | S37: 经藏 | T37: " , "c3":" | U37: 小部 | V37: " , "c4":" | X37: " },
A38: =B38*10+C38+D38/10+E38/100 -> 11.586 | B38: 1 | C38: 1 | D38: 5 | E38: 8.6 | F38: { "name":" | G38: kn14 | H38: " , "row":" | I38: 148 | J38: " , "id":"p | K38: 148 | L38: " , "folder":" | M38: s0513m.mul | N38: " , "title":" | O38: 《本生2》 | P38: " , "c1":" | Q38: 三藏根本 | R38: " , "c2":" | S38: 经藏 | T38: " , "c3":" | U38: 小部 | V38: " , "c4":" | X38: " },
A39: =B39*10+C39+D39/10+E39/100 -> 11.587 | B39: 1 | C39: 1 | D39: 5 | E39: 8.7 | F39: { "name":" | G39: kn15 | H39: " , "row":" | I39: 149 | J39: " , "id":"p | K39: 149 | L39: " , "folder":" | M39: s0515m.mul | N39: " , "title":" | O39: 《大义释》 | P39: " , "c1":" | Q39: 三藏根本 | R39: " , "c2":" | S39: 经藏 | T39: " , "c3":" | U39: 小部 | V39: " , "c4":" | X39: " },
A40: =B40*10+C40+D40/10+E40/100 -> 11.588 | B40: 1 | C40: 1 | D40: 5 | E40: 8.8 | F40: { "name":" | G40: kn16 | H40: " , "row":" | I40: 150 | J40: " , "id":"p | K40: 150 | L40: " , "folder":" | M40: s0516m.mul | N40: " , "title":" | O40: 《小义释》 | P40: " , "c1":" | Q40: 三藏根本 | R40: " , "c2":" | S40: 经藏 | T40: " , "c3":" | U40: 小部 | V40: " , "c4":" | X40: " },
A41: =B41*10+C41+D41/10+E41/100 -> 11.589 | B41: 1 | C41: 1 | D41: 5 | E41: 8.9 | F41: { "name":" | G41: kn17 | H41: " , "row":" | I41: 151 | J41: " , "id":"p | K41: 151 | L41: " , "folder":" | M41: s0517m.mul | N41: " , "title":" | O41: 《无碍解道》 | P41: " , "c1":" | Q41: 三藏根本 | R41: " , "c2":" | S41: 经藏 | T41: " , "c3":" | U41: 小部 | V41: " , "c4":" | X41: " },
A42: =B42*10+C42+D42/10+E42/100 -> 11.59 | B42: 1 | C42: 1 | D42: 5 | E42: 9 | F42: { "name":" | G42: kn18 | H42: " , "row":" | I42: 152 | J42: " , "id":"p | K42: 152 | L42: " , "folder":" | M42: s0518m.nrf | N42: " , "title":" | O42: 《导论》 | P42: " , "c1":" | Q42: 三藏根本 | R42: " , "c2":" | S42: 经藏 | T42: " , "c3":" | U42: 小部 | V42: " , "c4":" | X42: " },
A43: =B43*10+C43+D43/10+E43/100 -> 11.591 | B43: 1 | C43: 1 | D43: 5 | E43: 9.1 | F43: { "name":" | G43: kn19 | H43: " , "row":" | I43: 153 | J43: " , "id":"p | K43: 153 | L43: " , "folder":" | M43: s0519m.mul | N43: " , "title":" | O43: 《弥林达问经》 | P43: " , "c1":" | Q43: 三藏根本 | R43: " , "c2":" | S43: 经藏 | T43: " , "c3":" | U43: 小部 | V43: " , "c4":" | X43: " },
A44: =B44*10+C44+D44/10+E44/100 -> 11.592 | B44: 1 | C44: 1 | D44: 5 | E44: 9.2 | F44: { "name":" | G44: kn20 | H44: " , "row":" | I44: 155 | J44: " , "id":"p | K44: 155 | L44: " , "folder":" | M44: s0520m.nrf | N44: " , "title":" | O44: 《藏释》 | P44: " , "c1":" | Q44: 三藏根本 | R44: " , "c2":" | S44: 经藏 | T44: " , "c3":" | U44: 小部 | V44: " , "c4":" | X44: " },
A45: =B45*10+C45+D45/10+E45/100 -> 12.11 | B45: 1 | C45: 2 | D45: 1 | E45: 1 | F45: { "name":" | G45: vin1 | H45: " , "row":" | I45: 213 | J45: " , "id":"p | K45: 213 | L45: " , "folder":" | M45: vin01m.mul | N45: " , "title":" | O45: 《巴拉基咖》 | P45: " , "c1":" | Q45: 三藏根本 | R45: " , "c2":" | S45: 律藏 | T45: " , "c3":" | U45: 经分别 | V45: " , "c4":" | X45: " },
A46: =B46*10+C46+D46/10+E46/100 -> 12.12 | B46: 1 | C46: 2 | D46: 1 | E46: 2 | F46: { "name":" | G46: vin2 | H46: " , "row":" | I46: 214 | J46: " , "id":"p | K46: 214 | L46: " , "folder":" | M46: vin02m1.mul | N46: " , "title":" | O46: 《巴吉蒂亚》 | P46: " , "c1":" | Q46: 三藏根本 | R46: " , "c2":" | S46: 律藏 | T46: " , "c3":" | U46: 经分别 | V46: " , "c4":" | X46: " },
A47: =B47*10+C47+D47/10+E47/100 -> 12.21 | B47: 1 | C47: 2 | D47: 2 | E47: 1 | F47: { "name":" | G47: vin3 | H47: " , "row":" | I47: 215 | J47: " , "id":"p | K47: 215 | L47: " , "folder":" | M47: vin02m2.mul | N47: " , "title":" | O47: 《大品》 | P47: " , "c1":" | Q47: 三藏根本 | R47: " , "c2":" | S47: 律藏 | T47: " , "c3":" | U47: 犍度 | V47: " , "c4":" | X47: " },
A48: =B48*10+C48+D48/10+E48/100 -> 12.22 | B48: 1 | C48: 2 | D48: 2 | E48: 2 | F48: { "name":" | G48: vin4 | H48: " , "row":" | I48: 216 | J48: " , "id":"p | K48: 216 | L48: " , "folder":" | M48: vin02m3.mul | N48: " , "title":" | O48: 《小品》 | P48: " , "c1":" | Q48: 三藏根本 | R48: " , "c2":" | S48: 律藏 | T48: " , "c3":" | U48: 犍度 | V48: " , "c4":" | X48: " },
A49: =B49*10+C49+D49/10+E49/100 -> 12.31 | B49: 1 | C49: 2 | D49: 3 | E49: 1 | F49: { "name":" | G49: vin5 | H49: " , "row":" | I49: 217 | J49: " , "id":"p | K49: 217 | L49: " , "folder":" | M49: vin02m4.mul | N49: " , "title":" | O49: 《附随》 | P49: " , "c1":" | Q49: 三藏根本 | R49: " , "c2":" | S49: 律藏 | T49: " , "c3":" | U49: 附随 | V49: " , "c4":" | X49: " },
A50: =B50*10+C50+D50/10+E50/100 -> 13.1 | B50: 1 | C50: 3 | D50: 1 | F50: { "name":" | G50: abhp1 | H50: " , "row":" | I50: 73 | J50: " , "id":"p | K50: 73 | L50: " , "folder":" | M50: abh01m.mul | N50: " , "title":" | O50: 《法集论》 | P50: " , "c1":" | Q50: 三藏根本 | R50: " , "c2":" | S50: 阿毗达摩藏 | T50: " , "c3":" | U50: 法集论 | V50: " , "c4":" | X50: " },
A51: =B51*10+C51+D51/10+E51/100 -> 13.2 | B51: 1 | C51: 3 | D51: 2 | F51: { "name":" | G51: abhp2 | H51: " , "row":" | I51: 74 | J51: " , "id":"p | K51: 74 | L51: " , "folder":" | M51: abh02m.mul | N51: " , "title":" | O51: 《分别论》 | P51: " , "c1":" | Q51: 三藏根本 | R51: " , "c2":" | S51: 阿毗达摩藏 | T51: " , "c3":" | U51: 分别论 | V51: " , "c4":" | X51: " },
A52: =B52*10+C52+D52/10+E52/100 -> 13.3 | B52: 1 | C52: 3 | D52: 3 | F52: { "name":" | G52: abhp3 | H52: " , "row":" | I52: 75 | J52: " , "id":"p | K52: 75 | L52: " , "folder":" | M52: abh03m1.mul | N52: " , "title":" | O52: 《界论》 | P52: " , "c1":" | Q52: 三藏根本 | R52: " , "c2":" | S52: 阿毗达摩藏 | T52: " , "c3":" | U52: 界论 | V52: " , "c4":" | X52: " },
A53: =B53*10+C53+D53/10+E53/100 -> 13.4 | B53: 1 | C53: 3 | D53: 4 | F53: { "name":" | G53: abhp4 | H53: " , "row":" | I53: 76 | J53: " , "id":"p | K53: 76 | L53: " , "folder":" | M53: abh03m2.mul | N53: " , "title":" | O53: 《人施设论》 | P53: " , "c1":" | Q53: 三藏根本 | R53: " , "c2":" | S53: 阿毗达摩藏 | T53: " , "c3":" | U53: 人施设论 | V53: " , "c4":" | X53: " },
A54: =B54*10+C54+D54/10+E54/100 -> 13.5 | B54: 1 | C54: 3 | D54: 5 | F54: { "name":" | G54: abhp5 | H54: " , "row":" | I54: 77 | J54: " , "id":"p | K54: 77 | L54: " , "folder":" | M54: abh03m3.mul | N54: " , "title":" | O54: 《论事》 | P54: " , "c1":" | Q54: 三藏根本 | R54: " , "c2":" | S54: 阿毗达摩藏 | T54: " , "c3":" | U54: 论事 | V54: " , "c4":" | X54: " },
A55: =B55*10+C55+D55/10+E55/100 -> 13.61 | B55: 1 | C55: 3 | D55: 6 | E55: 1 | F55: { "name":" | G55: abhp6 | H55: " , "row":" | I55: 78 | J55: " , "id":"p | K55: 78 | L55: " , "folder":" | M55: abh03m4.mul | N55: " , "title":" | O55: 《双论一》 | P55: " , "c1":" | Q55: 三藏根本 | R55: " , "c2":" | S55: 阿毗达摩藏 | T55: " , "c3":" | U55: 双论 | V55: " , "c4":" | X55: " },
A56: =B56*10+C56+D56/10+E56/100 -> 13.62 | B56: 1 | C56: 3 | D56: 6 | E56: 2 | F56: { "name":" | G56: abhp7 | H56: " , "row":" | I56: 79 | J56: " , "id":"p | K56: 79 | L56: " , "folder":" | M56: abh03m5.mul | N56: " , "title":" | O56: 《双论二》 | P56: " , "c1":" | Q56: 三藏根本 | R56: " , "c2":" | S56: 阿毗达摩藏 | T56: " , "c3":" | U56: 双论 | V56: " , "c4":" | X56: " },
A57: =B57*10+C57+D57/10+E57/100 -> 13.63 | B57: 1 | C57: 3 | D57: 6 | E57: 3 | F57: { "name":" | G57: abhp8 | H57: " , "row":" | I57: 80 | J57: " , "id":"p | K57: 80 | L57: " , "folder":" | M57: abh03m6.mul | N57: " , "title":" | O57: 《双论三》 | P57: " , "c1":" | Q57: 三藏根本 | R57: " , "c2":" | S57: 阿毗达摩藏 | T57: " , "c3":" | U57: 双论 | V57: " , "c4":" | X57: " },
A58: =B58*10+C58+D58/10+E58/100 -> 13.71 | B58: 1 | C58: 3 | D58: 7 | E58: 1 | F58: { "name":" | G58: abhp9 | H58: " , "row":" | I58: 81 | J58: " , "id":"p | K58: 81 | L58: " , "folder":" | M58: abh03m7.mul | N58: " , "title":" | O58: 《发趣论一》 | P58: " , "c1":" | Q58: 三藏根本 | R58: " , "c2":" | S58: 阿毗达摩藏 | T58: " , "c3":" | U58: 发趣论 | V58: " , "c4":" | X58: " },
A59: =B59*10+C59+D59/10+E59/100 -> 13.72 | B59: 1 | C59: 3 | D59: 7 | E59: 2 | F59: { "name":" | G59: abhp10 | H59: " , "row":" | I59: 69 | J59: " , "id":"p | K59: 69 | L59: " , "folder":" | M59: abh03m8.mul | N59: " , "title":" | O59: 《发趣论二》 | P59: " , "c1":" | Q59: 三藏根本 | R59: " , "c2":" | S59: 阿毗达摩藏 | T59: " , "c3":" | U59: 发趣论 | V59: " , "c4":" | X59: " },
A60: =B60*10+C60+D60/10+E60/100 -> 13.73 | B60: 1 | C60: 3 | D60: 7 | E60: 3 | F60: { "name":" | G60: abhp11 | H60: " , "row":" | I60: 70 | J60: " , "id":"p | K60: 70 | L60: " , "folder":" | M60: abh03m9.mul | N60: " , "title":" | O60: 《发趣论三》 | P60: " , "c1":" | Q60: 三藏根本 | R60: " , "c2":" | S60: 阿毗达摩藏 | T60: " , "c3":" | U60: 发趣论 | V60: " , "c4":" | X60: " },
A61: =B61*10+C61+D61/10+E61/100 -> 13.74 | B61: 1 | C61: 3 | D61: 7 | E61: 4 | F61: { "name":" | G61: abhp12 | H61: " , "row":" | I61: 71 | J61: " , "id":"p | K61: 71 | L61: " , "folder":" | M61: abh03m10.mul | N61: " , "title":" | O61: 《发趣论四》 | P61: " , "c1":" | Q61: 三藏根本 | R61: " , "c2":" | S61: 阿毗达摩藏 | T61: " , "c3":" | U61: 发趣论 | V61: " , "c4":" | X61: " },
A62: =B62*10+C62+D62/10+E62/100 -> 13.75 | B62: 1 | C62: 3 | D62: 7 | E62: 5 | F62: { "name":" | G62: abhp13 | H62: " , "row":" | I62: 72 | J62: " , "id":"p | K62: 72 | L62: " , "folder":" | M62: abh03m11.mul | N62: " , "title":" | O62: 《发趣论五》 | P62: " , "c1":" | Q62: 三藏根本 | R62: " , "c2":" | S62: 阿毗达摩藏 | T62: " , "c3":" | U62: 发趣论 | V62: " , "c4":" | X62: " },
A63: =B63*10+C63+D63/10+E63/100 -> 21.11 | B63: 2 | C63: 1 | D63: 1 | E63: 1 | F63: { "name":" | G63: k-dn1 | H63: " , "row":" | I63: 103 | J63: " , "id":"p | K63: 103 | L63: " , "folder":" | M63: s0101a.att | N63: " , "title":" | O63: 《戒蕴品》 | P63: " , "c1":" | Q63: 义注 | R63: " , "c2":" | S63: 经藏 | T63: " , "c3":" | U63: 长部 | V63: " , "c4":" | X63: " },
A64: =B64*10+C64+D64/10+E64/100 -> 21.12 | B64: 2 | C64: 1 | D64: 1 | E64: 2 | F64: { "name":" | G64: k-dn2 | H64: " , "row":" | I64: 104 | J64: " , "id":"p | K64: 104 | L64: " , "folder":" | M64: s0102a.att | N64: " , "title":" | O64: 《大品》 | P64: " , "c1":" | Q64: 义注 | R64: " , "c2":" | S64: 经藏 | T64: " , "c3":" | U64: 长部 | V64: " , "c4":" | X64: " },
A65: =B65*10+C65+D65/10+E65/100 -> 21.13 | B65: 2 | C65: 1 | D65: 1 | E65: 3 | F65: { "name":" | G65: k-dn3 | H65: " , "row":" | I65: 105 | J65: " , "id":"p | K65: 105 | L65: " , "folder":" | M65: s0103a.att | N65: " , "title":" | O65: 《巴提咖品》 | P65: " , "c1":" | Q65: 义注 | R65: " , "c2":" | S65: 经藏 | T65: " , "c3":" | U65: 长部 | V65: " , "c4":" | X65: " },
A66: =B66*10+C66+D66/10+E66/100 -> 21.21 | B66: 2 | C66: 1 | D66: 2 | E66: 1 | F66: { "name":" | G66: k-mn1 | H66: " , "row":" | I66: 130 | J66: " , "id":"p | K66: 130 | L66: " , "folder":" | M66: s0201a.att | N66: " , "title":" | O66: 《根本五十经》 | P66: " , "c1":" | Q66: 义注 | R66: " , "c2":" | S66: 经藏 | T66: " , "c3":" | U66: 中部 | V66: " , "c4":" | X66: " },
A67: =B67*10+C67+D67/10+E67/100 -> 21.22 | B67: 2 | C67: 1 | D67: 2 | E67: 2 | F67: { "name":" | G67: k-mn2 | H67: " , "row":" | I67: 131 | J67: " , "id":"p | K67: 131 | L67: " , "folder":" | M67: s0202a.att | N67: " , "title":" | O67: 《中五十经》 | P67: " , "c1":" | Q67: 义注 | R67: " , "c2":" | S67: 经藏 | T67: " , "c3":" | U67: 中部 | V67: " , "c4":" | X67: " },
A68: =B68*10+C68+D68/10+E68/100 -> 21.23 | B68: 2 | C68: 1 | D68: 2 | E68: 3 | F68: { "name":" | G68: k-mn3 | H68: " , "row":" | I68: 132 | J68: " , "id":"p | K68: 132 | L68: " , "folder":" | M68: s0203a.att | N68: " , "title":" | O68: 《后五十经》 | P68: " , "c1":" | Q68: 义注 | R68: " , "c2":" | S68: 经藏 | T68: " , "c3":" | U68: 中部 | V68: " , "c4":" | X68: " },
A69: =B69*10+C69+D69/10+E69/100 -> 21.31 | B69: 2 | C69: 1 | D69: 3 | E69: 1 | F69: { "name":" | G69: k-sn1 | H69: " , "row":" | I69: 133 | J69: " , "id":"p | K69: 133 | L69: " , "folder":" | M69: s0301a.att | N69: " , "title":" | O69: 《有偈品》 | P69: " , "c1":" | Q69: 义注 | R69: " , "c2":" | S69: 经藏 | T69: " , "c3":" | U69: 相应部 | V69: " , "c4":" | X69: " },
A70: =B70*10+C70+D70/10+E70/100 -> 21.32 | B70: 2 | C70: 1 | D70: 3 | E70: 2 | F70: { "name":" | G70: k-sn2 | H70: " , "row":" | I70: 134 | J70: " , "id":"p | K70: 134 | L70: " , "folder":" | M70: s0302a.att | N70: " , "title":" | O70: 《因缘品》 | P70: " , "c1":" | Q70: 义注 | R70: " , "c2":" | S70: 经藏 | T70: " , "c3":" | U70: 相应部 | V70: " , "c4":" | X70: " },
A71: =B71*10+C71+D71/10+E71/100 -> 21.33 | B71: 2 | C71: 1 | D71: 3 | E71: 3 | F71: { "name":" | G71: k-sn3 | H71: " , "row":" | I71: 135 | J71: " , "id":"p | K71: 135 | L71: " , "folder":" | M71: s0303a.att | N71: " , "title":" | O71: 《蕴品》 | P71: " , "c1":" | Q71: 义注 | R71: " , "c2":" | S71: 经藏 | T71: " , "c3":" | U71: 相应部 | V71: " , "c4":" | X71: " },
A72: =B72*10+C72+D72/10+E72/100 -> 21.34 | B72: 2 | C72: 1 | D72: 3 | E72: 4 | F72: { "name":" | G72: k-sn4 | H72: " , "row":" | I72: 136 | J72: " , "id":"p | K72: 136 | L72: " , "folder":" | M72: s0304a.att | N72: " , "title":" | O72: 《六处品》 | P72: " , "c1":" | Q72: 义注 | R72: " , "c2":" | S72: 经藏 | T72: " , "c3":" | U72: 相应部 | V72: " , "c4":" | X72: " },
A73: =B73*10+C73+D73/10+E73/100 -> 21.35 | B73: 2 | C73: 1 | D73: 3 | E73: 5 | F73: { "name":" | G73: k-sn5 | H73: " , "row":" | I73: 137 | J73: " , "id":"p | K73: 137 | L73: " , "folder":" | M73: s0305a.att | N73: " , "title":" | O73: 《大品》 | P73: " , "c1":" | Q73: 义注 | R73: " , "c2":" | S73: 经藏 | T73: " , "c3":" | U73: 相应部 | V73: " , "c4":" | X73: " },
A74: =B74*10+C74+D74/10+E74/100 -> 21.41 | B74: 2 | C74: 1 | D74: 4 | E74: 1 | F74: { "name":" | G74: k-an1 | H74: " , "row":" | I74: 99 | J74: " , "id":"p | K74: 99 | L74: " , "folder":" | M74: s0401a.att | N74: " , "title":" | O74: 《壹》 | P74: " , "c1":" | Q74: 义注 | R74: " , "c2":" | S74: 经藏 | T74: " , "c3":" | U74: 增支部 | V74: " , "c4":" | X74: " },
A75: =B75*10+C75+D75/10+E75/100 -> 21.42 | B75: 2 | C75: 1 | D75: 4 | E75: 2 | F75: { "name":" | G75: k-an2 | H75: " , "row":" | I75: 100 | J75: " , "id":"p | K75: 100 | L75: " , "folder":" | M75: s0402a.att | N75: " , "title":" | O75: 《贰三肆》 | P75: " , "c1":" | Q75: 义注 | R75: " , "c2":" | S75: 经藏 | T75: " , "c3":" | U75: 增支部 | V75: " , "c4":" | X75: " },
A76: =B76*10+C76+D76/10+E76/100 -> 21.43 | B76: 2 | C76: 1 | D76: 4 | E76: 3 | F76: { "name":" | G76: k-an5 | H76: " , "row":" | I76: 101 | J76: " , "id":"p | K76: 101 | L76: " , "folder":" | M76: s0403a.att | N76: " , "title":" | O76: 《伍陆柒》 | P76: " , "c1":" | Q76: 义注 | R76: " , "c2":" | S76: 经藏 | T76: " , "c3":" | U76: 增支部 | V76: " , "c4":" | X76: " },
A77: =B77*10+C77+D77/10+E77/100 -> 21.44 | B77: 2 | C77: 1 | D77: 4 | E77: 4 | F77: { "name":" | G77: k-an8 | H77: " , "row":" | I77: 102 | J77: " , "id":"p | K77: 102 | L77: " , "folder":" | M77: s0404a.att | N77: " , "title":" | O77: 《捌》 | P77: " , "c1":" | Q77: 义注 | R77: " , "c2":" | S77: 经藏 | T77: " , "c3":" | U77: 增支部 | V77: " , "c4":" | X77: " },
A78: =B78*10+C78+D78/10+E78/100 -> 21.51 | B78: 2 | C78: 1 | D78: 5 | E78: 1 | F78: { "name":" | G78: k-kn1 | H78: " , "row":" | I78: 116 | J78: " , "id":"p | K78: 116 | L78: " , "folder":" | M78: s0501a.att | N78: " , "title":" | O78: 《小诵》 | P78: " , "c1":" | Q78: 义注 | R78: " , "c2":" | S78: 经藏 | T78: " , "c3":" | U78: 小部 | V78: " , "c4":" | X78: " },
A79: =B79*10+C79+D79/10+E79/100 -> 21.52 | B79: 2 | C79: 1 | D79: 5 | E79: 2 | F79: { "name":" | G79: k-kn2 | H79: " , "row":" | I79: 122 | J79: " , "id":"p | K79: 122 | L79: " , "folder":" | M79: s0502a.att | N79: " , "title":" | O79: 《法句》 | P79: " , "c1":" | Q79: 义注 | R79: " , "c2":" | S79: 经藏 | T79: " , "c3":" | U79: 小部 | V79: " , "c4":" | X79: " },
A80: =B80*10+C80+D80/10+E80/100 -> 21.53 | B80: 2 | C80: 1 | D80: 5 | E80: 3 | F80: { "name":" | G80: k-kn3 | H80: " , "row":" | I80: 123 | J80: " , "id":"p | K80: 123 | L80: " , "folder":" | M80: s0503a.att | N80: " , "title":" | O80: 《自说》 | P80: " , "c1":" | Q80: 义注 | R80: " , "c2":" | S80: 经藏 | T80: " , "c3":" | U80: 小部 | V80: " , "c4":" | X80: " },
A81: =B81*10+C81+D81/10+E81/100 -> 21.54 | B81: 2 | C81: 1 | D81: 5 | E81: 4 | F81: { "name":" | G81: k-kn4 | H81: " , "row":" | I81: 124 | J81: " , "id":"p | K81: 124 | L81: " , "folder":" | M81: s0504a.att | N81: " , "title":" | O81: 《如是语》 | P81: " , "c1":" | Q81: 义注 | R81: " , "c2":" | S81: 经藏 | T81: " , "c3":" | U81: 小部 | V81: " , "c4":" | X81: " },
A82: =B82*10+C82+D82/10+E82/100 -> 21.55 | B82: 2 | C82: 1 | D82: 5 | E82: 5 | F82: { "name":" | G82: k-kn5 | H82: " , "row":" | I82: 125 | J82: " , "id":"p | K82: 125 | L82: " , "folder":" | M82: s0505a.att | N82: " , "title":" | O82: 《经集》 | P82: " , "c1":" | Q82: 义注 | R82: " , "c2":" | S82: 经藏 | T82: " , "c3":" | U82: 小部 | V82: " , "c4":" | X82: " },
A83: =B83*10+C83+D83/10+E83/100 -> 21.56 | B83: 2 | C83: 1 | D83: 5 | E83: 6 | F83: { "name":" | G83: k-kn6 | H83: " , "row":" | I83: 126 | J83: " , "id":"p | K83: 126 | L83: " , "folder":" | M83: s0506a.att | N83: " , "title":" | O83: 《天宫故事》 | P83: " , "c1":" | Q83: 义注 | R83: " , "c2":" | S83: 经藏 | T83: " , "c3":" | U83: 小部 | V83: " , "c4":" | X83: " },
A84: =B84*10+C84+D84/10+E84/100 -> 21.57 | B84: 2 | C84: 1 | D84: 5 | E84: 7 | F84: { "name":" | G84: k-kn7 | H84: " , "row":" | I84: 127 | J84: " , "id":"p | K84: 127 | L84: " , "folder":" | M84: s0507a.att | N84: " , "title":" | O84: 《鬼故事》 | P84: " , "c1":" | Q84: 义注 | R84: " , "c2":" | S84: 经藏 | T84: " , "c3":" | U84: 小部 | V84: " , "c4":" | X84: " },
A85: =B85*10+C85+D85/10+E85/100 -> 21.58 | B85: 2 | C85: 1 | D85: 5 | E85: 8 | F85: { "name":" | G85: k-kn8 | H85: " , "row":" | I85: 128 | J85: " , "id":"p | K85: 128 | L85: " , "folder":" | M85: s0508a1.att | N85: " , "title":" | O85: 《长老偈一》 | P85: " , "c1":" | Q85: 义注 | R85: " , "c2":" | S85: 经藏 | T85: " , "c3":" | U85: 小部 | V85: " , "c4":" | X85: " },
A86: =B86*10+C86+D86/10+E86/100 -> 21.581 | B86: 2 | C86: 1 | D86: 5 | E86: 8.1 | F86: { "name":" | G86: k-kn9 | H86: " , "row":" | I86: 129 | J86: " , "id":"p | K86: 129 | L86: " , "folder":" | M86: s0508a2.att | N86: " , "title":" | O86: 《长老偈二》 | P86: " , "c1":" | Q86: 义注 | R86: " , "c2":" | S86: 经藏 | T86: " , "c3":" | U86: 小部 | V86: " , "c4":" | X86: " },
A87: =B87*10+C87+D87/10+E87/100 -> 21.582 | B87: 2 | C87: 1 | D87: 5 | E87: 8.2 | F87: { "name":" | G87: k-kn10 | H87: " , "row":" | I87: 106 | J87: " , "id":"p | K87: 106 | L87: " , "folder":" | M87: s0509a.att | N87: " , "title":" | O87: 《长老尼偈》 | P87: " , "c1":" | Q87: 义注 | R87: " , "c2":" | S87: 经藏 | T87: " , "c3":" | U87: 小部 | V87: " , "c4":" | X87: " },
A88: =B88*10+C88+D88/10+E88/100 -> 21.583 | B88: 2 | C88: 1 | D88: 5 | E88: 8.3 | F88: { "name":" | G88: k-kn11 | H88: " , "row":" | I88: 107 | J88: " , "id":"p | K88: 107 | L88: " , "folder":" | M88: s0510a.att | N88: " , "title":" | O88: 《譬喻经》 | P88: " , "c1":" | Q88: 义注 | R88: " , "c2":" | S88: 经藏 | T88: " , "c3":" | U88: 小部 | V88: " , "c4":" | X88: " },
A89: =B89*10+C89+D89/10+E89/100 -> 21.584 | B89: 2 | C89: 1 | D89: 5 | E89: 8.4 | F89: { "name":" | G89: k-kn12 | H89: " , "row":" | I89: 108 | J89: " , "id":"p | K89: 108 | L89: " , "folder":" | M89: s0511a.att | N89: " , "title":" | O89: 《佛种姓》 | P89: " , "c1":" | Q89: 义注 | R89: " , "c2":" | S89: 经藏 | T89: " , "c3":" | U89: 小部 | V89: " , "c4":" | X89: " },
A90: =B90*10+C90+D90/10+E90/100 -> 21.585 | B90: 2 | C90: 1 | D90: 5 | E90: 8.5 | F90: { "name":" | G90: k-kn13 | H90: " , "row":" | I90: 109 | J90: " , "id":"p | K90: 109 | L90: " , "folder":" | M90: s0512a.att | N90: " , "title":" | O90: 《所行藏》 | P90: " , "c1":" | Q90: 义注 | R90: " , "c2":" | S90: 经藏 | T90: " , "c3":" | U90: 小部 | V90: " , "c4":" | X90: " },
A91: =B91*10+C91+D91/10+E91/100 -> 21.586 | B91: 2 | C91: 1 | D91: 5 | E91: 8.6 | F91: { "name":" | G91: k-kn14 | H91: " , "row":" | I91: 110 | J91: " , "id":"p | K91: 110 | L91: " , "folder":" | M91: s0513a1.att | N91: " , "title":" | O91: 《本生一》 | P91: " , "c1":" | Q91: 义注 | R91: " , "c2":" | S91: 经藏 | T91: " , "c3":" | U91: 小部 | V91: " , "c4":" | X91: " },
A92: =B92*10+C92+D92/10+E92/100 -> 21.587 | B92: 2 | C92: 1 | D92: 5 | E92: 8.7 | F92: { "name":" | G92: k-kn15 | H92: " , "row":" | I92: 111 | J92: " , "id":"p | K92: 111 | L92: " , "folder":" | M92: s0513a2.att | N92: " , "title":" | O92: 《本生二》 | P92: " , "c1":" | Q92: 义注 | R92: " , "c2":" | S92: 经藏 | T92: " , "c3":" | U92: 小部 | V92: " , "c4":" | X92: " },
A93: =B93*10+C93+D93/10+E93/100 -> 21.588 | B93: 2 | C93: 1 | D93: 5 | E93: 8.8 | F93: { "name":" | G93: k-kn16 | H93: " , "row":" | I93: 112 | J93: " , "id":"p | K93: 112 | L93: " , "folder":" | M93: s0513a3.att | N93: " , "title":" | O93: 《本生三》 | P93: " , "c1":" | Q93: 义注 | R93: " , "c2":" | S93: 经藏 | T93: " , "c3":" | U93: 小部 | V93: " , "c4":" | X93: " },
A94: =B94*10+C94+D94/10+E94/100 -> 21.589 | B94: 2 | C94: 1 | D94: 5 | E94: 8.9 | F94: { "name":" | G94: k-kn17 | H94: " , "row":" | I94: 113 | J94: " , "id":"p | K94: 113 | L94: " , "folder":" | M94: s0513a4.att | N94: " , "title":" | O94: 《本生四》 | P94: " , "c1":" | Q94: 义注 | R94: " , "c2":" | S94: 经藏 | T94: " , "c3":" | U94: 小部 | V94: " , "c4":" | X94: " },
A95: =B95*10+C95+D95/10+E95/100 -> 21.59 | B95: 2 | C95: 1 | D95: 5 | E95: 9 | F95: { "name":" | G95: k-kn18 | H95: " , "row":" | I95: 114 | J95: " , "id":"p | K95: 114 | L95: " , "folder":" | M95: s0514a1.att | N95: " , "title":" | O95: 《本生五》 | P95: " , "c1":" | Q95: 义注 | R95: " , "c2":" | S95: 经藏 | T95: " , "c3":" | U95: 小部 | V95: " , "c4":" | X95: " },
A96: =B96*10+C96+D96/10+E96/100 -> 21.591 | B96: 2 | C96: 1 | D96: 5 | E96: 9.1 | F96: { "name":" | G96: k-kn19 | H96: " , "row":" | I96: 115 | J96: " , "id":"p | K96: 115 | L96: " , "folder":" | M96: s0514a2.att | N96: " , "title":" | O96: 《本生六》 | P96: " , "c1":" | Q96: 义注 | R96: " , "c2":" | S96: 经藏 | T96: " , "c3":" | U96: 小部 | V96: " , "c4":" | X96: " },
A97: =B97*10+C97+D97/10+E97/100 -> 21.592 | B97: 2 | C97: 1 | D97: 5 | E97: 9.2 | F97: { "name":" | G97: k-kn20 | H97: " , "row":" | I97: 117 | J97: " , "id":"p | K97: 117 | L97: " , "folder":" | M97: s0514a3.att | N97: " , "title":" | O97: 《本生七》 | P97: " , "c1":" | Q97: 义注 | R97: " , "c2":" | S97: 经藏 | T97: " , "c3":" | U97: 小部 | V97: " , "c4":" | X97: " },
A98: =B98*10+C98+D98/10+E98/100 -> 21.593 | B98: 2 | C98: 1 | D98: 5 | E98: 9.3 | F98: { "name":" | G98: k-kn21 | H98: " , "row":" | I98: 118 | J98: " , "id":"p | K98: 118 | L98: " , "folder":" | M98: s0515a.att | N98: " , "title":" | O98: 《大义释》 | P98: " , "c1":" | Q98: 义注 | R98: " , "c2":" | S98: 经藏 | T98: " , "c3":" | U98: 小部 | V98: " , "c4":" | X98: " },
A99: =B99*10+C99+D99/10+E99/100 -> 21.594 | B99: 2 | C99: 1 | D99: 5 | E99: 9.4 | F99: { "name":" | G99: k-kn22 | H99: " , "row":" | I99: 119 | J99: " , "id":"p | K99: 119 | L99: " , "folder":" | M99: s0516a.att | N99: " , "title":" | O99: 《小义释》 | P99: " , "c1":" | Q99: 义注 | R99: " , "c2":" | S99: 经藏 | T99: " , "c3":" | U99: 小部 | V99: " , "c4":" | X99: " },
A100: =B100*10+C100+D100/10+E100/100 -> 21.595 | B100: 2 | C100: 1 | D100: 5 | E100: 9.5 | F100: { "name":" | G100: k-kn23 | H100: " , "row":" | I100: 120 | J100: " , "id":"p | K100: 120 | L100: " , "folder":" | M100: s0517a.att | N100: " , "title":" | O100: 《无碍解道》 | P100: " , "c1":" | Q100: 义注 | R100: " , "c2":" | S100: 经藏 | T100: " , "c3":" | U100: 小部 | V100: " , "c4":" | X100: " },
A101: =B101*10+C101+D101/10+E101/100 -> 21.596 | B101: 2 | C101: 1 | D101: 5 | E101: 9.6 | F101: { "name":" | G101: k-kn24 | H101: " , "row":" | I101: 121 | J101: " , "id":"p | K101: 121 | L101: " , "folder":" | M101: s0519a.att | N101: " , "title":" | O101: 《导论》 | P101: " , "c1":" | Q101: 义注 | R101: " , "c2":" | S101: 经藏 | T101: " , "c3":" | U101: 小部 | V101: " , "c4":" | X101: " },
A102: =B102*10+C102+D102/10+E102/100 -> 22.11 | B102: 2 | C102: 2 | D102: 1 | E102: 1 | F102: { "name":" | G102: k-vin1 | H102: " , "row":" | I102: 138 | J102: " , "id":"p | K102: 138 | L102: " , "folder":" | M102: vin01a.att | N102: " , "title":" | O102: 《巴拉基咖》 | P102: " , "c1":" | Q102: 义注 | R102: " , "c2":" | S102: 律藏 | T102: " , "c3":" | U102: 经分别 | V102: " , "c4":" | X102: " },
A103: =B103*10+C103+D103/10+E103/100 -> 22.12 | B103: 2 | C103: 2 | D103: 1 | E103: 2 | F103: { "name":" | G103: k-vin2 | H103: " , "row":" | I103: 139 | J103: " , "id":"p | K103: 139 | L103: " , "folder":" | M103: vin02a1.att | N103: " , "title":" | O103: 《巴吉蒂亚》 | P103: " , "c1":" | Q103: 义注 | R103: " , "c2":" | S103: 律藏 | T103: " , "c3":" | U103: 经分别 | V103: " , "c4":" | X103: " },
A104: =B104*10+C104+D104/10+E104/100 -> 22.21 | B104: 2 | C104: 2 | D104: 2 | E104: 1 | F104: { "name":" | G104: k-vin3 | H104: " , "row":" | I104: 140 | J104: " , "id":"p | K104: 140 | L104: " , "folder":" | M104: vin02a2.att | N104: " , "title":" | O104: 《大品》 | P104: " , "c1":" | Q104: 义注 | R104: " , "c2":" | S104: 律藏 | T104: " , "c3":" | U104: 犍度 | V104: " , "c4":" | X104: " },
A105: =B105*10+C105+D105/10+E105/100 -> 22.22 | B105: 2 | C105: 2 | D105: 2 | E105: 2 | F105: { "name":" | G105: k-vin4 | H105: " , "row":" | I105: 141 | J105: " , "id":"p | K105: 141 | L105: " , "folder":" | M105: vin02a3.att | N105: " , "title":" | O105: 《小品》 | P105: " , "c1":" | Q105: 义注 | R105: " , "c2":" | S105: 律藏 | T105: " , "c3":" | U105: 犍度 | V105: " , "c4":" | X105: " },
A106: =B106*10+C106+D106/10+E106/100 -> 22.31 | B106: 2 | C106: 2 | D106: 3 | E106: 1 | F106: { "name":" | G106: k-vin5 | H106: " , "row":" | I106: 142 | J106: " , "id":"p | K106: 142 | L106: " , "folder":" | M106: vin02a4.att | N106: " , "title":" | O106: 《附随》 | P106: " , "c1":" | Q106: 义注 | R106: " , "c2":" | S106: 律藏 | T106: " , "c3":" | U106: 附随 | V106: " , "c4":" | X106: " },
A107: =B107*10+C107+D107/10+E107/100 -> 23.1 | B107: 2 | C107: 3 | D107: 1 | F107: { "name":" | G107: k-abh1 | H107: " , "row":" | I107: 96 | J107: " , "id":"p | K107: 96 | L107: " , "folder":" | M107: abh01a.att | N107: " , "title":" | O107: 《法集论》 | P107: " , "c1":" | Q107: 义注 | R107: " , "c2":" | S107: 阿毗达摩藏 | T107: " , "c3":" | V107: " , "c4":" | X107: " },
A108: =B108*10+C108+D108/10+E108/100 -> 23.2 | B108: 2 | C108: 3 | D108: 2 | F108: { "name":" | G108: k-abh2 | H108: " , "row":" | I108: 97 | J108: " , "id":"p | K108: 97 | L108: " , "folder":" | M108: abh02a.att | N108: " , "title":" | O108: 《去除愚痴》 | P108: " , "c1":" | Q108: 义注 | R108: " , "c2":" | S108: 阿毗达摩藏 | T108: " , "c3":" | V108: " , "c4":" | X108: " },
A109: =B109*10+C109+D109/10+E109/100 -> 23.3 | B109: 2 | C109: 3 | D109: 3 | F109: { "name":" | G109: k-abh3 | H109: " , "row":" | I109: 98 | J109: " , "id":"p | K109: 98 | L109: " , "folder":" | M109: abh03a.att | N109: " , "title":" | O109: 《五部论注》 | P109: " , "c1":" | Q109: 义注 | R109: " , "c2":" | S109: 阿毗达摩藏 | T109: " , "c3":" | V109: " , "c4":" | X109: " },
A110: =B110*10+C110+D110/10+E110/100 -> 31.11 | B110: 3 | C110: 1 | D110: 1 | E110: 1 | F110: { "name":" | G110: t-dn1 | H110: " , "row":" | I110: 185 | J110: " , "id":"p | K110: 185 | L110: " , "folder":" | M110: s0101t.tik | N110: " , "title":" | O110: 《戒蕴品》 | P110: " , "c1":" | Q110: 复注 | R110: " , "c2":" | S110: 经藏 | T110: " , "c3":" | U110: 长部 | V110: " , "c4":" | X110: " },
A111: =B111*10+C111+D111/10+E111/100 -> 31.12 | B111: 3 | C111: 1 | D111: 1 | E111: 2 | F111: { "name":" | G111: t-dn2 | H111: " , "row":" | I111: 186 | J111: " , "id":"p | K111: 186 | L111: " , "folder":" | M111: s0102t.tik | N111: " , "title":" | O111: 《大品》 | P111: " , "c1":" | Q111: 复注 | R111: " , "c2":" | S111: 经藏 | T111: " , "c3":" | U111: 长部 | V111: " , "c4":" | X111: " },
A112: =B112*10+C112+D112/10+E112/100 -> 31.13 | B112: 3 | C112: 1 | D112: 1 | E112: 3 | F112: { "name":" | G112: t-dn3 | H112: " , "row":" | I112: 187 | J112: " , "id":"p | K112: 187 | L112: " , "folder":" | M112: s0103t.tik | N112: " , "title":" | O112: 《巴提咖品》 | P112: " , "c1":" | Q112: 复注 | R112: " , "c2":" | S112: 经藏 | T112: " , "c3":" | U112: 长部 | V112: " , "c4":" | X112: " },
A113: =B113*10+C113+D113/10+E113/100 -> 31.14 | B113: 3 | C113: 1 | D113: 1 | E113: 4 | F113: { "name":" | G113: t-dn4 | H113: " , "row":" | I113: 188 | J113: " , "id":"p | K113: 188 | L113: " , "folder":" | M113: s0104t.nrf | N113: " , "title":" | O113: 《戒蕴品新复注》（一） | P113: " , "c1":" | Q113: 复注 | R113: " , "c2":" | S113: 经藏 | T113: " , "c3":" | U113: 长部 | V113: " , "c4":" | X113: " },
A114: =B114*10+C114+D114/10+E114/100 -> 31.15 | B114: 3 | C114: 1 | D114: 1 | E114: 5 | F114: { "name":" | G114: t-dn5 | H114: " , "row":" | I114: 189 | J114: " , "id":"p | K114: 189 | L114: " , "folder":" | M114: s0105t.nrf | N114: " , "title":" | O114: 《戒蕴品新复注》（二） | P114: " , "c1":" | Q114: 复注 | R114: " , "c2":" | S114: 经藏 | T114: " , "c3":" | U114: 长部 | V114: " , "c4":" | X114: " },
A115: =B115*10+C115+D115/10+E115/100 -> 31.21 | B115: 3 | C115: 1 | D115: 2 | E115: 1 | F115: { "name":" | G115: t-mn1 | H115: " , "row":" | I115: 192 | J115: " , "id":"p | K115: 192 | L115: " , "folder":" | M115: s0201t.tik | N115: " , "title":" | O115: 《根本五十经》 | P115: " , "c1":" | Q115: 复注 | R115: " , "c2":" | S115: 经藏 | T115: " , "c3":" | U115: 中部 | V115: " , "c4":" | X115: " },
A116: =B116*10+C116+D116/10+E116/100 -> 31.22 | B116: 3 | C116: 1 | D116: 2 | E116: 2 | F116: { "name":" | G116: t-mn2 | H116: " , "row":" | I116: 193 | J116: " , "id":"p | K116: 193 | L116: " , "folder":" | M116: s0202t.tik | N116: " , "title":" | O116: 《中五十经》 | P116: " , "c1":" | Q116: 复注 | R116: " , "c2":" | S116: 经藏 | T116: " , "c3":" | U116: 中部 | V116: " , "c4":" | X116: " },
A117: =B117*10+C117+D117/10+E117/100 -> 31.23 | B117: 3 | C117: 1 | D117: 2 | E117: 3 | F117: { "name":" | G117: t-mn3 | H117: " , "row":" | I117: 194 | J117: " , "id":"p | K117: 194 | L117: " , "folder":" | M117: s0203t.tik | N117: " , "title":" | O117: 《后五十经》 | P117: " , "c1":" | Q117: 复注 | R117: " , "c2":" | S117: 经藏 | T117: " , "c3":" | U117: 中部 | V117: " , "c4":" | X117: " },
A118: =B118*10+C118+D118/10+E118/100 -> 31.31 | B118: 3 | C118: 1 | D118: 3 | E118: 1 | F118: { "name":" | G118: t-sn1 | H118: " , "row":" | I118: 195 | J118: " , "id":"p | K118: 195 | L118: " , "folder":" | M118: s0301t.tik | N118: " , "title":" | O118: 《有偈品》 | P118: " , "c1":" | Q118: 复注 | R118: " , "c2":" | S118: 经藏 | T118: " , "c3":" | U118: 相应部 | V118: " , "c4":" | X118: " },
A119: =B119*10+C119+D119/10+E119/100 -> 31.32 | B119: 3 | C119: 1 | D119: 3 | E119: 2 | F119: { "name":" | G119: t-sn2 | H119: " , "row":" | I119: 196 | J119: " , "id":"p | K119: 196 | L119: " , "folder":" | M119: s0302t.tik | N119: " , "title":" | O119: 《因缘品》 | P119: " , "c1":" | Q119: 复注 | R119: " , "c2":" | S119: 经藏 | T119: " , "c3":" | U119: 相应部 | V119: " , "c4":" | X119: " },
A120: =B120*10+C120+D120/10+E120/100 -> 31.33 | B120: 3 | C120: 1 | D120: 3 | E120: 3 | F120: { "name":" | G120: t-sn3 | H120: " , "row":" | I120: 197 | J120: " , "id":"p | K120: 197 | L120: " , "folder":" | M120: s0303t.tik | N120: " , "title":" | O120: 《蕴品》 | P120: " , "c1":" | Q120: 复注 | R120: " , "c2":" | S120: 经藏 | T120: " , "c3":" | U120: 相应部 | V120: " , "c4":" | X120: " },
A121: =B121*10+C121+D121/10+E121/100 -> 31.34 | B121: 3 | C121: 1 | D121: 3 | E121: 4 | F121: { "name":" | G121: t-sn4 | H121: " , "row":" | I121: 198 | J121: " , "id":"p | K121: 198 | L121: " , "folder":" | M121: s0304t.tik | N121: " , "title":" | O121: 《六处品》 | P121: " , "c1":" | Q121: 复注 | R121: " , "c2":" | S121: 经藏 | T121: " , "c3":" | U121: 相应部 | V121: " , "c4":" | X121: " },
A122: =B122*10+C122+D122/10+E122/100 -> 31.35 | B122: 3 | C122: 1 | D122: 3 | E122: 5 | F122: { "name":" | G122: t-sn5 | H122: " , "row":" | I122: 199 | J122: " , "id":"p | K122: 199 | L122: " , "folder":" | M122: s0305t.tik | N122: " , "title":" | O122: 《大品》 | P122: " , "c1":" | Q122: 复注 | R122: " , "c2":" | S122: 经藏 | T122: " , "c3":" | U122: 相应部 | V122: " , "c4":" | X122: " },
A123: =B123*10+C123+D123/10+E123/100 -> 31.41 | B123: 3 | C123: 1 | D123: 4 | E123: 1 | F123: { "name":" | G123: t-an1 | H123: " , "row":" | I123: 181 | J123: " , "id":"p | K123: 181 | L123: " , "folder":" | M123: s0401t.tik | N123: " , "title":" | O123: 《壹》 | P123: " , "c1":" | Q123: 复注 | R123: " , "c2":" | S123: 经藏 | T123: " , "c3":" | U123: 增支部 | V123: " , "c4":" | X123: " },
A124: =B124*10+C124+D124/10+E124/100 -> 31.42 | B124: 3 | C124: 1 | D124: 4 | E124: 2 | F124: { "name":" | G124: t-an2 | H124: " , "row":" | I124: 182 | J124: " , "id":"p | K124: 182 | L124: " , "folder":" | M124: s0402t.tik | N124: " , "title":" | O124: 《贰三肆》 | P124: " , "c1":" | Q124: 复注 | R124: " , "c2":" | S124: 经藏 | T124: " , "c3":" | U124: 增支部 | V124: " , "c4":" | X124: " },
A125: =B125*10+C125+D125/10+E125/100 -> 31.43 | B125: 3 | C125: 1 | D125: 4 | E125: 3 | F125: { "name":" | G125: t-an3 | H125: " , "row":" | I125: 183 | J125: " , "id":"p | K125: 183 | L125: " , "folder":" | M125: s0403t.tik | N125: " , "title":" | O125: 《伍陆柒》 | P125: " , "c1":" | Q125: 复注 | R125: " , "c2":" | S125: 经藏 | T125: " , "c3":" | U125: 增支部 | V125: " , "c4":" | X125: " },
A126: =B126*10+C126+D126/10+E126/100 -> 31.44 | B126: 3 | C126: 1 | D126: 4 | E126: 4 | F126: { "name":" | G126: t-an4 | H126: " , "row":" | I126: 184 | J126: " , "id":"p | K126: 184 | L126: " , "folder":" | M126: s0404t.tik | N126: " , "title":" | O126: 《捌》 | P126: " , "c1":" | Q126: 复注 | R126: " , "c2":" | S126: 经藏 | T126: " , "c3":" | U126: 增支部 | V126: " , "c4":" | X126: " },
A127: =B127*10+C127+D127/10+E127/100 -> 31.51 | B127: 3 | C127: 1 | D127: 5 | E127: 1 | F127: { "name":" | G127: t-kn1 | H127: " , "row":" | I127: 190 | J127: " , "id":"p | K127: 190 | L127: " , "folder":" | M127: s0519t.tik | N127: " , "title":" | O127: 《导论》 | P127: " , "c1":" | Q127: 复注 | R127: " , "c2":" | S127: 经藏 | T127: " , "c3":" | U127: 小部 | V127: " , "c4":" | X127: " },
A128: =B128*10+C128+D128/10+E128/100 -> 31.52 | B128: 3 | C128: 1 | D128: 5 | E128: 2 | F128: { "name":" | G128: t-kn2 | H128: " , "row":" | I128: 191 | J128: " , "id":"p | K128: 191 | L128: " , "folder":" | M128: s0501t.nrf | N128: " , "title":" | O128: 《导明释》 | P128: " , "c1":" | Q128: 复注 | R128: " , "c2":" | S128: 经藏 | T128: " , "c3":" | U128: 小部 | V128: " , "c4":" | X128: " },
A129: =B129*10+C129+D129/10+E129/100 -> 32.1 | B129: 3 | C129: 2 | D129: 1 | F129: { "name":" | G129: t-vin1 | H129: " , "row":" | I129: 204 | J129: " , "id":"p | K129: 204 | L129: " , "folder":" | M129: vin01t1.tik | N129: " , "title":" | O129: 《心义灯一》 | P129: " , "c1":" | Q129: 复注 | R129: " , "c2":" | S129: 律藏 | T129: " , "c3":" | V129: " , "c4":" | X129: " },
A130: =B130*10+C130+D130/10+E130/100 -> 32.2 | B130: 3 | C130: 2 | D130: 2 | F130: { "name":" | G130: t-vin2 | H130: " , "row":" | I130: 205 | J130: " , "id":"p | K130: 205 | L130: " , "folder":" | M130: vin01t2.tik | N130: " , "title":" | O130: 《心义灯二》 | P130: " , "c1":" | Q130: 复注 | R130: " , "c2":" | S130: 律藏 | T130: " , "c3":" | V130: " , "c4":" | X130: " },
A131: =B131*10+C131+D131/10+E131/100 -> 32.3 | B131: 3 | C131: 2 | D131: 3 | F131: { "name":" | G131: t-vin3 | H131: " , "row":" | I131: 206 | J131: " , "id":"p | K131: 206 | L131: " , "folder":" | M131: vin02t.tik | N131: " , "title":" | O131: 《心义灯三》 | P131: " , "c1":" | Q131: 复注 | R131: " , "c2":" | S131: 律藏 | T131: " , "c3":" | V131: " , "c4":" | X131: " },
A132: =B132*10+C132+D132/10+E132/100 -> 32.4 | B132: 3 | C132: 2 | D132: 4 | F132: { "name":" | G132: t-vin4 | H132: " , "row":" | I132: 207 | J132: " , "id":"p | K132: 207 | L132: " , "folder":" | M132: vin04t.nrf | N132: " , "title":" | O132: 《两部本母》《疑惑度脱》 | P132: " , "c1":" | Q132: 复注 | R132: " , "c2":" | S132: 律藏 | T132: " , "c3":" | V132: " , "c4":" | X132: " },
A133: =B133*10+C133+D133/10+E133/100 -> 32.5 | B133: 3 | C133: 2 | D133: 5 | F133: { "name":" | G133: t-vin5 | H133: " , "row":" | I133: 208 | J133: " , "id":"p | K133: 208 | L133: " , "folder":" | M133: vin05t.nrf | N133: " , "title":" | O133: 《律摄》 | P133: " , "c1":" | Q133: 复注 | R133: " , "c2":" | S133: 律藏 | T133: " , "c3":" | V133: " , "c4":" | X133: " },
A134: =B134*10+C134+D134/10+E134/100 -> 32.6 | B134: 3 | C134: 2 | D134: 6 | F134: { "name":" | G134: t-vin6 | H134: " , "row":" | I134: 209 | J134: " , "id":"p | K134: 209 | L134: " , "folder":" | M134: vin06t.nrf | N134: " , "title":" | O134: 《金刚觉》 | P134: " , "c1":" | Q134: 复注 | R134: " , "c2":" | S134: 律藏 | T134: " , "c3":" | V134: " , "c4":" | X134: " },
A135: =B135*10+C135+D135/10+E135/100 -> 32.7 | B135: 3 | C135: 2 | D135: 7 | F135: { "name":" | G135: t-vin7 | H135: " , "row":" | I135: 210 | J135: " , "id":"p | K135: 210 | L135: " , "folder":" | M135: vin07t.nrf | N135: " , "title":" | O135: 《疑惑解除》 | P135: " , "c1":" | Q135: 复注 | R135: " , "c2":" | S135: 律藏 | T135: " , "c3":" | V135: " , "c4":" | X135: " },
A136: =B136*10+C136+D136/10+E136/100 -> 32.8 | B136: 3 | C136: 2 | D136: 8 | F136: { "name":" | G136: t-vin8 | H136: " , "row":" | I136: 211 | J136: " , "id":"p | K136: 211 | L136: " , "folder":" | M136: vin08t.nrf | N136: " , "title":" | O136: 《律庄严》 | P136: " , "c1":" | Q136: 复注 | R136: " , "c2":" | S136: 律藏 | T136: " , "c3":" | V136: " , "c4":" | X136: " },
A137: =B137*10+C137+D137/10+E137/100 -> 32.9 | B137: 3 | C137: 2 | D137: 9 | F137: { "name":" | G137: t-vin9 | H137: " , "row":" | I137: 212 | J137: " , "id":"p | K137: 212 | L137: " , "folder":" | M137: vin09t.nrf | N137: " , "title":" | O137: 《疑惑度脱古复注》 | P137: " , "c1":" | Q137: 复注 | R137: " , "c2":" | S137: 律藏 | T137: " , "c3":" | V137: " , "c4":" | X137: " },
A138: =B138*10+C138+D138/10+E138/100 -> 32.91 | B138: 3 | C138: 2 | D138: 9.1 | F138: { "name":" | G138: t-vin10 | H138: " , "row":" | I138: 200 | J138: " , "id":"p | K138: 200 | L138: " , "folder":" | M138: vin10t.nrf | N138: " , "title":" | O138: 《律裁定》《上裁定》 | P138: " , "c1":" | Q138: 复注 | R138: " , "c2":" | S138: 律藏 | T138: " , "c3":" | V138: " , "c4":" | X138: " },
A139: =B139*10+C139+D139/10+E139/100 -> 32.92 | B139: 3 | C139: 2 | D139: 9.2 | F139: { "name":" | G139: t-vin11 | H139: " , "row":" | I139: 201 | J139: " , "id":"p | K139: 201 | L139: " , "folder":" | M139: vin11t.nrf | N139: " , "title":" | O139: 《律裁定复注》 | P139: " , "c1":" | Q139: 复注 | R139: " , "c2":" | S139: 律藏 | T139: " , "c3":" | V139: " , "c4":" | X139: " },
A140: =B140*10+C140+D140/10+E140/100 -> 32.93 | B140: 3 | C140: 2 | D140: 9.3 | F140: { "name":" | G140: t-vin12 | H140: " , "row":" | I140: 202 | J140: " , "id":"p | K140: 202 | L140: " , "folder":" | M140: vin12t.nrf | N140: " , "title":" | O140: 《巴吉蒂亚解说》 | P140: " , "c1":" | Q140: 复注 | R140: " , "c2":" | S140: 律藏 | T140: " , "c3":" | V140: " , "c4":" | X140: " },
A141: =B141*10+C141+D141/10+E141/100 -> 32.94 | B141: 3 | C141: 2 | D141: 9.4 | F141: { "name":" | G141: t-vin13 | H141: " , "row":" | I141: 203 | J141: " , "id":"p | K141: 203 | L141: " , "folder":" | M141: vin13t.nrf | N141: " , "title":" | O141: 《小学，根本学复注》 | P141: " , "c1":" | Q141: 复注 | R141: " , "c2":" | S141: 律藏 | T141: " , "c3":" | V141: " , "c4":" | X141: " },
A142: =B142*10+C142+D142/10+E142/100 -> 33.1 | B142: 3 | C142: 3 | D142: 1 | F142: { "name":" | G142: t-abh1 | H142: " , "row":" | I142: 172 | J142: " , "id":"p | K142: 172 | L142: " , "folder":" | M142: abh01t.tik | N142: " , "title":" | O142: 《法集论根本》 | P142: " , "c1":" | Q142: 复注 | R142: " , "c2":" | S142: 阿毗达摩藏 | T142: " , "c3":" | V142: " , "c4":" | X142: " },
A143: =B143*10+C143+D143/10+E143/100 -> 33.2 | B143: 3 | C143: 3 | D143: 2 | F143: { "name":" | G143: t-abh2 | H143: " , "row":" | I143: 173 | J143: " , "id":"p | K143: 173 | L143: " , "folder":" | M143: abh02t.tik | N143: " , "title":" | O143: 《分别论根本》 | P143: " , "c1":" | Q143: 复注 | R143: " , "c2":" | S143: 阿毗达摩藏 | T143: " , "c3":" | V143: " , "c4":" | X143: " },
A144: =B144*10+C144+D144/10+E144/100 -> 33.3 | B144: 3 | C144: 3 | D144: 3 | F144: { "name":" | G144: t-abh3 | H144: " , "row":" | I144: 174 | J144: " , "id":"p | K144: 174 | L144: " , "folder":" | M144: abh03t.tik | N144: " , "title":" | O144: 《五部论根本》 | P144: " , "c1":" | Q144: 复注 | R144: " , "c2":" | S144: 阿毗达摩藏 | T144: " , "c3":" | V144: " , "c4":" | X144: " },
A145: =B145*10+C145+D145/10+E145/100 -> 33.4 | B145: 3 | C145: 3 | D145: 4 | F145: { "name":" | G145: t-abh4 | H145: " , "row":" | I145: 175 | J145: " , "id":"p | K145: 175 | L145: " , "folder":" | M145: abh04t.nrf | N145: " , "title":" | O145: 《法集论再复注》 | P145: " , "c1":" | Q145: 复注 | R145: " , "c2":" | S145: 阿毗达摩藏 | T145: " , "c3":" | V145: " , "c4":" | X145: " },
A146: =B146*10+C146+D146/10+E146/100 -> 33.5 | B146: 3 | C146: 3 | D146: 5 | F146: { "name":" | G146: t-abh5 | H146: " , "row":" | I146: 176 | J146: " , "id":"p | K146: 176 | L146: " , "folder":" | M146: abh05t.nrf | N146: " , "title":" | O146: 《五部论再复注》 | P146: " , "c1":" | Q146: 复注 | R146: " , "c2":" | S146: 阿毗达摩藏 | T146: " , "c3":" | V146: " , "c4":" | X146: " },
A147: =B147*10+C147+D147/10+E147/100 -> 33.6 | B147: 3 | C147: 3 | D147: 6 | F147: { "name":" | G147: t-abh6 | H147: " , "row":" | I147: 177 | J147: " , "id":"p | K147: 177 | L147: " , "folder":" | M147: abh06t.nrf | N147: " , "title":" | O147: 《入阿毗达摩论-名色差别论》 | P147: " , "c1":" | Q147: 复注 | R147: " , "c2":" | S147: 阿毗达摩藏 | T147: " , "c3":" | V147: " , "c4":" | X147: " },
A148: =B148*10+C148+D148/10+E148/100 -> 33.7 | B148: 3 | C148: 3 | D148: 7 | F148: { "name":" | G148: t-abh7 | H148: " , "row":" | I148: 178 | J148: " , "id":"p | K148: 178 | L148: " , "folder":" | M148: abh07t.nrf | N148: " , "title":" | O148: 《摄阿毗达摩义论》 | P148: " , "c1":" | Q148: 复注 | R148: " , "c2":" | S148: 阿毗达摩藏 | T148: " , "c3":" | V148: " , "c4":" | X148: " },
A149: =B149*10+C149+D149/10+E149/100 -> 33.8 | B149: 3 | C149: 3 | D149: 8 | F149: { "name":" | G149: t-abh8 | H149: " , "row":" | I149: 179 | J149: " , "id":"p | K149: 179 | L149: " , "folder":" | M149: abh08t.nrf | N149: " , "title":" | O149: 《入阿毗达摩论古复注》 | P149: " , "c1":" | Q149: 复注 | R149: " , "c2":" | S149: 阿毗达摩藏 | T149: " , "c3":" | V149: " , "c4":" | X149: " },
A150: =B150*10+C150+D150/10+E150/100 -> 33.9 | B150: 3 | C150: 3 | D150: 9 | F150: { "name":" | G150: t-abh9 | H150: " , "row":" | I150: 180 | J150: " , "id":"p | K150: 180 | L150: " , "folder":" | M150: abh09t.nrf | N150: " , "title":" | O150: 《阿毗达摩论母》 | P150: " , "c1":" | Q150: 复注 | R150: " , "c2":" | S150: 阿毗达摩藏 | T150: " , "c3":" | V150: " , "c4":" | X150: " },
A151: =B151*10+C151+D151/10+E151/100 -> 41.1 | B151: 4 | C151: 1 | D151: 1 | F151: { "name":" | G151: a-vis1 | H151: " , "row":" | I151: 64 | J151: " , "id":"p | K151: 64 | L151: " , "folder":" | M151: e0101n.mul | N151: " , "title":" | O151: 《清净之道-1》 | P151: " , "c1":" | Q151: 其他典籍 | R151: " , "c2":" | S151: 清净道路 | T151: " , "c3":" | V151: " , "c4":" | X151: " },
A152: =B152*10+C152+D152/10+E152/100 -> 41.2 | B152: 4 | C152: 1 | D152: 2 | F152: { "name":" | G152: a-vis2 | H152: " , "row":" | I152: 65 | J152: " , "id":"p | K152: 65 | L152: " , "folder":" | M152: e0102n.mul | N152: " , "title":" | O152: 《清净之道-2》 | P152: " , "c1":" | Q152: 其他典籍 | R152: " , "c2":" | S152: 清净道路 | T152: " , "c3":" | V152: " , "c4":" | X152: " },
A153: =B153*10+C153+D153/10+E153/100 -> 41.3 | B153: 4 | C153: 1 | D153: 3 | F153: { "name":" | G153: a-vis3 | H153: " , "row":" | I153: 66 | J153: " , "id":"p | K153: 66 | L153: " , "folder":" | M153: e0103n.att | N153: " , "title":" | O153: 《清净之道-大复注-1》 | P153: " , "c1":" | Q153: 其他典籍 | R153: " , "c2":" | S153: 清净道路 | T153: " , "c3":" | V153: " , "c4":" | X153: " },
A154: =B154*10+C154+D154/10+E154/100 -> 41.4 | B154: 4 | C154: 1 | D154: 4 | F154: { "name":" | G154: a-vis4 | H154: " , "row":" | I154: 67 | J154: " , "id":"p | K154: 67 | L154: " , "folder":" | M154: e0104n.att | N154: " , "title":" | O154: 《清净之道-大复注-2》 | P154: " , "c1":" | Q154: 其他典籍 | R154: " , "c2":" | S154: 清净道路 | T154: " , "c3":" | V154: " , "c4":" | X154: " },
A155: =B155*10+C155+D155/10+E155/100 -> 41.5 | B155: 4 | C155: 1 | D155: 5 | F155: { "name":" | G155: a-vis5 | H155: " , "row":" | I155: 68 | J155: " , "id":"p | K155: 68 | L155: " , "folder":" | M155: e0105n.nrf | N155: " , "title":" | O155: 《清净之道-序论》 | P155: " , "c1":" | Q155: 其他典籍 | R155: " , "c2":" | S155: 清净道路 | T155: " , "c3":" | V155: " , "c4":" | X155: " },
A156: =B156*10+C156+D156/10+E156/100 -> 42.1 | B156: 4 | C156: 2 | D156: 1 | F156: { "name":" | G156: a-sam1 | H156: " , "row":" | I156: 39 | J156: " , "id":"p | K156: 39 | L156: " , "folder":" | M156: e0901n.nrf | N156: " , "title":" | O156: 《长部》 | P156: " , "c1":" | Q156: 其他典籍 | R156: " , "c2":" | S156: 结集问答 | T156: " , "c3":" | V156: " , "c4":" | X156: " },
A157: =B157*10+C157+D157/10+E157/100 -> 42.2 | B157: 4 | C157: 2 | D157: 2 | F157: { "name":" | G157: a-sam2 | H157: " , "row":" | I157: 40 | J157: " , "id":"p | K157: 40 | L157: " , "folder":" | M157: e0902n.nrf | N157: " , "title":" | O157: 《中部》 | P157: " , "c1":" | Q157: 其他典籍 | R157: " , "c2":" | S157: 结集问答 | T157: " , "c3":" | V157: " , "c4":" | X157: " },
A158: =B158*10+C158+D158/10+E158/100 -> 42.3 | B158: 4 | C158: 2 | D158: 3 | F158: { "name":" | G158: a-sam3 | H158: " , "row":" | I158: 41 | J158: " , "id":"p | K158: 41 | L158: " , "folder":" | M158: e0903n.nrf | N158: " , "title":" | O158: 《相应部》 | P158: " , "c1":" | Q158: 其他典籍 | R158: " , "c2":" | S158: 结集问答 | T158: " , "c3":" | V158: " , "c4":" | X158: " },
A159: =B159*10+C159+D159/10+E159/100 -> 42.4 | B159: 4 | C159: 2 | D159: 4 | F159: { "name":" | G159: a-sam4 | H159: " , "row":" | I159: 42 | J159: " , "id":"p | K159: 42 | L159: " , "folder":" | M159: e0904n.nrf | N159: " , "title":" | O159: 《增支部》 | P159: " , "c1":" | Q159: 其他典籍 | R159: " , "c2":" | S159: 结集问答 | T159: " , "c3":" | V159: " , "c4":" | X159: " },
A160: =B160*10+C160+D160/10+E160/100 -> 42.5 | B160: 4 | C160: 2 | D160: 5 | F160: { "name":" | G160: a-sam5 | H160: " , "row":" | I160: 43 | J160: " , "id":"p | K160: 43 | L160: " , "folder":" | M160: e0905n.nrf | N160: " , "title":" | O160: 《律藏》 | P160: " , "c1":" | Q160: 其他典籍 | R160: " , "c2":" | S160: 结集问答 | T160: " , "c3":" | V160: " , "c4":" | X160: " },
A161: =B161*10+C161+D161/10+E161/100 -> 42.6 | B161: 4 | C161: 2 | D161: 6 | F161: { "name":" | G161: a-sam6 | H161: " , "row":" | I161: 44 | J161: " , "id":"p | K161: 44 | L161: " , "folder":" | M161: e0906n.nrf | N161: " , "title":" | O161: 《论藏》 | P161: " , "c1":" | Q161: 其他典籍 | R161: " , "c2":" | S161: 结集问答 | T161: " , "c3":" | V161: " , "c4":" | X161: " },
A162: =B162*10+C162+D162/10+E162/100 -> 42.7 | B162: 4 | C162: 2 | D162: 7 | F162: { "name":" | G162: a-sam7 | H162: " , "row":" | I162: 45 | J162: " , "id":"p | K162: 45 | L162: " , "folder":" | M162: e0907n.nrf | N162: " , "title":" | O162: 《义注》 | P162: " , "c1":" | Q162: 其他典籍 | R162: " , "c2":" | S162: 结集问答 | T162: " , "c3":" | V162: " , "c4":" | X162: " },
A163: =B163*10+C163+D163/10+E163/100 -> 43.1 | B163: 4 | C163: 3 | D163: 1 | F163: { "name":" | G163: a-led1 | H163: " , "row":" | I163: 22 | J163: " , "id":"p | K163: 22 | L163: " , "folder":" | M163: e0201n.nrf | N163: " , "title":" | O163: 《词语手册》 | P163: " , "c1":" | Q163: 其他典籍 | R163: " , "c2":" | S163: 雷迪大师作品集 | T163: " , "c3":" | V163: " , "c4":" | X163: " },
A164: =B164*10+C164+D164/10+E164/100 -> 43.2 | B164: 4 | C164: 3 | D164: 2 | F164: { "name":" | G164: a-led2 | H164: " , "row":" | I164: 23 | J164: " , "id":"p | K164: 23 | L164: " , "folder":" | M164: e0301n.nrf | N164: " , "title":" | O164: 《胜义手册》 | P164: " , "c1":" | Q164: 其他典籍 | R164: " , "c2":" | S164: 雷迪大师作品集 | T164: " , "c3":" | V164: " , "c4":" | X164: " },
A165: =B165*10+C165+D165/10+E165/100 -> 43.3 | B165: 4 | C165: 3 | D165: 3 | F165: { "name":" | G165: a-led3 | H165: " , "row":" | I165: 24 | J165: " , "id":"p | K165: 24 | L165: " , "folder":" | M165: e0401n.nrf | N165: " , "title":" | O165: 《再解读》（阿毗达摩概要注） | P165: " , "c1":" | Q165: 其他典籍 | R165: " , "c2":" | S165: 雷迪大师作品集 | T165: " , "c3":" | V165: " , "c4":" | X165: " },
A166: =B166*10+C166+D166/10+E166/100 -> 43.4 | B166: 4 | C166: 3 | D166: 4 | F166: { "name":" | G166: a-led4 | H166: " , "row":" | I166: 25 | J166: " , "id":"p | K166: 25 | L166: " , "folder":" | M166: e0501n.nrf | N166: " , "title":" | O166: 《发趣总说手册》 | P166: " , "c1":" | Q166: 其他典籍 | R166: " , "c2":" | S166: 雷迪大师作品集 | T166: " , "c3":" | V166: " , "c4":" | X166: " },
A167: =B167*10+C167+D167/10+E167/100 -> 44.1 | B167: 4 | C167: 4 | D167: 1 | F167: { "name":" | G167: a-bud1 | H167: " , "row":" | I167: 1 | J167: " , "id":"p | K167: 1 | L167: " , "folder":" | M167: e0601n.nrf | N167: " , "title":" | O167: 《礼敬复注》 | P167: " , "c1":" | Q167: 其他典籍 | R167: " , "c2":" | S167: 礼敬佛陀作品集 | T167: " , "c3":" | V167: " , "c4":" | X167: " },
A168: =B168*10+C168+D168/10+E168/100 -> 44.2 | B168: 4 | C168: 4 | D168: 2 | F168: { "name":" | G168: a-bud2 | H168: " , "row":" | I168: 2 | J168: " , "id":"p | K168: 2 | L168: " , "folder":" | M168: e0602n.nrf | N168: " , "title":" | O168: 《大礼敬》 | P168: " , "c1":" | Q168: 其他典籍 | R168: " , "c2":" | S168: 礼敬佛陀作品集 | T168: " , "c3":" | V168: " , "c4":" | X168: " },
A169: =B169*10+C169+D169/10+E169/100 -> 44.3 | B169: 4 | C169: 4 | D169: 3 | F169: { "name":" | G169: a-bud3 | H169: " , "row":" | I169: 3 | J169: " , "id":"p | K169: 3 | L169: " , "folder":" | M169: e0603n.nrf | N169: " , "title":" | O169: 《质量——佛之礼赞偈》 | P169: " , "c1":" | Q169: 其他典籍 | R169: " , "c2":" | S169: 礼敬佛陀作品集 | T169: " , "c3":" | V169: " , "c4":" | X169: " },
A170: =B170*10+C170+D170/10+E170/100 -> 44.4 | B170: 4 | C170: 4 | D170: 4 | F170: { "name":" | G170: a-bud4 | H170: " , "row":" | I170: 4 | J170: " , "id":"p | K170: 4 | L170: " , "folder":" | M170: e0604n.nrf | N170: " , "title":" | O170: 《礼敬经典》 | P170: " , "c1":" | Q170: 其他典籍 | R170: " , "c2":" | S170: 礼敬佛陀作品集 | T170: " , "c3":" | V170: " , "c4":" | X170: " },
A171: =B171*10+C171+D171/10+E171/100 -> 44.5 | B171: 4 | C171: 4 | D171: 5 | F171: { "name":" | G171: a-bud5 | H171: " , "row":" | I171: 5 | J171: " , "id":"p | K171: 5 | L171: " , "folder":" | M171: e0605n.nrf | N171: " , "title":" | O171: 《胜者庄严》 | P171: " , "c1":" | Q171: 其他典籍 | R171: " , "c2":" | S171: 礼敬佛陀作品集 | T171: " , "c3":" | V171: " , "c4":" | X171: " },
A172: =B172*10+C172+D172/10+E172/100 -> 44.6 | B172: 4 | C172: 4 | D172: 6 | F172: { "name":" | G172: a-bud6 | H172: " , "row":" | I172: 6 | J172: " , "id":"p | K172: 6 | L172: " , "folder":" | M172: e0606n.nrf | N172: " , "title":" | O172: 《莲花合掌》 | P172: " , "c1":" | Q172: 其他典籍 | R172: " , "c2":" | S172: 礼敬佛陀作品集 | T172: " , "c3":" | V172: " , "c4":" | X172: " },
A173: =B173*10+C173+D173/10+E173/100 -> 44.7 | B173: 4 | C173: 4 | D173: 7 | F173: { "name":" | G173: a-bud7 | H173: " , "row":" | I173: 7 | J173: " , "id":"p | K173: 7 | L173: " , "folder":" | M173: e0607n.nrf | N173: " , "title":" | O173: 《道之蜜》 | P173: " , "c1":" | Q173: 其他典籍 | R173: " , "c2":" | S173: 礼敬佛陀作品集 | T173: " , "c3":" | V173: " , "c4":" | X173: " },
A174: =B174*10+C174+D174/10+E174/100 -> 44.8 | B174: 4 | C174: 4 | D174: 8 | F174: { "name":" | G174: a-bud8 | H174: " , "row":" | I174: 8 | J174: " , "id":"p | K174: 8 | L174: " , "folder":" | M174: e0608n.nrf | N174: " , "title":" | O174: 《佛陀功德颂》 | P174: " , "c1":" | Q174: 其他典籍 | R174: " , "c2":" | S174: 礼敬佛陀作品集 | T174: " , "c3":" | V174: " , "c4":" | X174: " },
A175: =B175*10+C175+D175/10+E175/100 -> 45.1 | B175: 4 | C175: 5 | D175: 1 | F175: { "name":" | G175: a-vam1 | H175: " , "row":" | I175: 61 | J175: " , "id":"p | K175: 61 | L175: " , "folder":" | M175: e0701n.nrf | N175: " , "title":" | O175: 《小史》 | P175: " , "c1":" | Q175: 其他典籍 | R175: " , "c2":" | S175: 史书集 | T175: " , "c3":" | V175: " , "c4":" | X175: " },
A176: =B176*10+C176+D176/10+E176/100 -> 45.2 | B176: 4 | C176: 5 | D176: 2 | F176: { "name":" | G176: a-vam2 | H176: " , "row":" | I176: 62 | J176: " , "id":"p | K176: 62 | L176: " , "folder":" | M176: e0702n.nrf | N176: " , "title":" | O176: 《教史》 | P176: " , "c1":" | Q176: 其他典籍 | R176: " , "c2":" | S176: 史书集 | T176: " , "c3":" | V176: " , "c4":" | X176: " },
A177: =B177*10+C177+D177/10+E177/100 -> 45.3 | B177: 4 | C177: 5 | D177: 3 | F177: { "name":" | G177: a-vam3 | H177: " , "row":" | I177: 63 | J177: " , "id":"p | K177: 63 | L177: " , "folder":" | M177: e0703n.nrf | N177: " , "title":" | O177: 《大史》 | P177: " , "c1":" | Q177: 其他典籍 | R177: " , "c2":" | S177: 史书集 | T177: " , "c3":" | V177: " , "c4":" | X177: " },
A178: =B178*10+C178+D178/10+E178/100 -> 46.1 | B178: 4 | C178: 6 | D178: 1 | F178: { "name":" | G178: a-bya1 | H178: " , "row":" | I178: 13 | J178: " , "id":"p | K178: 13 | L178: " , "folder":" | M178: e0801n.nrf | N178: " , "title":" | O178: 《摩嘎拉那经》 | P178: " , "c1":" | Q178: 其他典籍 | R178: " , "c2":" | S178: 文法 | T178: " , "c3":" | V178: " , "c4":" | X178: " },
A179: =B179*10+C179+D179/10+E179/100 -> 46.2 | B179: 4 | C179: 6 | D179: 2 | F179: { "name":" | G179: a-bya2 | H179: " , "row":" | I179: 14 | J179: " , "id":"p | K179: 14 | L179: " , "folder":" | M179: e0802n.nrf | N179: " , "title":" | O179: 《咖咤亚那语法》最古老的巴利文法 | P179: " , "c1":" | Q179: 其他典籍 | R179: " , "c2":" | S179: 文法 | T179: " , "c3":" | V179: " , "c4":" | X179: " },
A180: =B180*10+C180+D180/10+E180/100 -> 46.3 | B180: 4 | C180: 6 | D180: 3 | F180: { "name":" | G180: a-bya3 | H180: " , "row":" | I180: 15 | J180: " , "id":"p | K180: 15 | L180: " , "folder":" | M180: e0803n.nrf | N180: " , "title":" | O180: 《论语法》（一） | P180: " , "c1":" | Q180: 其他典籍 | R180: " , "c2":" | S180: 文法 | T180: " , "c3":" | V180: " , "c4":" | X180: " },
A181: =B181*10+C181+D181/10+E181/100 -> 46.4 | B181: 4 | C181: 6 | D181: 4 | F181: { "name":" | G181: a-bya4 | H181: " , "row":" | I181: 16 | J181: " , "id":"p | K181: 16 | L181: " , "folder":" | M181: e0804n.nrf | N181: " , "title":" | O181: 《论语法》（二） | P181: " , "c1":" | Q181: 其他典籍 | R181: " , "c2":" | S181: 文法 | T181: " , "c3":" | V181: " , "c4":" | X181: " },
A182: =B182*10+C182+D182/10+E182/100 -> 46.5 | B182: 4 | C182: 6 | D182: 5 | F182: { "name":" | G182: a-bya5 | H182: " , "row":" | I182: 17 | J182: " , "id":"p | K182: 17 | L182: " , "folder":" | M182: e0805n.nrf | N182: " , "title":" | O182: 《句身成就》 | P182: " , "c1":" | Q182: 其他典籍 | R182: " , "c2":" | S182: 文法 | T182: " , "c3":" | V182: " , "c4":" | X182: " },
A183: =B183*10+C183+D183/10+E183/100 -> 46.6 | B183: 4 | C183: 6 | D183: 6 | F183: { "name":" | G183: a-bya6 | H183: " , "row":" | I183: 18 | J183: " , "id":"p | K183: 18 | L183: " , "folder":" | M183: e0806n.nrf | N183: " , "title":" | O183: 《摩嘎拉那潘基卡》 | P183: " , "c1":" | Q183: 其他典籍 | R183: " , "c2":" | S183: 文法 | T183: " , "c3":" | V183: " , "c4":" | X183: " },
A184: =B184*10+C184+D184/10+E184/100 -> 46.7 | B184: 4 | C184: 6 | D184: 7 | F184: { "name":" | G184: a-bya7 | H184: " , "row":" | I184: 19 | J184: " , "id":"p | K184: 19 | L184: " , "folder":" | M184: e0807n.nrf | N184: " , "title":" | O184: 《前方便成就》 | P184: " , "c1":" | Q184: 其他典籍 | R184: " , "c2":" | S184: 文法 | T184: " , "c3":" | V184: " , "c4":" | X184: " },
A185: =B185*10+C185+D185/10+E185/100 -> 46.8 | B185: 4 | C185: 6 | D185: 8 | F185: { "name":" | G185: a-bya8 | H185: " , "row":" | I185: 20 | J185: " , "id":"p | K185: 20 | L185: " , "folder":" | M185: e0808n.nrf | N185: " , "title":" | O185: 《言起》（巴利偈颂学） | P185: " , "c1":" | Q185: 其他典籍 | R185: " , "c2":" | S185: 文法 | T185: " , "c3":" | V185: " , "c4":" | X185: " },
A186: =B186*10+C186+D186/10+E186/100 -> 46.9 | B186: 4 | C186: 6 | D186: 9 | F186: { "name":" | G186: a-bya9 | H186: " , "row":" | I186: 21 | J186: " , "id":"p | K186: 21 | L186: " , "folder":" | M186: e0809n.nrf | N186: " , "title":" | O186: 《同义字》 | P186: " , "c1":" | Q186: 其他典籍 | R186: " , "c2":" | S186: 文法 | T186: " , "c3":" | V186: " , "c4":" | X186: " },
A187: =B187*10+C187+D187/10+E187/100 -> 46.91 | B187: 4 | C187: 6 | D187: 9.1 | F187: { "name":" | G187: a-bya10 | H187: " , "row":" | I187: 9 | J187: " , "id":"p | K187: 9 | L187: " , "folder":" | M187: e0810n.nrf | N187: " , "title":" | O187: 《同义字疏》 | P187: " , "c1":" | Q187: 其他典籍 | R187: " , "c2":" | S187: 文法 | T187: " , "c3":" | V187: " , "c4":" | X187: " },
A188: =B188*10+C188+D188/10+E188/100 -> 46.92 | B188: 4 | C188: 6 | D188: 9.2 | F188: { "name":" | G188: a-bya11 | H188: " , "row":" | I188: 10 | J188: " , "id":"p | K188: 10 | L188: " , "folder":" | M188: e0811n.nrf | N188: " , "title":" | O188: 《庄严明了》 | P188: " , "c1":" | Q188: 其他典籍 | R188: " , "c2":" | S188: 文法 | T188: " , "c3":" | V188: " , "c4":" | X188: " },
A189: =B189*10+C189+D189/10+E189/100 -> 46.93 | B189: 4 | C189: 6 | D189: 9.3 | F189: { "name":" | G189: a-bya12 | H189: " , "row":" | I189: 11 | J189: " , "id":"p | K189: 11 | L189: " , "folder":" | M189: e0812n.nrf | N189: " , "title":" | O189: 《庄严明了疏》 | P189: " , "c1":" | Q189: 其他典籍 | R189: " , "c2":" | S189: 文法 | T189: " , "c3":" | V189: " , "c4":" | X189: " },
A190: =B190*10+C190+D190/10+E190/100 -> 46.94 | B190: 4 | C190: 6 | D190: 9.4 | F190: { "name":" | G190: a-bya13 | H190: " , "row":" | I190: 12 | J190: " , "id":"p | K190: 12 | L190: " , "folder":" | M190: e0813n.nrf | N190: " , "title":" | O190: 《巴利初学入门》 | P190: " , "c1":" | Q190: 其他典籍 | R190: " , "c2":" | S190: 文法 | T190: " , "c3":" | V190: " , "c4":" | X190: " },
A191: =B191*10+C191+D191/10+E191/100 -> 47.1 | B191: 4 | C191: 7 | D191: 1 | F191: { "name":" | G191: a-nit1 | H191: " , "row":" | I191: 27 | J191: " , "id":"p | K191: 27 | L191: " , "folder":" | M191: e1001n.nrf | N191: " , "title":" | O191: 《诗人镜子格言》 | P191: " , "c1":" | Q191: 其他典籍 | R191: " , "c2":" | S191: 格言 | T191: " , "c3":" | V191: " , "c4":" | X191: " },
A192: =B192*10+C192+D192/10+E192/100 -> 47.2 | B192: 4 | C192: 7 | D192: 2 | F192: { "name":" | G192: a-nit2 | H192: " , "row":" | I192: 28 | J192: " , "id":"p | K192: 28 | L192: " , "folder":" | M192: e1002n.nrf | N192: " , "title":" | O192: 《格言集》 | P192: " , "c1":" | Q192: 其他典籍 | R192: " , "c2":" | S192: 格言 | T192: " , "c3":" | V192: " , "c4":" | X192: " },
A193: =B193*10+C193+D193/10+E193/100 -> 47.3 | B193: 4 | C193: 7 | D193: 3 | F193: { "name":" | G193: a-nit3 | H193: " , "row":" | I193: 29 | J193: " , "id":"p | K193: 29 | L193: " , "folder":" | M193: e1003n.nrf | N193: " , "title":" | O193: 《法的格言》 | P193: " , "c1":" | Q193: 其他典籍 | R193: " , "c2":" | S193: 格言 | T193: " , "c3":" | V193: " , "c4":" | X193: " },
A194: =B194*10+C194+D194/10+E194/100 -> 47.4 | B194: 4 | C194: 7 | D194: 4 | F194: { "name":" | G194: a-nit4 | H194: " , "row":" | I194: 30 | J194: " , "id":"p | K194: 30 | L194: " , "folder":" | M194: e1004n.nrf | N194: " , "title":" | O194: 《大阿拉汗格言》 | P194: " , "c1":" | Q194: 其他典籍 | R194: " , "c2":" | S194: 格言 | T194: " , "c3":" | V194: " , "c4":" | X194: " },
A195: =B195*10+C195+D195/10+E195/100 -> 47.5 | B195: 4 | C195: 7 | D195: 5 | F195: { "name":" | G195: a-nit5 | H195: " , "row":" | I195: 31 | J195: " , "id":"p | K195: 31 | L195: " , "folder":" | M195: e1005n.nrf | N195: " , "title":" | O195: 《世间法》（格言集） | P195: " , "c1":" | Q195: 其他典籍 | R195: " , "c2":" | S195: 格言 | T195: " , "c3":" | V195: " , "c4":" | X195: " },
A196: =B196*10+C196+D196/10+E196/100 -> 47.6 | B196: 4 | C196: 7 | D196: 6 | F196: { "name":" | G196: a-nit6 | H196: " , "row":" | I196: 32 | J196: " , "id":"p | K196: 32 | L196: " , "folder":" | M196: e1006n.nrf | N196: " , "title":" | O196: 《经中格言》 | P196: " , "c1":" | Q196: 其他典籍 | R196: " , "c2":" | S196: 格言 | T196: " , "c3":" | V196: " , "c4":" | X196: " },
A197: =B197*10+C197+D197/10+E197/100 -> 47.7 | B197: 4 | C197: 7 | D197: 7 | F197: { "name":" | G197: a-nit7 | H197: " , "row":" | I197: 33 | J197: " , "id":"p | K197: 33 | L197: " , "folder":" | M197: e1007n.nrf | N197: " , "title":" | O197: 《Sūrassatīnīti》 | P197: " , "c1":" | Q197: 其他典籍 | R197: " , "c2":" | S197: 格言 | T197: " , "c3":" | V197: " , "c4":" | X197: " },
A198: =B198*10+C198+D198/10+E198/100 -> 47.8 | B198: 4 | C198: 7 | D198: 8 | F198: { "name":" | G198: a-nit8 | H198: " , "row":" | I198: 34 | J198: " , "id":"p | K198: 34 | L198: " , "folder":" | M198: e1008n.nrf | N198: " , "title":" | O198: 《Cāṇakyanītipāḷi》 | P198: " , "c1":" | Q198: 其他典籍 | R198: " , "c2":" | S198: 格言 | T198: " , "c3":" | V198: " , "c4":" | X198: " },
A199: =B199*10+C199+D199/10+E199/100 -> 47.9 | B199: 4 | C199: 7 | D199: 9 | F199: { "name":" | G199: a-nit9 | H199: " , "row":" | I199: 35 | J199: " , "id":"p | K199: 35 | L199: " , "folder":" | M199: e1009n.nrf | N199: " , "title":" | O199: 《能干者灯释》 | P199: " , "c1":" | Q199: 其他典籍 | R199: " , "c2":" | S199: 格言 | T199: " , "c3":" | V199: " , "c4":" | X199: " },
A200: =B200*10+C200+D200/10+E200/100 -> 47.91 | B200: 4 | C200: 7 | D200: 9.1 | F200: { "name":" | G200: a-nit10 | H200: " , "row":" | I200: 26 | J200: " , "id":"p | K200: 26 | L200: " , "folder":" | M200: e1010n.nrf | N200: " , "title":" | O200: 《四护卫禅灯释》 | P200: " , "c1":" | Q200: 其他典籍 | R200: " , "c2":" | S200: 格言 | T200: " , "c3":" | V200: " , "c4":" | X200: " },
... 18 more rows

Sheet Tw
A1: name | B1: id | C1: folder | D1: title | E1: c1 | F1: c2 | G1: c3 | H1: c4
A2: a-bud1 | B2: 1 | C2: e0601n.nrf | D2: 禮敬複注 | E2: 其他典籍 | F2: 禮敬佛陀作品集
A3: a-bud2 | B3: 2 | C3: e0602n.nrf | D3: 大禮敬 | E3: 其他典籍 | F3: 禮敬佛陀作品集
A4: a-bud3 | B4: 3 | C4: e0603n.nrf | D4: ？ | E4: 其他典籍 | F4: 禮敬佛陀作品集
A5: a-bud4 | B5: 4 | C5: e0604n.nrf | D5: 禮敬經典 | E5: 其他典籍 | F5: 禮敬佛陀作品集
A6: a-bud5 | B6: 5 | C6: e0605n.nrf | D6: 勝者莊嚴 | E6: 其他典籍 | F6: 禮敬佛陀作品集
A7: a-bud6 | B7: 6 | C7: e0606n.nrf | D7: 蓮花合掌 | E7: 其他典籍 | F7: 禮敬佛陀作品集
A8: a-bud7 | B8: 7 | C8: e0607n.nrf | D8: 道之蜜 | E8: 其他典籍 | F8: 禮敬佛陀作品集
A9: a-bud8 | B9: 8 | C9: e0608n.nrf | D9: 佛陀功德頌 | E9: 其他典籍 | F9: 禮敬佛陀作品集
A10: a-bya10 | B10: 9 | C10: e0810n.nrf | D10: 同義字疏 | E10: 其他典籍 | F10: 文法
A11: a-bya11 | B11: 10 | C11: e0811n.nrf | D11: 莊嚴明瞭 | E11: 其他典籍 | F11: 文法
A12: a-bya12 | B12: 11 | C12: e0812n.nrf | D12: 莊嚴明瞭疏 | E12: 其他典籍 | F12: 文法
A13: a-bya13 | B13: 12 | C13: e0813n.nrf | D13: 巴利初學入門 | E13: 其他典籍 | F13: 文法
A14: a-bya1 | B14: 13 | C14: e0801n.nrf | D14: 摩嘎拉那經 | E14: 其他典籍 | F14: 文法
A15: a-bya2 | B15: 14 | C15: e0802n.nrf | D15: 《咖吒亞那語法》最古老的巴利文法 | E15: 其他典籍 | F15: 文法
A16: a-bya3 | B16: 15 | C16: e0803n.nrf | D16: 語法論 | E16: 其他典籍 | F16: 文法
A17: a-bya4 | B17: 16 | C17: e0804n.nrf | D17: 語法論 | E17: 其他典籍 | F17: 文法
A18: a-bya5 | B18: 17 | C18: e0805n.nrf | D18: 句身成就 | E18: 其他典籍 | F18: 文法
A19: a-bya6 | B19: 18 | C19: e0806n.nrf | D19: 摩嘎拉那潘基卡 | E19: 其他典籍 | F19: 文法
A20: a-bya7 | B20: 19 | C20: e0807n.nrf | D20: 前方便成就 | E20: 其他典籍 | F20: 文法
A21: a-bya8 | B21: 20 | C21: e0808n.nrf | D21: 巴利詩學 | E21: 其他典籍 | F21: 文法
A22: a-bya9 | B22: 21 | C22: e0809n.nrf | D22: 同義字 | E22: 其他典籍 | F22: 文法
A23: a-led1 | B23: 22 | C23: e0201n.nrf | D23: 《詞語手冊》《巴利語文法》 | E23: 其他典籍 | F23: 雷迪大師作品集
A24: a-led2 | B24: 23 | C24: e0301n.nrf | D24: 勝義手冊 | E24: 其他典籍 | F24: 雷迪大師作品集
A25: a-led3 | B25: 24 | C25: e0401n.nrf | D25: 隨手冊（阿毗達摩作品） | E25: 其他典籍 | F25: 雷迪大師作品集
A26: a-led4 | B26: 25 | C26: e0501n.nrf | D26: 發趣總說手冊 | E26: 其他典籍 | F26: 雷迪大師作品集
A27: a-nit10 | B27: 26 | C27: e1010n.nrf | D27: 詩人鏡子格言 | E27: 其他典籍 | F27: 格言
A28: a-nit1 | B28: 27 | C28: e1001n.nrf | D28: 格言寶涵 | E28: 其他典籍 | F28: 格言
A29: a-nit2 | B29: 28 | C29: e1002n.nrf | D29: 法的格言 | E29: 其他典籍 | F29: 格言
A30: a-nit3 | B30: 29 | C30: e1003n.nrf | D30: 大阿拉汗格言 | E30: 其他典籍 | F30: 格言
A31: a-nit4 | B31: 30 | C31: e1004n.nrf | D31: 《世間法》（格言集） | E31: 其他典籍 | F31: 格言
A32: a-nit5 | B32: 31 | C32: e1005n.nrf | D32: 經中格言 | E32: 其他典籍 | F32: 格言
A33: a-nit6 | B33: 32 | C33: e1006n.nrf | D33: ？ | E33: 其他典籍 | F33: 格言
A34: a-nit7 | B34: 33 | C34: e1007n.nrf | D34: ？ | E34: 其他典籍 | F34: 格言
A35: a-nit8 | B35: 34 | C35: e1008n.nrf | D35: 能幹者明燈 | E35: 其他典籍 | F35: 格言
A36: a-nit9 | B36: 35 | C36: e1009n.nrf | D36: 四護衛禪明燈 | E36: 其他典籍 | F36: 格言
A37: a-pak1 | B37: 36 | C37: e1101n.nrf | D37: 趣味故事 | E37: 其他典籍 | F37: 雜集
A38: a-pak2 | B38: 37 | C38: e1102n.nrf | D38: ？ | E38: 其他典籍 | F38: 雜集
A39: a-pak3 | B39: 38 | C39: e1103n.nrf | D39: ？ | E39: 其他典籍 | F39: 雜集
A40: a-sam1 | B40: 39 | C40: e0901n.nrf | D40: 長部 | E40: 其他典籍 | F40: 結集問答
A41: a-sam2 | B41: 40 | C41: e0902n.nrf | D41: 中部 | E41: 其他典籍 | F41: 結集問答
A42: a-sam3 | B42: 41 | C42: e0903n.nrf | D42: 相應部 | E42: 其他典籍 | F42: 結集問答
A43: a-sam4 | B43: 42 | C43: e0904n.nrf | D43: 增支部 | E43: 其他典籍 | F43: 結集問答
A44: a-sam5 | B44: 43 | C44: e0905n.nrf | D44: 律藏 | E44: 其他典籍 | F44: 結集問答
A45: a-sam6 | B45: 44 | C45: e0906n.nrf | D45: 論藏 | E45: 其他典籍 | F45: 結集問答
A46: a-sam7 | B46: 45 | C46: e0907n.nrf | D46: 義注 | E46: 其他典籍 | F46: 結集問答
A47: a-sih10 | B47: 46 | C47: e1210n.nrf | D47: ？ | E47: 其他典籍 | F47: 斯里蘭卡作品集
A48: a-sih11 | B48: 47 | C48: e1211n.nrf | D48: 塔史 | E48: 其他典籍 | F48: 斯里蘭卡作品集
A49: a-sih12 | B49: 48 | C49: e1212n.nrf | D49: 佛牙史 | E49: 其他典籍 | F49: 斯里蘭卡作品集
A50: a-sih13 | B50: 49 | C50: e1213n.nrf | D50: ？ | E50: 其他典籍 | F50: 斯里蘭卡作品集
A51: a-sih14 | B51: 50 | C51: e1214n.nrf | D51: ？ | E51: 其他典籍 | F51: 斯里蘭卡作品集
A52: a-sih15 | B52: 51 | C52: e1215n.nrf | D52: 哈塔瓦那嘎拉寺史 | E52: 其他典籍 | F52: 斯里蘭卡作品集
A53: a-sih1 | B53: 52 | C53: e1201n.nrf | D53: 勝者所行 | E53: 其他典籍 | F53: 斯里蘭卡作品集
A54: a-sih2 | B54: 53 | C54: e1202n.nrf | D54: 勝世明燈 | E54: 其他典籍 | F54: 斯里蘭卡作品集
A55: a-sih3 | B55: 54 | C55: e1203n.nrf | D55: 油壺偈 | E55: 其他典籍 | F55: 斯里蘭卡作品集
A56: a-sih4 | B56: 55 | C56: e1204n.nrf | D56: 彌林達問經複注 | E56: 其他典籍 | F56: 斯里蘭卡作品集
A57: a-sih5 | B57: 56 | C57: e1205n.nrf | D57: 句寶函 | E57: 其他典籍 | F57: 斯里蘭卡作品集
A58: a-sih6 | B58: 57 | C58: e1206n.nrf | D58: 造句 | E58: 其他典籍 | F58: 斯里蘭卡作品集
A59: a-sih7 | B59: 58 | C59: e1207n.nrf | D59: ？ | E59: 其他典籍 | F59: 斯里蘭卡作品集
A60: a-sih8 | B60: 59 | C60: e1208n.nrf | D60: 咖吒亞那界寶函 | E60: 其他典籍 | F60: 斯里蘭卡作品集
A61: a-sih9 | B61: 60 | C61: e1209n.nrf | D61: 瑟曼德峰讚語 | E61: 其他典籍 | F61: 斯里蘭卡作品集
A62: a-vam1 | B62: 61 | C62: e0701n.nrf | D62: 小史 | E62: 其他典籍 | F62: 教史
A63: a-vam2 | B63: 62 | C63: e0702n.nrf | D63: 教史 | E63: 其他典籍 | F63: 教史
A64: a-vam3 | B64: 63 | C64: e0703n.nrf | D64: 大史 | E64: 其他典籍 | F64: 教史
A65: a-vis1 | B65: 64 | C65: e0101n.mul | D65: 清淨之道-1 | E65: 其他典籍 | F65: 清淨道路
A66: a-vis2 | B66: 65 | C66: e0102n.mul | D66: 清淨之道-2 | E66: 其他典籍 | F66: 清淨道路
A67: a-vis3 | B67: 66 | C67: e0103n.att | D67: 清淨之道-大複注-1 | E67: 其他典籍 | F67: 清淨道路
A68: a-vis4 | B68: 67 | C68: e0104n.att | D68: 清淨之道-大複注-2 | E68: 其他典籍 | F68: 清淨道路
A69: a-vis5 | B69: 68 | C69: e0105n.nrf | D69: 清淨之道-序論 | E69: 其他典籍 | F69: 清淨道路
A70: abhp10 | B70: 69 | C70: abh03m8.mul | D70: 發趣論二 | E70: 三藏根本 | F70: 阿毗達摩藏
A71: abhp11 | B71: 70 | C71: abh03m9.mul | D71: 發趣論三 | E71: 三藏根本 | F71: 阿毗達摩藏
A72: abhp12 | B72: 71 | C72: abh03m10.mul | D72: 發趣論四 | E72: 三藏根本 | F72: 阿毗達摩藏
A73: abhp13 | B73: 72 | C73: abh03m11.mul | D73: 發趣論五 | E73: 三藏根本 | F73: 阿毗達摩藏
A74: abhp1 | B74: 73 | C74: abh01m.mul | D74: 法集論 | E74: 三藏根本 | F74: 阿毗達摩藏
A75: abhp2 | B75: 74 | C75: abh02m.mul | D75: 分別論 | E75: 三藏根本 | F75: 阿毗達摩藏
A76: abhp3 | B76: 75 | C76: abh03m1.mul | D76: 界論 | E76: 三藏根本 | F76: 阿毗達摩藏
A77: abhp4 | B77: 76 | C77: abh03m2.mul | D77: 人施設論 | E77: 三藏根本 | F77: 阿毗達摩藏
A78: abhp5 | B78: 77 | C78: abh03m3.mul | D78: 論事 | E78: 三藏根本 | F78: 阿毗達摩藏
A79: abhp6 | B79: 78 | C79: abh03m4.mul | D79: 雙論一 | E79: 三藏根本 | F79: 阿毗達摩藏
A80: abhp7 | B80: 79 | C80: abh03m5.mul | D80: 雙論二 | E80: 三藏根本 | F80: 阿毗達摩藏
A81: abhp8 | B81: 80 | C81: abh03m6.mul | D81: 雙論三 | E81: 三藏根本 | F81: 阿毗達摩藏
A82: abhp9 | B82: 81 | C82: abh03m7.mul | D82: 發趣論一 | E82: 三藏根本 | F82: 阿毗達摩藏
A83: an10 | B83: 82 | C83: s0404m3.mul | D83: 十集 | E83: 三藏根本 | F83: 經藏 | G83: 增支部
A84: an11 | B84: 83 | C84: s0404m4.mul | D84: 十一集 | E84: 三藏根本 | F84: 經藏 | G84: 增支部
A85: an1 | B85: 84 | C85: s0401m.mul | D85: 一集 | E85: 三藏根本 | F85: 經藏 | G85: 增支部
A86: an2 | B86: 85 | C86: s0402m1.mul | D86: 二集 | E86: 三藏根本 | F86: 經藏 | G86: 增支部
A87: an3 | B87: 86 | C87: s0402m2.mul | D87: 三集 | E87: 三藏根本 | F87: 經藏 | G87: 增支部
A88: an4 | B88: 87 | C88: s0402m3.mul | D88: 四集 | E88: 三藏根本 | F88: 經藏 | G88: 增支部
A89: an5 | B89: 88 | C89: s0403m1.mul | D89: 五集 | E89: 三藏根本 | F89: 經藏 | G89: 增支部
A90: an6 | B90: 89 | C90: s0403m2.mul | D90: 六集 | E90: 三藏根本 | F90: 經藏 | G90: 增支部
A91: an7 | B91: 90 | C91: s0403m3.mul | D91: 七集 | E91: 三藏根本 | F91: 經藏 | G91: 增支部
A92: an8 | B92: 91 | C92: s0404m1.mul | D92: 八集 | E92: 三藏根本 | F92: 經藏 | G92: 增支部
A93: an9 | B93: 92 | C93: s0404m2.mul | D93: 九集 | E93: 三藏根本 | F93: 經藏 | G93: 增支部
A94: dn1 | B94: 93 | C94: s0101m.mul | D94: 戒蘊品 | E94: 三藏根本 | F94: 經藏 | G94: 長部
A95: dn2 | B95: 94 | C95: s0102m.mul | D95: 大品 | E95: 三藏根本 | F95: 經藏 | G95: 長部
A96: dn3 | B96: 95 | C96: s0103m.mul | D96: 巴提咖品 | E96: 三藏根本 | F96: 經藏 | G96: 長部
A97: k-abh1 | B97: 96 | C97: abh01a.att | D97: 法集論 | E97: 義注 | F97: 阿毗達摩藏
A98: k-abh2 | B98: 97 | C98: abh02a.att | D98: 去除愚癡 | E98: 義注 | F98: 阿毗達摩藏
A99: k-abh3 | B99: 98 | C99: abh03a.att | D99: 五部論注 | E99: 義注 | F99: 阿毗達摩藏
A100: k-an1 | B100: 99 | C100: s0401a.att | D100: 壹 | E100: 義注 | F100: 經藏 | G100: 增支部
A101: k-an2 | B101: 100 | C101: s0402a.att | D101: 貳三肆 | E101: 義注 | F101: 經藏 | G101: 增支部
A102: k-an5 | B102: 101 | C102: s0403a.att | D102: 伍陸柒 | E102: 義注 | F102: 經藏 | G102: 增支部
A103: k-an8 | B103: 102 | C103: s0404a.att | D103: 捌 | E103: 義注 | F103: 經藏 | G103: 增支部
A104: k-dn1 | B104: 103 | C104: s0101a.att | D104: 戒蘊品 | E104: 義注 | F104: 經藏 | G104: 長部
A105: k-dn2 | B105: 104 | C105: s0102a.att | D105: 大品 | E105: 義注 | F105: 經藏 | G105: 長部
A106: k-dn3 | B106: 105 | C106: s0103a.att | D106: 巴提咖品 | E106: 義注 | F106: 經藏 | G106: 長部
A107: k-kn10 | B107: 106 | C107: s0509a.att | D107: 長老尼偈 | E107: 義注 | F107: 經藏 | G107: 小部
A108: k-kn11 | B108: 107 | C108: s0510a.att | D108: 譬喻經 | E108: 義注 | F108: 經藏 | G108: 小部
A109: k-kn12 | B109: 108 | C109: s0511a.att | D109: 佛種姓 | E109: 義注 | F109: 經藏 | G109: 小部
A110: k-kn13 | B110: 109 | C110: s0512a.att | D110: ？ | E110: 義注 | F110: 經藏 | G110: 小部
A111: k-kn14 | B111: 110 | C111: s0513a1.att | D111: 本生一 | E111: 義注 | F111: 經藏 | G111: 小部
A112: k-kn15 | B112: 111 | C112: s0513a2.att | D112: 本生二 | E112: 義注 | F112: 經藏 | G112: 小部
A113: k-kn16 | B113: 112 | C113: s0513a3.att | D113: 本生三 | E113: 義注 | F113: 經藏 | G113: 小部
A114: k-kn17 | B114: 113 | C114: s0513a4.att | D114: 本生四 | E114: 義注 | F114: 經藏 | G114: 小部
A115: k-kn18 | B115: 114 | C115: s0514a1.att | D115: 本生五 | E115: 義注 | F115: 經藏 | G115: 小部
A116: k-kn19 | B116: 115 | C116: s0514a2.att | D116: 本生六 | E116: 義注 | F116: 經藏 | G116: 小部
A117: k-kn1 | B117: 116 | C117: s0501a.att | D117: ？ | E117: 義注 | F117: 經藏 | G117: 小部
A118: k-kn20 | B118: 117 | C118: s0514a3.att | D118: 本生七 | E118: 義注 | F118: 經藏 | G118: 小部
A119: k-kn21 | B119: 118 | C119: s0515a.att | D119: 大義釋 | E119: 義注 | F119: 經藏 | G119: 小部
A120: k-kn22 | B120: 119 | C120: s0516a.att | D120: 小義釋 | E120: 義注 | F120: 經藏 | G120: 小部
A121: k-kn23 | B121: 120 | C121: s0517a.att | D121: ？ | E121: 義注 | F121: 經藏 | G121: 小部
A122: k-kn24 | B122: 121 | C122: s0519a.att | D122: ？ | E122: 義注 | F122: 經藏 | G122: 小部
A123: k-kn2 | B123: 122 | C123: s0502a.att | D123: 法句 | E123: 義注 | F123: 經藏 | G123: 小部
A124: k-kn3 | B124: 123 | C124: s0503a.att | D124: 自說 | E124: 義注 | F124: 經藏 | G124: 小部
A125: k-kn4 | B125: 124 | C125: s0504a.att | D125: 如是語 | E125: 義注 | F125: 經藏 | G125: 小部
A126: k-kn5 | B126: 125 | C126: s0505a.att | D126: 經集 | E126: 義注 | F126: 經藏 | G126: 小部
A127: k-kn6 | B127: 126 | C127: s0506a.att | D127: 天宮故事 | E127: 義注 | F127: 經藏 | G127: 小部
A128: k-kn7 | B128: 127 | C128: s0507a.att | D128: 鬼故事 | E128: 義注 | F128: 經藏 | G128: 小部
A129: k-kn8 | B129: 128 | C129: s0508a1.att | D129: 長老偈一 | E129: 義注 | F129: 經藏 | G129: 小部
A130: k-kn9 | B130: 129 | C130: s0508a2.att | D130: 長老偈二 | E130: 義注 | F130: 經藏 | G130: 小部
A131: k-mn1 | B131: 130 | C131: s0201a.att | D131: 根本五十經 | E131: 義注 | F131: 經藏 | G131: 中部
A132: k-mn2 | B132: 131 | C132: s0202a.att | D132: 中五十經 | E132: 義注 | F132: 經藏 | G132: 中部
A133: k-mn3 | B133: 132 | C133: s0203a.att | D133: 後五十經 | E133: 義注 | F133: 經藏 | G133: 中部
A134: k-sn1 | B134: 133 | C134: s0301a.att | D134: 有偈品 | E134: 義注 | F134: 經藏 | G134: 相應部
A135: k-sn2 | B135: 134 | C135: s0302a.att | D135: 因緣品 | E135: 義注 | F135: 經藏 | G135: 相應部
A136: k-sn3 | B136: 135 | C136: s0303a.att | D136: 蘊品 | E136: 義注 | F136: 經藏 | G136: 相應部
A137: k-sn4 | B137: 136 | C137: s0304a.att | D137: 六處品 | E137: 義注 | F137: 經藏 | G137: 相應部
A138: k-sn5 | B138: 137 | C138: s0305a.att | D138: 大品 | E138: 義注 | F138: 經藏 | G138: 相應部
A139: k-vin1 | B139: 138 | C139: vin01a.att | D139: 巴拉基咖 | E139: 義注 | F139: 律藏
A140: k-vin2 | B140: 139 | C140: vin02a1.att | D140: 巴吉蒂亞 | E140: 義注 | F140: 律藏
A141: k-vin3 | B141: 140 | C141: vin02a2.att | D141: 大品 | E141: 義注 | F141: 律藏
A142: k-vin4 | B142: 141 | C142: vin02a3.att | D142: 小品 | E142: 義注 | F142: 律藏
A143: k-vin5 | B143: 142 | C143: vin02a4.att | D143: 附隨 | E143: 義注 | F143: 律藏
A144: kn10 | B144: 143 | C144: s0510m1.mul | D144: 長老傳記1 | E144: 三藏根本 | F144: 經藏 | G144: 小部
A145: kn11 | B145: 144 | C145: s0510m2.mul | D145: 長老傳記2 | E145: 三藏根本 | F145: 經藏 | G145: 小部
A146: kn12 | B146: 145 | C146: s0511m.mul | D146: 諸佛史 | E146: 三藏根本 | F146: 經藏 | G146: 小部
A147: kn13 | B147: 146 | C147: s0512m.mul | D147: 所行藏 | E147: 三藏根本 | F147: 經藏 | G147: 小部
A148: kn14b | B148: 147 | C148: s0514m.mul | D148: 本生1 | E148: 三藏根本 | F148: 經藏 | G148: 小部
A149: kn14 | B149: 148 | C149: s0513m.mul | D149: 本生2 | E149: 三藏根本 | F149: 經藏 | G149: 小部
A150: kn15 | B150: 149 | C150: s0515m.mul | D150: 大義釋 | E150: 三藏根本 | F150: 經藏 | G150: 小部
A151: kn16 | B151: 150 | C151: s0516m.mul | D151: 小義釋 | E151: 三藏根本 | F151: 經藏 | G151: 小部
A152: kn17 | B152: 151 | C152: s0517m.mul | D152: 無礙解道 | E152: 三藏根本 | F152: 經藏 | G152: 小部
A153: kn18 | B153: 152 | C153: s0518m.nrf | D153: 導論 | E153: 三藏根本 | F153: 經藏 | G153: 小部
A154: kn19 | B154: 153 | C154: s0519m.mul | D154: 彌林達問經 | E154: 三藏根本 | F154: 經藏 | G154: 小部
A155: kn1 | B155: 154 | C155: s0501m.mul | D155: 小誦 | E155: 三藏根本 | F155: 經藏 | G155: 小部
A156: kn20 | B156: 155 | C156: s0520m.nrf | D156: 藏釋 | E156: 三藏根本 | F156: 經藏 | G156: 小部
A157: kn2 | B157: 156 | C157: s0502m.mul | D157: 法句 | E157: 三藏根本 | F157: 經藏 | G157: 小部
A158: kn3 | B158: 157 | C158: s0503m.mul | D158: 自說 | E158: 三藏根本 | F158: 經藏 | G158: 小部
A159: kn4 | B159: 158 | C159: s0504m.mul | D159: 如是語 | E159: 三藏根本 | F159: 經藏 | G159: 小部
A160: kn5 | B160: 159 | C160: s0505m.mul | D160: 經集 | E160: 三藏根本 | F160: 經藏 | G160: 小部
A161: kn6 | B161: 160 | C161: s0506m.mul | D161: 天宮故事 | E161: 三藏根本 | F161: 經藏 | G161: 小部
A162: kn7 | B162: 161 | C162: s0507m.mul | D162: 鬼故事 | E162: 三藏根本 | F162: 經藏 | G162: 小部
A163: kn8 | B163: 162 | C163: s0508m.mul | D163: 長老偈 | E163: 三藏根本 | F163: 經藏 | G163: 小部
A164: kn9 | B164: 163 | C164: s0509m.mul | D164: 長老尼偈 | E164: 三藏根本 | F164: 經藏 | G164: 小部
A165: mn1 | B165: 164 | C165: s0201m.mul | D165: 根本五十經 | E165: 三藏根本 | F165: 經藏 | G165: 中部
A166: mn2 | B166: 165 | C166: s0202m.mul | D166: 中五十經 | E166: 三藏根本 | F166: 經藏 | G166: 中部
A167: mn3 | B167: 166 | C167: s0203m.mul | D167: 後五十經 | E167: 三藏根本 | F167: 經藏 | G167: 中部
A168: sn1 | B168: 167 | C168: s0301m.mul | D168: 有偈品 | E168: 三藏根本 | F168: 經藏 | G168: 相應部
A169: sn2 | B169: 168 | C169: s0302m.mul | D169: 因緣品 | E169: 三藏根本 | F169: 經藏 | G169: 相應部
A170: sn3 | B170: 169 | C170: s0303m.mul | D170: 蘊品 | E170: 三藏根本 | F170: 經藏 | G170: 相應部
A171: sn4 | B171: 170 | C171: s0304m.mul | D171: 六處品 | E171: 三藏根本 | F171: 經藏 | G171: 相應部
A172: sn5 | B172: 171 | C172: s0305m.mul | D172: 大品 | E172: 三藏根本 | F172: 經藏 | G172: 相應部
A173: t-abh1 | B173: 172 | C173: abh01t.tik | D173: 法集論根本 | E173: 複注 | F173: 阿毗達摩藏
A174: t-abh2 | B174: 173 | C174: abh02t.tik | D174: 分別論根本 | E174: 複注 | F174: 阿毗達摩藏
A175: t-abh3 | B175: 174 | C175: abh03t.tik | D175: 五部論根本 | E175: 複注 | F175: 阿毗達摩藏
A176: t-abh4 | B176: 175 | C176: abh04t.nrf | D176: 法集論再複注 | E176: 複注 | F176: 阿毗達摩藏
A177: t-abh5 | B177: 176 | C177: abh05t.nrf | D177: 五部論再複注 | E177: 複注 | F177: 阿毗達摩藏
A178: t-abh6 | B178: 177 | C178: abh06t.nrf | D178: 入阿毗達摩論-名色差別論 | E178: 複注 | F178: 阿毗達摩藏
A179: t-abh7 | B179: 178 | C179: abh07t.nrf | D179: 攝阿毗達摩義論 | E179: 複注 | F179: 阿毗達摩藏
A180: t-abh8 | B180: 179 | C180: abh08t.nrf | D180: 入阿毗達摩論古複注 | E180: 複注 | F180: 阿毗達摩藏
A181: t-abh9 | B181: 180 | C181: abh09t.nrf | D181: 阿毗達摩論母 | E181: 複注 | F181: 阿毗達摩藏
A182: t-an1 | B182: 181 | C182: s0401t.tik | D182: 壹 | E182: 複注 | F182: 經藏 | G182: 增支部
A183: t-an2 | B183: 182 | C183: s0402t.tik | D183: 貳三肆 | E183: 複注 | F183: 經藏 | G183: 增支部
A184: t-an3 | B184: 183 | C184: s0403t.tik | D184: 伍陸柒 | E184: 複注 | F184: 經藏 | G184: 增支部
A185: t-an4 | B185: 184 | C185: s0404t.tik | D185: 捌 | E185: 複注 | F185: 經藏 | G185: 增支部
A186: t-dn1 | B186: 185 | C186: s0101t.tik | D186: ？ | E186: 複注 | F186: 經藏 | G186: 長部
A187: t-dn2 | B187: 186 | C187: s0102t.tik | D187: ？ | E187: 複注 | F187: 經藏 | G187: 長部
A188: t-dn3 | B188: 187 | C188: s0103t.tik | D188: ？ | E188: 複注 | F188: 經藏 | G188: 長部
A189: t-dn4 | B189: 188 | C189: s0104t.nrf | D189: ？ | E189: 複注 | F189: 經藏 | G189: 長部
A190: t-dn5 | B190: 189 | C190: s0105t.nrf | D190: ？ | E190: 複注 | F190: 經藏 | G190: 長部
A191: t-kn1 | B191: 190 | C191: s0519t.tik | D191: ？ | E191: 複注 | F191: 經藏 | G191: 小部
A192: t-kn2 | B192: 191 | C192: s0501t.nrf | D192: ？ | E192: 複注 | F192: 經藏 | G192: 小部
A193: t-mn1 | B193: 192 | C193: s0201t.tik | D193: 根本五十經 | E193: 複注 | F193: 經藏 | G193: 中部
A194: t-mn2 | B194: 193 | C194: s0202t.tik | D194: 中五十經 | E194: 複注 | F194: 經藏 | G194: 中部
A195: t-mn3 | B195: 194 | C195: s0203t.tik | D195: 後五十經 | E195: 複注 | F195: 經藏 | G195: 中部
A196: t-sn1 | B196: 195 | C196: s0301t.tik | D196: 有偈品 | E196: 複注 | F196: 經藏 | G196: 相應部
A197: t-sn2 | B197: 196 | C197: s0302t.tik | D197: 因緣品 | E197: 複注 | F197: 經藏 | G197: 相應部
A198: t-sn3 | B198: 197 | C198: s0303t.tik | D198: 蘊品 | E198: 複注 | F198: 經藏 | G198: 相應部
A199: t-sn4 | B199: 198 | C199: s0304t.tik | D199: 六處品 | E199: 複注 | F199: 經藏 | G199: 相應部
A200: t-sn5 | B200: 199 | C200: s0305t.tik | D200: 大品 | E200: 複注 | F200: 經藏 | G200: 相應部
... 18 more rows

Sheet sin
